Service Area,Service Division,Expense Type,Expense Code,Detailed Expense Type,Payment Date,Transaction Number,Amount Exc VAT,Supplier Name
Regeneration and Local Services,Business Durham CL0850,Supplies and Services,336005,Advertising E336,01/10/2019,3646640-17809,"1,700.00",GARDINER RICHARDSON LTD.
Regeneration and Local Services,Corporate Property and Land,Supplies and Services,342051,Computers and Communications,01/10/2019,3646593-04658,"9,000.00",CONCERTO SUPPORT SERVICES LTD.
Regeneration and Local Services,Technical Services CM0300,Construction work A908,908105,Construction work,01/10/2019,3646674-23334,659.85,JACK COUPE & SONS LTD T/A COUPE LINE.
Children and Young Peoples Services,Head of Education and Skills,Transport,230008,Contract Hire,01/10/2019,3646707-213,636.00,MR BRIAN JOHNSON T/A BRYS TAXIS.
Adult and Health Services,Head of Adults,Transport,230005,Contract Hire,01/10/2019,3646708-0819,564.30,MR D DONNELLY.
Children and Young Peoples Services,Head of Education and Skills,Transport,230007,Contract Hire,01/10/2019,3646799-53623,"2,208.00",STANLEY TRAVEL (NORTH EAST) LTD.
Regeneration and Local Services,Technical Services CM0300,Supplies and Services,304221,Equipment and Materials,01/10/2019,3646564-BBP52389,"3,676.80",BITUCHEM BUILDING PRODUCTS LTD.
Regeneration and Local Services,Corporate Property and Land,Supplies and Services,304221,Equipment and Materials,01/10/2019,3646649-195265,"4,353.00",GLOBAL LIFT EQUIPMENT LTD.
Regeneration and Local Services,Culture Sport and Tourism,Supplies and Services,304252,Equipment and Materials,01/10/2019,3646793-SI-19200039,"2,100.00",SPORTS MAINTENANCE SERVICES LTD.
Regeneration and Local Services,Environmental Services,Supplies and Services,304357,Equipment and Materials,01/10/2019,3646803-99508,"1,073.00",SUPERJET NORTH EAST.
Regeneration and Local Services,Development and Housing,Cap Exp on Grants & Other Financial Assistance (REFCUS),918501,Exp assets not owned by authority,01/10/2019,3646725-RED-09-2019-213,"1,365.00",NORTH EAST BUILDING PLASTICS LTD.
Dedicated Schools Grant BG0015,DSG High Needs Block,Supplies and Services,308011,Furniture,01/10/2019,3646720-9920,965.00,NELSONS OF DURHAM.
Adult and Health Services,Head of Adults,Supplies and Services,384504,Miscellaneous Expenses,01/10/2019,3646556-AHS04026,"5,797.71",AUCKLAND HOME SOLUTIONS CIC.
Children and Young Peoples Services,Head of Education and Skills,Supplies and Services,384199,Miscellaneous Expenses,01/10/2019,3646798-25S16P00071,898.63,STANLEY EVENTS LTD.
Adult and Health Services,Commissioning inc Supporting People,Supplies and Services,384700,Miscellaneous Expenses,01/10/2019,3646837-23,"4,950.00",WADDINGTON STREET CENTRE LTD.
Regeneration and Local Services,Culture Sport and Tourism,Supplies and Services,312013,Newspapers books and periodicals E312,01/10/2019,3646554-6123218,520.65,ASKEWS & HOLTS LIBRARY SERVICES LTD.
Regeneration and Local Services,Culture Sport and Tourism,Supplies and Services,312013,Newspapers books and periodicals E312,01/10/2019,3646554-6138388,523.43,ASKEWS & HOLTS LIBRARY SERVICES LTD.
Regeneration and Local Services,Culture Sport and Tourism,Supplies and Services,312013,Newspapers books and periodicals E312,01/10/2019,3646554-6140595,514.36,ASKEWS & HOLTS LIBRARY SERVICES LTD.
Adult and Health Services,Commissioning inc Supporting People,Third Party Payments,440999,Other third party payments E440,01/10/2019,3646683-182659,"3,750.00",JOURNEY ENTERPRISES LTD.
Adult and Health Services,Commissioning inc Supporting People,Third Party Payments,440999,Other third party payments E440,01/10/2019,3646683-182728,"5,625.00",JOURNEY ENTERPRISES LTD.
Children and Young Peoples Services,Head of Education and Skills,Transport,235005,Public Transport,01/10/2019,3646650-70033,720.00,GO GATESHEAD LTD.
Children and Young Peoples Services,Head of Education and Skills,Transport,235005,Public Transport,01/10/2019,3646650-70668,"348,480.00",GO GATESHEAD LTD.
Adult and Health Services,Head of Adults,Third Party Payments,478151,Purchase of Care,01/10/2019,3646625-DCVOID5/6,"3,876.00",EMBRACING CARE.
Adult and Health Services,Head of Adults,Third Party Payments,478151,Purchase of Care,01/10/2019,3646625-EVOID5/6,"3,876.00",EMBRACING CARE.
Adult and Health Services,Head of Adults,Third Party Payments,478151,Purchase of Care,01/10/2019,3646625-GLVOID56,"3,876.00",EMBRACING CARE.
Adult and Health Services,Head of Adults,Third Party Payments,478151,Purchase of Care,01/10/2019,3646625-KW/29JULYTO22SEPT19,"4,726.24",EMBRACING CARE.
Adult and Health Services,Head of Adults,Third Party Payments,478101,Purchase of Care,01/10/2019,3646724-0000050156,508.50,NORTH EAST AUTISM SOCIETY.
Adult and Health Services,Head of Adults,Third Party Payments,478101,Purchase of Care,01/10/2019,3646724-0000050218,852.50,NORTH EAST AUTISM SOCIETY.
Adult and Health Services,Head of Adults,Third Party Payments,478101,Purchase of Care,01/10/2019,3646724-0000050228,"1,220.40",NORTH EAST AUTISM SOCIETY.
Adult and Health Services,Head of Adults,Third Party Payments,478101,Purchase of Care,01/10/2019,3646776-878263,"1,192.80",SERVOCA NURSING & CARE LTD.
Adult and Health Services,Commissioning inc Supporting People,Third Party Payments,473111,Purchase of Care,01/10/2019,3646814-0003-SEPT19TOFEB20,"12,562.00",THE HUB OF WISHES.
Adult and Health Services,Commissioning inc Supporting People,Third Party Payments,473111,Purchase of Care,01/10/2019,3646837-34,"46,054.00",WADDINGTON STREET CENTRE LTD.
Children and Young Peoples Services,Head of Early Help Inclusion & Vulnerable Children.,Third Party Payments,410037,Rendered by Other Local Authorities,01/10/2019,3646723-26453,"1,224.00",NOMS AGENCY.
Children and Young Peoples Services,Head of Early Help Inclusion & Vulnerable Children.,Third Party Payments,410037,Rendered by Other Local Authorities,01/10/2019,3646723-26454,"6,480.00",NOMS AGENCY.
Regeneration and Local Services,Transport and Contracted Services,Third Party Payments,430106,Rendered by Private Contractors,01/10/2019,3646650-70858,"81,230.46",GO GATESHEAD LTD.
Regeneration and Local Services,Technical Services CM0300,Third Party Payments,430100,Rendered by Private Contractors,01/10/2019,3646674-23336,"1,091.00",JACK COUPE & SONS LTD T/A COUPE LINE.
Regeneration and Local Services,Technical Services CM0300,Third Party Payments,430100,Rendered by Private Contractors,01/10/2019,3646756-12007,"1,831.53",QUANTUM POWER CONNECTIONS LTD.
Regeneration and Local Services,Technical Services CM0300,Third Party Payments,430100,Rendered by Private Contractors,01/10/2019,3646756-12029,821.11,QUANTUM POWER CONNECTIONS LTD.
Regeneration and Local Services,Technical Services CM0300,Third Party Payments,430100,Rendered by Private Contractors,01/10/2019,3646777-20449,"46,747.31",SEYMOUR (CIVIL ENGINEERING CONTRACTORS) LTD.
Regeneration and Local Services,Corporate Property and Land,Third Party Payments,430100,Rendered by Private Contractors,01/10/2019,3646790-12195346,"1,562.97",SOUTH TYNESIDE COUNCIL.
Regeneration and Local Services,Technical Services CM0300,Third Party Payments,430100,Rendered by Private Contractors,01/10/2019,3646832-INV05683,"9,050.00",VELOCITY (UK) LTD.
Regeneration and Local Services,Transport and Contracted Services,Third Party Payments,430106,Rendered by Private Contractors,01/10/2019,3646840-15472,"25,190.35",WEARDALE MOTOR SERVICES LTD.
Children and Young Peoples Services,Head of Childrens Social Care,Third Party Payments,425041,Rendered by Voluntary Organisations,01/10/2019,3646549-ARC1920-292,860.00,ARC ADOPTION NORTH EAST.
Regeneration and Local Services,Environmental Services,Transport,215005,Running Costs of Vehicles,01/10/2019,3646732-466699,"18,851.40",OIL NRG LTD.
Regeneration and Local Services,Culture Sport and Tourism,Supplies and Services,338047,Services,01/10/2019,3646538-AWWMP0162,"2,860.00",A WAY WITH MEDIA PRODUCTIONS LTD.
Regeneration and Local Services,Culture Sport and Tourism,Supplies and Services,338047,Services,01/10/2019,3646762-GALATHEATRE150919,650.24,REG VARDY BAND.
Resources BK0010,Finance & Transactional Services,Intangible Assets,917003,Software capitalised implementation fees,01/10/2019,3646847-IN0039897,"1,943.15",ZELLIS UK LTD.
Children and Young Peoples Services,Head of Early Help Inclusion & Vulnerable Children.,Supplies and Services,372009,Subscriptions E372,01/10/2019,3646557-SIN062323,"2,060.00",AWARD SCHEME LTD.
Children and Young Peoples Services,Head of Early Help Inclusion & Vulnerable Children.,Supplies and Services,344033,Telephones,01/10/2019,3646828-205749,572.70,UNIFY BUSINESS SOLUTIONS LTD.
Children and Young Peoples Services,Head of Early Help Inclusion & Vulnerable Children.,Supplies and Services,344033,Telephones,01/10/2019,3646828-205828,572.70,UNIFY BUSINESS SOLUTIONS LTD.
Children and Young Peoples Services,Head of Childrens Social Care,Employees,080025,Agency Staff,02/10/2019,3648374-2432541,"106,367.83",GEOMETRIC RESULTS INTERNATIONAL.
Regeneration and Local Services,Environmental Services,Premises,106080,Centrally Controlled Rep and Maint,02/10/2019,3648236-42217228-61,"61,503.40",ADT FIRE & SECURITY PLC.
Regeneration and Local Services,Culture Sport and Tourism,Premises,106082,Centrally Controlled Rep and Maint,02/10/2019,3648499-01355461,"7,075.92",OTIS LTD T/A MOVEMAN SKG.
Regeneration and Local Services,Environmental Services,Premises,145023,Cleaning and Domestic Supplies,02/10/2019,3648487-914562487,"2,468.46",NORTHUMBRIAN WATER LTD.
Regeneration and Local Services,Culture Sport and Tourism,Supplies and Services,328041,Clothing uniforms and laundry E328,02/10/2019,3648580-IN195240,"2,458.70",SWIFT INDUSTRIAL SUPPLIES LTD.
Regeneration and Local Services,Technical Services CM0300,Supplies and Services,342051,Computers and Communications,02/10/2019,3648268-48012395,"5,416.00",BENTLEY SYSTEMS INTERNATIONAL LTD.
Resources BK0010,Digital and Customer Services,Supplies and Services,342051,Computers and Communications,02/10/2019,3648502-50936,"3,772.50",PANDA SECURITY UK LTD.
Adult and Health Services,Commissioning inc Supporting People,Supplies and Services,342225,Computers and Communications,02/10/2019,3648581-131379,"3,182.80",SWITCHSHOP LTD.
Resources BK0010,Digital and Customer Services,Supplies and Services,352001,Conference Expenses,02/10/2019,3648257-1920/1142,638.00,APSE.
Children and Young Peoples Services,Head of Childrens Social Care,Transport,230005,Contract Hire,02/10/2019,3648304-CLUB1939G,699.00,CLUBMAN CABS.
Children and Young Peoples Services,Head of Childrens Social Care,Transport,230005,Contract Hire,02/10/2019,3648304-CLUB1939K,624.00,CLUBMAN CABS.
Children and Young Peoples Services,Head of Childrens Social Care,Transport,230005,Contract Hire,02/10/2019,3648304-CLUB1939L,614.00,CLUBMAN CABS.
Children and Young Peoples Services,Head of Childrens Social Care,Transport,230005,Contract Hire,02/10/2019,3648322-109556,573.76,CROFT BUSINESS SERVICES (UK) LTD T/A CROFT TAXIS.
Children and Young Peoples Services,Head of Childrens Social Care,Transport,230005,Contract Hire,02/10/2019,3648322-109559,"1,723.84",CROFT BUSINESS SERVICES (UK) LTD T/A CROFT TAXIS.
Children and Young Peoples Services,Head of Education and Skills,Transport,230008,Contract Hire,02/10/2019,3648460-INV181,867.00,MICHAEL COBB T/A HAIL TAXIS.
Transformation and Partnerships,Partnerships & Community Engagement Div.,Cap Exp on Grants & Other Financial Assistance (REFCUS),918004,Contributions to other bodies 918004,02/10/2019,3648567-VOUCHER19NB-BASH010,"5,514.00",ST HELEN`S ALLOTMENT ASSOCIATION.
Regeneration and Local Services,Business Durham CL0850,Premises,120021,Energy Costs,02/10/2019,3648317-14360906,699.29,CORONA ENERGY RETAIL 2 LTD.
Regeneration and Local Services,Technical Services CM0300,Supplies and Services,304221,Equipment and Materials,02/10/2019,3648238-28695687,"1,119.96",AGGREGATE INDUSTRIES UK LTD.
Regeneration and Local Services,Technical Services CM0300,Supplies and Services,304221,Equipment and Materials,02/10/2019,3648238-28702926,"2,084.22",AGGREGATE INDUSTRIES UK LTD.
Regeneration and Local Services,Technical Services CM0300,Supplies and Services,304221,Equipment and Materials,02/10/2019,3648238-28798688,"1,375.02",AGGREGATE INDUSTRIES UK LTD.
Regeneration and Local Services,Technical Services CM0300,Supplies and Services,304221,Equipment and Materials,02/10/2019,3648238-28798689,"1,185.84",AGGREGATE INDUSTRIES UK LTD.
Regeneration and Local Services,Technical Services CM0300,Supplies and Services,304221,Equipment and Materials,02/10/2019,3648239-28798690,"1,229.76",AGGREGATE INDUSTRIES UK LTD.
Regeneration and Local Services,Technical Services CM0300,Supplies and Services,304221,Equipment and Materials,02/10/2019,3648239-28798691,"2,974.00",AGGREGATE INDUSTRIES UK LTD.
Regeneration and Local Services,Technical Services CM0300,Supplies and Services,304221,Equipment and Materials,02/10/2019,3648239-28805153,"1,032.12",AGGREGATE INDUSTRIES UK LTD.
Regeneration and Local Services,Technical Services CM0300,Supplies and Services,304221,Equipment and Materials,02/10/2019,3648239-28811884,"1,974.72",AGGREGATE INDUSTRIES UK LTD.
Regeneration and Local Services,Technical Services CM0300,Supplies and Services,304221,Equipment and Materials,02/10/2019,3648239-28818925,920.00,AGGREGATE INDUSTRIES UK LTD.
Regeneration and Local Services,Technical Services CM0300,Supplies and Services,304221,Equipment and Materials,02/10/2019,3648239-28818926,621.00,AGGREGATE INDUSTRIES UK LTD.
Regeneration and Local Services,Technical Services CM0300,Supplies and Services,304221,Equipment and Materials,02/10/2019,3648239-28820751,"1,795.40",AGGREGATE INDUSTRIES UK LTD.
Regeneration and Local Services,Technical Services CM0300,Supplies and Services,304221,Equipment and Materials,02/10/2019,3648239-28820752,"1,229.76",AGGREGATE INDUSTRIES UK LTD.
Regeneration and Local Services,Technical Services CM0300,Supplies and Services,304221,Equipment and Materials,02/10/2019,3648239-28820754,"1,005.00",AGGREGATE INDUSTRIES UK LTD.
Regeneration and Local Services,Technical Services CM0300,Supplies and Services,304221,Equipment and Materials,02/10/2019,3648239-28820755,805.20,AGGREGATE INDUSTRIES UK LTD.
Regeneration and Local Services,Technical Services CM0300,Supplies and Services,304221,Equipment and Materials,02/10/2019,3648239-28820757,"1,135.38",AGGREGATE INDUSTRIES UK LTD.
Regeneration and Local Services,Corporate Property and Land,Supplies and Services,304221,Equipment and Materials,02/10/2019,3648307-8563,505.00,COMMERCIAL COVERINGS LTD.
Children and Young Peoples Services,Head of Education and Skills,Supplies and Services,304403,Equipment and Materials,02/10/2019,3648308-CTA/014,"2,710.10",COMMUNICATORS TRAINING ASSOCIATES LTD.
Children and Young Peoples Services,Head of Education and Skills,Supplies and Services,304403,Equipment and Materials,02/10/2019,3648308-CTA/015,"1,490.50",COMMUNICATORS TRAINING ASSOCIATES LTD.
Regeneration and Local Services,Corporate Property and Land,Supplies and Services,304221,Equipment and Materials,02/10/2019,3648348-059-251020,644.33,EDMUNDSON ELECTRICAL LTD.
Regeneration and Local Services,Technical Services CM0300,Supplies and Services,304221,Equipment and Materials,02/10/2019,3648356-1908\236,"1,225.77",EPPLETON QUARRY PRODUCTS LTD.
Resources BK0010,Digital and Customer Services,Supplies and Services,304303,Equipment and Materials,02/10/2019,3648401-SIN453118,"2,121.00",INFORMATION & DATA NETWORK SUPPLIES LTD (IDN).
Resources BK0010,Digital and Customer Services,Supplies and Services,304303,Equipment and Materials,02/10/2019,3648401-SIN453120,"2,121.00",INFORMATION & DATA NETWORK SUPPLIES LTD (IDN).
Resources BK0010,Digital and Customer Services,Supplies and Services,304303,Equipment and Materials,02/10/2019,3648401-SIN453122,"2,475.00",INFORMATION & DATA NETWORK SUPPLIES LTD (IDN).
Resources BK0010,Digital and Customer Services,Supplies and Services,304303,Equipment and Materials,02/10/2019,3648403-4523632,647.90,INSIGHT DIRECT (UK) LTD.
Resources BK0010,Digital and Customer Services,Supplies and Services,304639,Equipment and Materials,02/10/2019,3648403-4523684,872.10,INSIGHT DIRECT (UK) LTD.
Resources BK0010,Digital and Customer Services,Supplies and Services,304639,Equipment and Materials,02/10/2019,3648403-4524978,722.55,INSIGHT DIRECT (UK) LTD.
Regeneration and Local Services,Culture Sport and Tourism,Supplies and Services,304259,Equipment and Materials,02/10/2019,3648416-949755,822.60,JP LENNARD LTD.
Regeneration and Local Services,Environmental Services,Supplies and Services,304259,Equipment and Materials,02/10/2019,3648427-SI02-0240545,"1,043.72",KILLGERM CHEMICALS LTD.
Regeneration and Local Services,Environmental Services,Supplies and Services,304221,Equipment and Materials,02/10/2019,3648475-064695,531.75,NEW ROW FARM NURSERIES.
Regeneration and Local Services,Environmental Services,Supplies and Services,304259,Equipment and Materials,02/10/2019,3648522-2123016108,"2,980.00",PRECIA-MOLEN UK LTD T/A SHERING WEIGHING LTD.
Regeneration and Local Services,Environmental Services,Supplies and Services,304259,Equipment and Materials,02/10/2019,3648522-2123016109,"2,980.00",PRECIA-MOLEN UK LTD T/A SHERING WEIGHING LTD.
Regeneration and Local Services,Environmental Services,Supplies and Services,304259,Equipment and Materials,02/10/2019,3648522-2123016110,"1,490.00",PRECIA-MOLEN UK LTD T/A SHERING WEIGHING LTD.
Regeneration and Local Services,Environmental Services,Supplies and Services,304259,Equipment and Materials,02/10/2019,3648522-2123016111,"2,980.00",PRECIA-MOLEN UK LTD T/A SHERING WEIGHING LTD.
Regeneration and Local Services,Environmental Services,Supplies and Services,304259,Equipment and Materials,02/10/2019,3648522-2123016112,"2,980.00",PRECIA-MOLEN UK LTD T/A SHERING WEIGHING LTD.
Regeneration and Local Services,Technical Services CM0300,Supplies and Services,304221,Equipment and Materials,02/10/2019,3648525-18205,600.00,PRM FABRICATIONS LTD.
Regeneration and Local Services,Technical Services CM0300,Supplies and Services,304221,Equipment and Materials,02/10/2019,3648525-18208,875.00,PRM FABRICATIONS LTD.
Resources BK0010,Digital and Customer Services,Supplies and Services,304040,Equipment and Materials,02/10/2019,3648526-182132,"1,100.00",PROCESSFLOWS (UK) LTD.
Regeneration and Local Services,Technical Services CM0300,Supplies and Services,304221,Equipment and Materials,02/10/2019,3648583-9040635727,949.58,TARMAC TRADING LTD.
Regeneration and Local Services,Technical Services CM0300,Supplies and Services,304221,Equipment and Materials,02/10/2019,3648583-9040702555,910.56,TARMAC TRADING LTD.
Children and Young Peoples Services,Head of Early Help Inclusion & Vulnerable Children.,Supplies and Services,308011,Furniture,02/10/2019,3648495-0000155869,627.10,ONLINE ERGONOMICS LTD.
Regeneration and Local Services,Culture Sport and Tourism,Supplies and Services,384199,Miscellaneous Expenses,02/10/2019,3648249-001,"1,800.00",AMANDA WOODS.
Children and Young Peoples Services,Head of Education and Skills,Supplies and Services,384199,Miscellaneous Expenses,02/10/2019,3648315-19/20100,"5,320.00",CORNFORTH PARTNERSHIP.
Resources BK0010,Finance & Transactional Services,Supplies and Services,384999,Miscellaneous Expenses,02/10/2019,3648393-8STATIONRD31/8/19,"1,250.00",HOLDSWORTH`S HOUSE CLEARANCE SERVICES.
Transformation and Partnerships,Partnerships & Community Engagement Div.,Supplies and Services,384086,Miscellaneous Expenses,02/10/2019,3648448-VOUCHER19NB-SPEN009,"3,375.00",MAD ALICE THEATRE COMPANY LTD.
Children and Young Peoples Services,Head of Education and Skills,Supplies and Services,384199,Miscellaneous Expenses,02/10/2019,3648496-INV-0505,"1,683.00",OPTIMUM SKILLS LTD.
Children and Young Peoples Services,Head of Education and Skills,Supplies and Services,384199,Miscellaneous Expenses,02/10/2019,3648496-INV-0506,"1,995.00",OPTIMUM SKILLS LTD.
Transformation and Partnerships,Partnerships & Community Engagement Div.,Supplies and Services,384086,Miscellaneous Expenses,02/10/2019,3648520-VOUCHER19NB-DCTY028,"1,000.00",PITTINGTON PLAYGROUP.
Children and Young Peoples Services,Head of Education and Skills,Supplies and Services,384199,Miscellaneous Expenses,02/10/2019,3648599-RITHIR/00013765,"3,577.10",THIRTEEN HOUSING GROUP LTD.
Adult and Health Services,Head of Adults,Third Party Payments,440062,Other third party payments E440,02/10/2019,3647646-1929248H,"1,525.43",COMFORT CALL LTD.
Children and Young Peoples Services,Head of Education and Skills,Third Party Payments,440999,Other third party payments E440,02/10/2019,3648308-CTA/016,"2,085.10",COMMUNICATORS TRAINING ASSOCIATES LTD.
Children and Young Peoples Services,Head of Education and Skills,Third Party Payments,440999,Other third party payments E440,02/10/2019,3648308-CTA/017,"3,231.75",COMMUNICATORS TRAINING ASSOCIATES LTD.
Children and Young Peoples Services,Head of Childrens Social Care,Third Party Payments,440062,Other third party payments E440,02/10/2019,3646981-PIG_32124,"4,850.28",DALE CARE LTD.
Children and Young Peoples Services,Head of Childrens Social Care,Third Party Payments,440062,Other third party payments E440,02/10/2019,3647004-PIG_31292,"1,792.02",EMBRACING CARE.
Children and Young Peoples Services,Head of Childrens Social Care,Third Party Payments,440062,Other third party payments E440,02/10/2019,3647092-PIG_31288,"1,580.97",KELLY PARK LTD..
Adult and Health Services,Head of Adults,Third Party Payments,440062,Other third party payments E440,02/10/2019,3647174-PIG_31287,"2,576.94",PERFECT CARE LTD.
Adult and Health Services,Head of Adults,Third Party Payments,440062,Other third party payments E440,02/10/2019,3647175-PIG_31279,840.00,PINPOINT HEALTH & SOCIAL CARE.
Adult and Health Services,Head of Adults,Third Party Payments,440062,Other third party payments E440,02/10/2019,3647183-PIG_31282,"1,258.85",PREMIER COMMUNITY CARE LTD.
Children and Young Peoples Services,Head of Childrens Social Care,Third Party Payments,440062,Other third party payments E440,02/10/2019,3647247-PIG_31280,636.83,SUPPORTIVE SRC LTD.
Adult and Health Services,Head of Adults,Third Party Payments,440062,Other third party payments E440,02/10/2019,3648163-1929486H,"1,451.38",SUPPORTIVE SRC LTD.
Transformation and Partnerships,Business Support,Supplies and Services,340001,Postages E340,02/10/2019,3648546-9059489400,"1,448.91",ROYAL MAIL GROUP PLC.
Regeneration and Local Services,Culture Sport and Tourism,Supplies and Services,324001,Provisions E324,02/10/2019,3648466-905438961,738.27,MOLSON COORS BREWING COMPANY (UK) LTD.
Adult and Health Services,Head of Adults,Third Party Payments,470101,Purchase of Care,02/10/2019,3646848-2573620,"1,523.34",A CHARLES THOMAS (CARE) LTD.
Adult and Health Services,Head of Adults,Third Party Payments,470101,Purchase of Care,02/10/2019,3646848-2573621,"2,369.64",A CHARLES THOMAS (CARE) LTD.
Adult and Health Services,Head of Adults,Third Party Payments,470101,Purchase of Care,02/10/2019,3646848-2573622,"2,369.64",A CHARLES THOMAS (CARE) LTD.
Adult and Health Services,Head of Adults,Third Party Payments,470101,Purchase of Care,02/10/2019,3646848-2573623,"2,369.64",A CHARLES THOMAS (CARE) LTD.
Adult and Health Services,Head of Adults,Third Party Payments,470101,Purchase of Care,02/10/2019,3646848-2573624,"2,369.64",A CHARLES THOMAS (CARE) LTD.
Adult and Health Services,Head of Adults,Third Party Payments,470101,Purchase of Care,02/10/2019,3646848-2573625,"2,369.64",A CHARLES THOMAS (CARE) LTD.
Adult and Health Services,Head of Adults,Third Party Payments,470101,Purchase of Care,02/10/2019,3646848-2573626,"2,369.64",A CHARLES THOMAS (CARE) LTD.
Adult and Health Services,Head of Adults,Third Party Payments,470101,Purchase of Care,02/10/2019,3646848-2573627,"2,369.64",A CHARLES THOMAS (CARE) LTD.
Adult and Health Services,Head of Adults,Third Party Payments,470101,Purchase of Care,02/10/2019,3646848-2573628,592.41,A CHARLES THOMAS (CARE) LTD.
Adult and Health Services,Head of Adults,Third Party Payments,470101,Purchase of Care,02/10/2019,3646848-2573629,"2,369.64",A CHARLES THOMAS (CARE) LTD.
Adult and Health Services,Head of Adults,Third Party Payments,470101,Purchase of Care,02/10/2019,3646848-2573630,"1,354.08",A CHARLES THOMAS (CARE) LTD.
Adult and Health Services,Head of Adults,Third Party Payments,470101,Purchase of Care,02/10/2019,3646848-2573632,"2,369.64",A CHARLES THOMAS (CARE) LTD.
Adult and Health Services,Head of Adults,Third Party Payments,470101,Purchase of Care,02/10/2019,3646848-2573633,"2,369.64",A CHARLES THOMAS (CARE) LTD.
Adult and Health Services,Head of Adults,Third Party Payments,470101,Purchase of Care,02/10/2019,3646848-2573634,"2,369.64",A CHARLES THOMAS (CARE) LTD.
Adult and Health Services,Head of Adults,Third Party Payments,470101,Purchase of Care,02/10/2019,3646848-2573635,"2,369.64",A CHARLES THOMAS (CARE) LTD.
Adult and Health Services,Head of Adults,Third Party Payments,470101,Purchase of Care,02/10/2019,3646848-2573636,"2,369.64",A CHARLES THOMAS (CARE) LTD.
Adult and Health Services,Head of Adults,Third Party Payments,470101,Purchase of Care,02/10/2019,3646848-2573637,"2,369.64",A CHARLES THOMAS (CARE) LTD.
Adult and Health Services,Head of Adults,Third Party Payments,470101,Purchase of Care,02/10/2019,3646848-2573638,"2,657.20",A CHARLES THOMAS (CARE) LTD.
Adult and Health Services,Head of Adults,Third Party Payments,470101,Purchase of Care,02/10/2019,3646848-2573639,"2,369.64",A CHARLES THOMAS (CARE) LTD.
Adult and Health Services,Head of Adults,Third Party Payments,470101,Purchase of Care,02/10/2019,3646848-2573640,"2,369.64",A CHARLES THOMAS (CARE) LTD.
Adult and Health Services,Head of Adults,Third Party Payments,470101,Purchase of Care,02/10/2019,3646848-2573641,"2,369.64",A CHARLES THOMAS (CARE) LTD.
Adult and Health Services,Head of Adults,Third Party Payments,470101,Purchase of Care,02/10/2019,3646848-2573642,"2,369.64",A CHARLES THOMAS (CARE) LTD.
Adult and Health Services,Head of Adults,Third Party Payments,470101,Purchase of Care,02/10/2019,3646848-2573643,"2,369.64",A CHARLES THOMAS (CARE) LTD.
Adult and Health Services,Head of Adults,Third Party Payments,470101,Purchase of Care,02/10/2019,3646848-2573644,"2,369.64",A CHARLES THOMAS (CARE) LTD.
Adult and Health Services,Head of Adults,Third Party Payments,470101,Purchase of Care,02/10/2019,3646848-2573645,"2,369.64",A CHARLES THOMAS (CARE) LTD.
Adult and Health Services,Head of Adults,Third Party Payments,470101,Purchase of Care,02/10/2019,3646848-2573646,"2,369.64",A CHARLES THOMAS (CARE) LTD.
Adult and Health Services,Head of Adults,Third Party Payments,478101,Purchase of Care,02/10/2019,3647294-1926337H,"3,444.00",ACCEPT CARE LTD.
Adult and Health Services,Head of Adults,Third Party Payments,478101,Purchase of Care,02/10/2019,3647294-1926395H,"4,620.00",ACCEPT CARE LTD.
Adult and Health Services,Head of Adults,Third Party Payments,478101,Purchase of Care,02/10/2019,3647294-1926496H,"3,234.00",ACCEPT CARE LTD.
Adult and Health Services,Head of Adults,Third Party Payments,478101,Purchase of Care,02/10/2019,3647294-1926709H,934.28,ACCEPT CARE LTD.
Adult and Health Services,Head of Adults,Third Party Payments,478101,Purchase of Care,02/10/2019,3647294-1926771H,"5,198.68",ACCEPT CARE LTD.
Adult and Health Services,Head of Adults,Third Party Payments,478101,Purchase of Care,02/10/2019,3647294-1926802H,934.28,ACCEPT CARE LTD.
Adult and Health Services,Head of Adults,Third Party Payments,478101,Purchase of Care,02/10/2019,3647294-1926812H,934.28,ACCEPT CARE LTD.
Adult and Health Services,Head of Adults,Third Party Payments,478101,Purchase of Care,02/10/2019,3647294-1926866H,934.28,ACCEPT CARE LTD.
Adult and Health Services,Head of Adults,Third Party Payments,478101,Purchase of Care,02/10/2019,3647294-1926900H,934.28,ACCEPT CARE LTD.
Adult and Health Services,Head of Adults,Third Party Payments,478101,Purchase of Care,02/10/2019,3647294-1926937H,"4,582.68",ACCEPT CARE LTD.
Adult and Health Services,Head of Adults,Third Party Payments,478101,Purchase of Care,02/10/2019,3647294-1926940H,"1,046.28",ACCEPT CARE LTD.
Adult and Health Services,Head of Adults,Third Party Payments,478101,Purchase of Care,02/10/2019,3647294-1926944H,"3,836.00",ACCEPT CARE LTD.
Adult and Health Services,Head of Adults,Third Party Payments,478101,Purchase of Care,02/10/2019,3647294-1927016H,934.28,ACCEPT CARE LTD.
Adult and Health Services,Head of Adults,Third Party Payments,478101,Purchase of Care,02/10/2019,3647294-1927022H,934.28,ACCEPT CARE LTD.
Adult and Health Services,Head of Adults,Third Party Payments,478101,Purchase of Care,02/10/2019,3647294-1927029H,"3,785.60",ACCEPT CARE LTD.
Adult and Health Services,Head of Adults,Third Party Payments,478101,Purchase of Care,02/10/2019,3647294-1927034H,934.28,ACCEPT CARE LTD.
Adult and Health Services,Head of Adults,Third Party Payments,478101,Purchase of Care,02/10/2019,3647294-1927241H,"6,468.00",ACCEPT CARE LTD.
Adult and Health Services,Head of Adults,Third Party Payments,478101,Purchase of Care,02/10/2019,3647294-1927446H,"4,940.16",ACCEPT CARE LTD.
Adult and Health Services,Head of Adults,Third Party Payments,478101,Purchase of Care,02/10/2019,3647294-1927467H,"2,548.00",ACCEPT CARE LTD.
Adult and Health Services,Head of Adults,Third Party Payments,478101,Purchase of Care,02/10/2019,3647294-1927529H,"8,472.80",ACCEPT CARE LTD.
Adult and Health Services,Head of Adults,Third Party Payments,478101,Purchase of Care,02/10/2019,3647294-1927548H,"6,468.00",ACCEPT CARE LTD.
Adult and Health Services,Head of Adults,Third Party Payments,478101,Purchase of Care,02/10/2019,3647294-1927656H,"2,789.72",ACCEPT CARE LTD.
Adult and Health Services,Head of Adults,Third Party Payments,478101,Purchase of Care,02/10/2019,3647294-1927677H,"5,264.00",ACCEPT CARE LTD.
Adult and Health Services,Head of Adults,Third Party Payments,478101,Purchase of Care,02/10/2019,3647294-1927711H,934.28,ACCEPT CARE LTD.
Adult and Health Services,Head of Adults,Third Party Payments,478101,Purchase of Care,02/10/2019,3647294-1927728H,"4,106.68",ACCEPT CARE LTD.
Adult and Health Services,Head of Adults,Third Party Payments,478101,Purchase of Care,02/10/2019,3647294-1927791H,"2,364.16",ACCEPT CARE LTD.
Adult and Health Services,Head of Adults,Third Party Payments,478101,Purchase of Care,02/10/2019,3647294-1927792H,"3,374.00",ACCEPT CARE LTD.
Adult and Health Services,Head of Adults,Third Party Payments,478101,Purchase of Care,02/10/2019,3647294-1927889H,"6,748.00",ACCEPT CARE LTD.
Adult and Health Services,Head of Adults,Third Party Payments,478101,Purchase of Care,02/10/2019,3647294-1927896H,"8,362.68",ACCEPT CARE LTD.
Adult and Health Services,Head of Adults,Third Party Payments,478101,Purchase of Care,02/10/2019,3647294-1927910H,"3,537.32",ACCEPT CARE LTD.
Adult and Health Services,Head of Adults,Third Party Payments,478101,Purchase of Care,02/10/2019,3647294-1928005H,"6,748.00",ACCEPT CARE LTD.
Adult and Health Services,Head of Adults,Third Party Payments,478101,Purchase of Care,02/10/2019,3647294-1928100H,"3,234.00",ACCEPT CARE LTD.
Adult and Health Services,Head of Adults,Third Party Payments,478101,Purchase of Care,02/10/2019,3647294-1928172H,"1,748.16",ACCEPT CARE LTD.
Adult and Health Services,Head of Adults,Third Party Payments,478101,Purchase of Care,02/10/2019,3647294-1928666H,"1,804.16",ACCEPT CARE LTD.
Adult and Health Services,Head of Adults,Third Party Payments,478101,Purchase of Care,02/10/2019,3647294-1929125H,"1,046.28",ACCEPT CARE LTD.
Adult and Health Services,Head of Adults,Third Party Payments,478101,Purchase of Care,02/10/2019,3647294-1929182H,"5,391.18",ACCEPT CARE LTD.
Adult and Health Services,Head of Adults,Third Party Payments,478101,Purchase of Care,02/10/2019,3647294-1929245H,"1,466.28",ACCEPT CARE LTD.
Adult and Health Services,Head of Adults,Third Party Payments,478101,Purchase of Care,02/10/2019,3647294-1929471H,"5,929.00",ACCEPT CARE LTD.
Adult and Health Services,Head of Adults,Third Party Payments,473101,Purchase of Care,02/10/2019,3647294-1929504D,564.00,ACCEPT CARE LTD.
Adult and Health Services,Head of Adults,Third Party Payments,478101,Purchase of Care,02/10/2019,3647294-1929572H,"1,206.76",ACCEPT CARE LTD.
Adult and Health Services,Head of Adults,Third Party Payments,478101,Purchase of Care,02/10/2019,3647294-1929634H,"3,430.00",ACCEPT CARE LTD.
Adult and Health Services,Head of Adults,Third Party Payments,478101,Purchase of Care,02/10/2019,3647294-1929806H,"2,812.16",ACCEPT CARE LTD.
Adult and Health Services,Head of Adults,Third Party Payments,478101,Purchase of Care,02/10/2019,3647294-1930521H,934.28,ACCEPT CARE LTD.
Adult and Health Services,Head of Adults,Third Party Payments,478101,Purchase of Care,02/10/2019,3647294-1930714H,"1,580.16",ACCEPT CARE LTD.
Adult and Health Services,Head of Adults,Third Party Payments,478101,Purchase of Care,02/10/2019,3647294-1930819H,934.28,ACCEPT CARE LTD.
Adult and Health Services,Head of Adults,Third Party Payments,478101,Purchase of Care,02/10/2019,3647294-1930992H,"1,092.00",ACCEPT CARE LTD.
Adult and Health Services,Head of Adults,Third Party Payments,478101,Purchase of Care,02/10/2019,3647294-1931101H,"3,248.00",ACCEPT CARE LTD.
Adult and Health Services,Head of Adults,Third Party Payments,478101,Purchase of Care,02/10/2019,3647294-1931154H,"1,234.76",ACCEPT CARE LTD.
Adult and Health Services,Head of Adults,Third Party Payments,478101,Purchase of Care,02/10/2019,3647294-1931169H,934.28,ACCEPT CARE LTD.
Adult and Health Services,Head of Adults,Third Party Payments,473101,Purchase of Care,02/10/2019,3647294-1931402D,564.00,ACCEPT CARE LTD.
Adult and Health Services,Head of Adults,Third Party Payments,478101,Purchase of Care,02/10/2019,3647294-1931617H,931.48,ACCEPT CARE LTD.
Adult and Health Services,Head of Adults,Third Party Payments,478101,Purchase of Care,02/10/2019,3647294-1931808H,"1,804.16",ACCEPT CARE LTD.
Adult and Health Services,Head of Adults,Third Party Payments,473101,Purchase of Care,02/10/2019,3647294-1931940D,"1,692.60",ACCEPT CARE LTD.
Adult and Health Services,Head of Adults,Third Party Payments,478101,Purchase of Care,02/10/2019,3647294-1932079H,934.28,ACCEPT CARE LTD.
Adult and Health Services,Head of Adults,Third Party Payments,478101,Purchase of Care,02/10/2019,3647294-1932303H,"6,664.00",ACCEPT CARE LTD.
Adult and Health Services,Head of Adults,Third Party Payments,478101,Purchase of Care,02/10/2019,3647294-1932953H,"3,864.00",ACCEPT CARE LTD.
Adult and Health Services,Head of Adults,Third Party Payments,478101,Purchase of Care,02/10/2019,3647294-1932954H,"7,448.00",ACCEPT CARE LTD.
Adult and Health Services,Head of Adults,Third Party Payments,478101,Purchase of Care,02/10/2019,3647294-1932956H,"6,664.00",ACCEPT CARE LTD.
Adult and Health Services,Head of Adults,Third Party Payments,478101,Purchase of Care,02/10/2019,3647294-1932957H,"7,742.00",ACCEPT CARE LTD.
Adult and Health Services,Head of Adults,Third Party Payments,473101,Purchase of Care,02/10/2019,3647530-1919918H,720.00,ACTION DEAFNESS LTD.
Adult and Health Services,Head of Adults,Third Party Payments,473101,Purchase of Care,02/10/2019,3647530-1926719H,"1,422.00",ACTION DEAFNESS LTD.
Adult and Health Services,Head of Adults,Third Party Payments,470101,Purchase of Care,02/10/2019,3646888-2575192,"2,185.28",AKARI CARE LTD.
Adult and Health Services,Head of Adults,Third Party Payments,474101,Purchase of Care,02/10/2019,3646889-2576328,"2,466.24",AKARI CARE LTD.
Adult and Health Services,Head of Adults,Third Party Payments,470101,Purchase of Care,02/10/2019,3646889-2576330,"2,877.42",AKARI CARE LTD.
Adult and Health Services,Head of Adults,Third Party Payments,470101,Purchase of Care,02/10/2019,3646889-2576331,"2,369.64",AKARI CARE LTD.
Adult and Health Services,Head of Adults,Third Party Payments,470101,Purchase of Care,02/10/2019,3646889-2576333,"2,369.64",AKARI CARE LTD.
Adult and Health Services,Head of Adults,Third Party Payments,470101,Purchase of Care,02/10/2019,3646889-2576334,"2,369.64",AKARI CARE LTD.
Adult and Health Services,Head of Adults,Third Party Payments,470101,Purchase of Care,02/10/2019,3646889-2576335,"2,369.64",AKARI CARE LTD.
Adult and Health Services,Head of Adults,Third Party Payments,474101,Purchase of Care,02/10/2019,3646889-2576336,"2,466.24",AKARI CARE LTD.
Adult and Health Services,Head of Adults,Third Party Payments,470101,Purchase of Care,02/10/2019,3646889-2576338,787.38,AKARI CARE LTD.
Adult and Health Services,Head of Adults,Third Party Payments,474101,Purchase of Care,02/10/2019,3646889-2576339,"1,233.12",AKARI CARE LTD.
Adult and Health Services,Head of Adults,Third Party Payments,474101,Purchase of Care,02/10/2019,3646889-2576341,"2,466.24",AKARI CARE LTD.
Adult and Health Services,Head of Adults,Third Party Payments,470101,Purchase of Care,02/10/2019,3646889-2576343,"2,369.64",AKARI CARE LTD.
Adult and Health Services,Head of Adults,Third Party Payments,470101,Purchase of Care,02/10/2019,3646889-2576344,"2,369.64",AKARI CARE LTD.
Adult and Health Services,Head of Adults,Third Party Payments,471101,Purchase of Care,02/10/2019,3646889-2576345,"2,457.00",AKARI CARE LTD.
Adult and Health Services,Head of Adults,Third Party Payments,471101,Purchase of Care,02/10/2019,3646889-2576346,"2,457.00",AKARI CARE LTD.
Adult and Health Services,Head of Adults,Third Party Payments,470101,Purchase of Care,02/10/2019,3646889-2576347,"2,369.64",AKARI CARE LTD.
Adult and Health Services,Head of Adults,Third Party Payments,470101,Purchase of Care,02/10/2019,3646889-2576348,"2,449.64",AKARI CARE LTD.
Adult and Health Services,Head of Adults,Third Party Payments,471101,Purchase of Care,02/10/2019,3646889-2576349,"2,457.00",AKARI CARE LTD.
Adult and Health Services,Head of Adults,Third Party Payments,474101,Purchase of Care,02/10/2019,3646889-2576350,"2,466.24",AKARI CARE LTD.
Adult and Health Services,Head of Adults,Third Party Payments,474101,Purchase of Care,02/10/2019,3646889-2576352,"2,466.24",AKARI CARE LTD.
Adult and Health Services,Head of Adults,Third Party Payments,470101,Purchase of Care,02/10/2019,3646889-2576354,"2,369.64",AKARI CARE LTD.
Adult and Health Services,Head of Adults,Third Party Payments,471101,Purchase of Care,02/10/2019,3646889-2576355,"2,457.00",AKARI CARE LTD.
Adult and Health Services,Head of Adults,Third Party Payments,470101,Purchase of Care,02/10/2019,3646889-2576356,"2,449.64",AKARI CARE LTD.
Adult and Health Services,Head of Adults,Third Party Payments,470101,Purchase of Care,02/10/2019,3646889-2576357,"2,369.64",AKARI CARE LTD.
Adult and Health Services,Head of Adults,Third Party Payments,474101,Purchase of Care,02/10/2019,3646889-2576358,"2,466.24",AKARI CARE LTD.
Adult and Health Services,Head of Adults,Third Party Payments,474101,Purchase of Care,02/10/2019,3646889-2576360,"2,466.24",AKARI CARE LTD.
Adult and Health Services,Head of Adults,Third Party Payments,470101,Purchase of Care,02/10/2019,3646889-2576362,"2,369.64",AKARI CARE LTD.
Adult and Health Services,Head of Adults,Third Party Payments,470101,Purchase of Care,02/10/2019,3646889-2576363,"2,369.64",AKARI CARE LTD.
Adult and Health Services,Head of Adults,Third Party Payments,474101,Purchase of Care,02/10/2019,3646889-2576364,"1,233.12",AKARI CARE LTD.
Adult and Health Services,Head of Adults,Third Party Payments,471101,Purchase of Care,02/10/2019,3646889-2576366,"2,457.00",AKARI CARE LTD.
Adult and Health Services,Head of Adults,Third Party Payments,474101,Purchase of Care,02/10/2019,3646889-2576367,"1,233.12",AKARI CARE LTD.
Adult and Health Services,Head of Adults,Third Party Payments,471101,Purchase of Care,02/10/2019,3646889-2576369,"2,457.00",AKARI CARE LTD.
Adult and Health Services,Head of Adults,Third Party Payments,471101,Purchase of Care,02/10/2019,3646889-2576370,"2,457.00",AKARI CARE LTD.
Adult and Health Services,Head of Adults,Third Party Payments,471101,Purchase of Care,02/10/2019,3646889-2576371,"2,457.00",AKARI CARE LTD.
Adult and Health Services,Head of Adults,Third Party Payments,471101,Purchase of Care,02/10/2019,3646889-2576372,"2,457.00",AKARI CARE LTD.
Adult and Health Services,Head of Adults,Third Party Payments,471101,Purchase of Care,02/10/2019,3646889-2576373,"2,457.00",AKARI CARE LTD.
Adult and Health Services,Head of Adults,Third Party Payments,471101,Purchase of Care,02/10/2019,3646889-2576374,"2,457.00",AKARI CARE LTD.
Adult and Health Services,Head of Adults,Third Party Payments,471101,Purchase of Care,02/10/2019,3646889-2576375,"2,457.00",AKARI CARE LTD.
Adult and Health Services,Head of Adults,Third Party Payments,471101,Purchase of Care,02/10/2019,3646889-2576376,"2,457.00",AKARI CARE LTD.
Adult and Health Services,Head of Adults,Third Party Payments,470101,Purchase of Care,02/10/2019,3646889-2576377,"2,369.64",AKARI CARE LTD.
Adult and Health Services,Head of Adults,Third Party Payments,470101,Purchase of Care,02/10/2019,3646889-2576378,"2,369.64",AKARI CARE LTD.
Adult and Health Services,Head of Adults,Third Party Payments,470101,Purchase of Care,02/10/2019,3646889-2576379,"2,369.64",AKARI CARE LTD.
Adult and Health Services,Head of Adults,Third Party Payments,471101,Purchase of Care,02/10/2019,3646889-2576380,"2,457.00",AKARI CARE LTD.
Adult and Health Services,Head of Adults,Third Party Payments,471101,Purchase of Care,02/10/2019,3646890-2575166,"3,632.43",AKARI CARE LTD.
Adult and Health Services,Head of Adults,Third Party Payments,474101,Purchase of Care,02/10/2019,3646890-2575167,"1,082.00",AKARI CARE LTD.
Adult and Health Services,Head of Adults,Third Party Payments,474101,Purchase of Care,02/10/2019,3646890-2575168,840.00,AKARI CARE LTD.
Adult and Health Services,Head of Adults,Third Party Payments,474101,Purchase of Care,02/10/2019,3646890-2575170,"1,082.00",AKARI CARE LTD.
Adult and Health Services,Head of Adults,Third Party Payments,470101,Purchase of Care,02/10/2019,3646890-2575171,"1,052.00",AKARI CARE LTD.
Adult and Health Services,Head of Adults,Third Party Payments,470101,Purchase of Care,02/10/2019,3646891-2574849,"1,438.71",AKARI CARE LTD.
Adult and Health Services,Head of Adults,Third Party Payments,470101,Purchase of Care,02/10/2019,3646891-2574850,"2,369.64",AKARI CARE LTD.
Adult and Health Services,Head of Adults,Third Party Payments,470101,Purchase of Care,02/10/2019,3646891-2574851,"2,369.64",AKARI CARE LTD.
Adult and Health Services,Head of Adults,Third Party Payments,470101,Purchase of Care,02/10/2019,3646891-2574852,"2,369.64",AKARI CARE LTD.
Adult and Health Services,Head of Adults,Third Party Payments,471101,Purchase of Care,02/10/2019,3646891-2574853,"2,457.00",AKARI CARE LTD.
Adult and Health Services,Head of Adults,Third Party Payments,471101,Purchase of Care,02/10/2019,3646891-2574854,"2,457.00",AKARI CARE LTD.
Adult and Health Services,Head of Adults,Third Party Payments,471101,Purchase of Care,02/10/2019,3646891-2574855,"2,457.00",AKARI CARE LTD.
Adult and Health Services,Head of Adults,Third Party Payments,470101,Purchase of Care,02/10/2019,3646891-2574856,"2,369.64",AKARI CARE LTD.
Adult and Health Services,Head of Adults,Third Party Payments,471101,Purchase of Care,02/10/2019,3646891-2574857,"2,457.00",AKARI CARE LTD.
Adult and Health Services,Head of Adults,Third Party Payments,471101,Purchase of Care,02/10/2019,3646891-2574858,"2,457.00",AKARI CARE LTD.
Adult and Health Services,Head of Adults,Third Party Payments,470101,Purchase of Care,02/10/2019,3646891-2574859,"2,369.64",AKARI CARE LTD.
Adult and Health Services,Head of Adults,Third Party Payments,471101,Purchase of Care,02/10/2019,3646891-2574860,"2,457.00",AKARI CARE LTD.
Adult and Health Services,Head of Adults,Third Party Payments,470101,Purchase of Care,02/10/2019,3646891-2574861,"2,369.64",AKARI CARE LTD.
Adult and Health Services,Head of Adults,Third Party Payments,470101,Purchase of Care,02/10/2019,3646891-2574862,"2,369.64",AKARI CARE LTD.
Adult and Health Services,Head of Adults,Third Party Payments,470101,Purchase of Care,02/10/2019,3646891-2574863,"2,369.64",AKARI CARE LTD.
Adult and Health Services,Head of Adults,Third Party Payments,471101,Purchase of Care,02/10/2019,3646891-2574864,"2,457.00",AKARI CARE LTD.
Adult and Health Services,Head of Adults,Third Party Payments,470101,Purchase of Care,02/10/2019,3646891-2574865,"2,369.64",AKARI CARE LTD.
Adult and Health Services,Head of Adults,Third Party Payments,471101,Purchase of Care,02/10/2019,3646891-2574866,"2,457.00",AKARI CARE LTD.
Adult and Health Services,Head of Adults,Third Party Payments,471101,Purchase of Care,02/10/2019,3646891-2574867,"2,457.00",AKARI CARE LTD.
Adult and Health Services,Head of Adults,Third Party Payments,470101,Purchase of Care,02/10/2019,3646891-2574868,"2,369.64",AKARI CARE LTD.
Adult and Health Services,Head of Adults,Third Party Payments,471101,Purchase of Care,02/10/2019,3646891-2574869,"2,457.00",AKARI CARE LTD.
Adult and Health Services,Head of Adults,Third Party Payments,470101,Purchase of Care,02/10/2019,3646891-2574870,"2,369.64",AKARI CARE LTD.
Adult and Health Services,Head of Adults,Third Party Payments,470101,Purchase of Care,02/10/2019,3646891-2574871,"2,369.64",AKARI CARE LTD.
Adult and Health Services,Head of Adults,Third Party Payments,470101,Purchase of Care,02/10/2019,3646891-2574872,"1,354.08",AKARI CARE LTD.
Adult and Health Services,Head of Adults,Third Party Payments,470101,Purchase of Care,02/10/2019,3646891-2574873,"2,369.64",AKARI CARE LTD.
Adult and Health Services,Head of Adults,Third Party Payments,470101,Purchase of Care,02/10/2019,3646891-2574874,"1,100.19",AKARI CARE LTD.
Adult and Health Services,Head of Adults,Third Party Payments,471101,Purchase of Care,02/10/2019,3646891-2574875,"2,457.00",AKARI CARE LTD.
Adult and Health Services,Head of Adults,Third Party Payments,470101,Purchase of Care,02/10/2019,3646891-2574876,"2,369.64",AKARI CARE LTD.
Adult and Health Services,Head of Adults,Third Party Payments,470101,Purchase of Care,02/10/2019,3646891-2574877,"2,369.64",AKARI CARE LTD.
Adult and Health Services,Head of Adults,Third Party Payments,470101,Purchase of Care,02/10/2019,3646891-2574878,"2,369.64",AKARI CARE LTD.
Adult and Health Services,Head of Adults,Third Party Payments,471101,Purchase of Care,02/10/2019,3646891-2574879,"2,457.00",AKARI CARE LTD.
Adult and Health Services,Head of Adults,Third Party Payments,470101,Purchase of Care,02/10/2019,3646891-2574880,"2,369.64",AKARI CARE LTD.
Adult and Health Services,Head of Adults,Third Party Payments,471101,Purchase of Care,02/10/2019,3646891-2574881,"2,457.00",AKARI CARE LTD.
Adult and Health Services,Head of Adults,Third Party Payments,471101,Purchase of Care,02/10/2019,3646891-2574882,"2,457.00",AKARI CARE LTD.
Adult and Health Services,Head of Adults,Third Party Payments,471101,Purchase of Care,02/10/2019,3646891-2574883,"2,457.00",AKARI CARE LTD.
Adult and Health Services,Head of Adults,Third Party Payments,470101,Purchase of Care,02/10/2019,3646891-2574884,"2,369.64",AKARI CARE LTD.
Adult and Health Services,Head of Adults,Third Party Payments,470101,Purchase of Care,02/10/2019,3646891-2574885,"2,369.64",AKARI CARE LTD.
Adult and Health Services,Head of Adults,Third Party Payments,470101,Purchase of Care,02/10/2019,3646891-2574886,"2,369.64",AKARI CARE LTD.
Adult and Health Services,Head of Adults,Third Party Payments,470101,Purchase of Care,02/10/2019,3646891-2574887,"2,369.64",AKARI CARE LTD.
Adult and Health Services,Head of Adults,Third Party Payments,470101,Purchase of Care,02/10/2019,3646891-2574888,"1,139.48",AKARI CARE LTD.
Adult and Health Services,Head of Adults,Third Party Payments,470101,Purchase of Care,02/10/2019,3646891-2574889,"2,369.64",AKARI CARE LTD.
Adult and Health Services,Head of Adults,Third Party Payments,470101,Purchase of Care,02/10/2019,3646891-2574890,"2,369.64",AKARI CARE LTD.
Adult and Health Services,Head of Adults,Third Party Payments,470101,Purchase of Care,02/10/2019,3646891-2577628,930.93,AKARI CARE LTD.
Adult and Health Services,Head of Adults,Third Party Payments,474101,Purchase of Care,02/10/2019,3646892-2575204,"2,399.20",AKARI CARE LTD.
Adult and Health Services,Head of Adults,Third Party Payments,474101,Purchase of Care,02/10/2019,3646893-2576876,"2,527.92",AKARI CARE LTD.
Adult and Health Services,Head of Adults,Third Party Payments,470101,Purchase of Care,02/10/2019,3646894-2574835,"1,886.12",ALBANY CARE HOMES LTD.
Adult and Health Services,Head of Adults,Third Party Payments,470101,Purchase of Care,02/10/2019,3646894-2574836,683.76,ALBANY CARE HOMES LTD.
Adult and Health Services,Head of Adults,Third Party Payments,474101,Purchase of Care,02/10/2019,3646895-2577087,"3,152.00",ALDBOURNE NURSING HOME LTD.
Adult and Health Services,Head of Adults,Third Party Payments,474101,Purchase of Care,02/10/2019,3646899-2574724,"2,466.24",ALLIANCE CARE (TRENDLEWOOD) LTD.
Adult and Health Services,Head of Adults,Third Party Payments,470101,Purchase of Care,02/10/2019,3646899-2574726,"2,657.20",ALLIANCE CARE (TRENDLEWOOD) LTD.
Adult and Health Services,Head of Adults,Third Party Payments,470101,Purchase of Care,02/10/2019,3646899-2574729,"2,369.64",ALLIANCE CARE (TRENDLEWOOD) LTD.
Adult and Health Services,Head of Adults,Third Party Payments,474101,Purchase of Care,02/10/2019,3646899-2574731,"2,466.24",ALLIANCE CARE (TRENDLEWOOD) LTD.
Adult and Health Services,Head of Adults,Third Party Payments,470101,Purchase of Care,02/10/2019,3646899-2574738,"2,369.64",ALLIANCE CARE (TRENDLEWOOD) LTD.
Adult and Health Services,Head of Adults,Third Party Payments,470101,Purchase of Care,02/10/2019,3646899-2574739,"2,369.64",ALLIANCE CARE (TRENDLEWOOD) LTD.
Adult and Health Services,Head of Adults,Third Party Payments,470101,Purchase of Care,02/10/2019,3646899-2574743,"2,657.20",ALLIANCE CARE (TRENDLEWOOD) LTD.
Adult and Health Services,Head of Adults,Third Party Payments,470101,Purchase of Care,02/10/2019,3646899-2574744,"2,369.64",ALLIANCE CARE (TRENDLEWOOD) LTD.
Adult and Health Services,Head of Adults,Third Party Payments,470101,Purchase of Care,02/10/2019,3646899-2574746,"1,607.97",ALLIANCE CARE (TRENDLEWOOD) LTD.
Adult and Health Services,Head of Adults,Third Party Payments,470101,Purchase of Care,02/10/2019,3646899-2574747,"2,657.20",ALLIANCE CARE (TRENDLEWOOD) LTD.
Adult and Health Services,Head of Adults,Third Party Payments,474101,Purchase of Care,02/10/2019,3646899-2574748,"2,466.24",ALLIANCE CARE (TRENDLEWOOD) LTD.
Adult and Health Services,Head of Adults,Third Party Payments,470101,Purchase of Care,02/10/2019,3646899-2574750,"2,369.64",ALLIANCE CARE (TRENDLEWOOD) LTD.
Adult and Health Services,Head of Adults,Third Party Payments,470101,Purchase of Care,02/10/2019,3646899-2574751,"2,369.64",ALLIANCE CARE (TRENDLEWOOD) LTD.
Adult and Health Services,Head of Adults,Third Party Payments,470101,Purchase of Care,02/10/2019,3646899-2574752,"2,369.64",ALLIANCE CARE (TRENDLEWOOD) LTD.
Adult and Health Services,Head of Adults,Third Party Payments,470101,Purchase of Care,02/10/2019,3646899-2574753,761.67,ALLIANCE CARE (TRENDLEWOOD) LTD.
Adult and Health Services,Head of Adults,Third Party Payments,470101,Purchase of Care,02/10/2019,3646899-2574754,"2,369.64",ALLIANCE CARE (TRENDLEWOOD) LTD.
Adult and Health Services,Head of Adults,Third Party Payments,470101,Purchase of Care,02/10/2019,3646899-2574755,"2,369.64",ALLIANCE CARE (TRENDLEWOOD) LTD.
Adult and Health Services,Head of Adults,Third Party Payments,470101,Purchase of Care,02/10/2019,3646899-2574756,"2,369.64",ALLIANCE CARE (TRENDLEWOOD) LTD.
Adult and Health Services,Head of Adults,Third Party Payments,470101,Purchase of Care,02/10/2019,3646899-2574757,"2,369.64",ALLIANCE CARE (TRENDLEWOOD) LTD.
Adult and Health Services,Head of Adults,Third Party Payments,474101,Purchase of Care,02/10/2019,3646899-2574758,"2,466.24",ALLIANCE CARE (TRENDLEWOOD) LTD.
Adult and Health Services,Head of Adults,Third Party Payments,474101,Purchase of Care,02/10/2019,3646899-2574760,"2,466.24",ALLIANCE CARE (TRENDLEWOOD) LTD.
Adult and Health Services,Head of Adults,Third Party Payments,470101,Purchase of Care,02/10/2019,3646899-2574762,"1,184.84",ALLIANCE CARE (TRENDLEWOOD) LTD.
Adult and Health Services,Head of Adults,Third Party Payments,471101,Purchase of Care,02/10/2019,3646899-2574763,"2,457.00",ALLIANCE CARE (TRENDLEWOOD) LTD.
Adult and Health Services,Head of Adults,Third Party Payments,474101,Purchase of Care,02/10/2019,3646899-2574764,"2,466.24",ALLIANCE CARE (TRENDLEWOOD) LTD.
Adult and Health Services,Head of Adults,Third Party Payments,470101,Purchase of Care,02/10/2019,3646899-2574766,"2,369.64",ALLIANCE CARE (TRENDLEWOOD) LTD.
Adult and Health Services,Head of Adults,Third Party Payments,474101,Purchase of Care,02/10/2019,3646899-2574767,"2,466.24",ALLIANCE CARE (TRENDLEWOOD) LTD.
Adult and Health Services,Head of Adults,Third Party Payments,471101,Purchase of Care,02/10/2019,3646899-2574769,"2,457.00",ALLIANCE CARE (TRENDLEWOOD) LTD.
Adult and Health Services,Head of Adults,Third Party Payments,470101,Purchase of Care,02/10/2019,3646899-2574770,"2,657.20",ALLIANCE CARE (TRENDLEWOOD) LTD.
Adult and Health Services,Head of Adults,Third Party Payments,470101,Purchase of Care,02/10/2019,3646899-2577633,846.30,ALLIANCE CARE (TRENDLEWOOD) LTD.
Adult and Health Services,Head of Adults,Third Party Payments,470102,Purchase of Care,02/10/2019,3646899-2577658,"1,861.86",ALLIANCE CARE (TRENDLEWOOD) LTD.
Adult and Health Services,Head of Adults,Third Party Payments,470101,Purchase of Care,02/10/2019,3646900-2576116,"2,320.00",ANCHOR CAREHOMES LTD.
Adult and Health Services,Head of Adults,Third Party Payments,470101,Purchase of Care,02/10/2019,3646900-2576117,"2,320.00",ANCHOR CAREHOMES LTD.
Adult and Health Services,Head of Adults,Third Party Payments,470101,Purchase of Care,02/10/2019,3646900-2576118,870.00,ANCHOR CAREHOMES LTD.
Adult and Health Services,Head of Adults,Third Party Payments,470101,Purchase of Care,02/10/2019,3646900-2576119,"2,320.00",ANCHOR CAREHOMES LTD.
Adult and Health Services,Head of Adults,Third Party Payments,470101,Purchase of Care,02/10/2019,3646900-2576120,911.42,ANCHOR CAREHOMES LTD.
Adult and Health Services,Head of Adults,Third Party Payments,470101,Purchase of Care,02/10/2019,3646900-2576121,"2,320.00",ANCHOR CAREHOMES LTD.
Adult and Health Services,Head of Adults,Third Party Payments,471101,Purchase of Care,02/10/2019,3646900-2577436,"10,114.29",ANCHOR CAREHOMES LTD.
Adult and Health Services,Head of Adults,Third Party Payments,470101,Purchase of Care,02/10/2019,3646901-2576122,"2,609.64",ANCHOR HANOVER GROUP.
Adult and Health Services,Head of Adults,Third Party Payments,471101,Purchase of Care,02/10/2019,3646901-2576123,"1,508.48",ANCHOR HANOVER GROUP.
Adult and Health Services,Head of Adults,Third Party Payments,471101,Purchase of Care,02/10/2019,3646901-2576124,"1,579.50",ANCHOR HANOVER GROUP.
Adult and Health Services,Head of Adults,Third Party Payments,470101,Purchase of Care,02/10/2019,3646901-2576125,"1,184.84",ANCHOR HANOVER GROUP.
Adult and Health Services,Head of Adults,Third Party Payments,470101,Purchase of Care,02/10/2019,3646901-2576126,"2,569.64",ANCHOR HANOVER GROUP.
Adult and Health Services,Head of Adults,Third Party Payments,471101,Purchase of Care,02/10/2019,3646901-2576127,"2,857.00",ANCHOR HANOVER GROUP.
Adult and Health Services,Head of Adults,Third Party Payments,471101,Purchase of Care,02/10/2019,3646901-2576128,"2,857.00",ANCHOR HANOVER GROUP.
Adult and Health Services,Head of Adults,Third Party Payments,470101,Purchase of Care,02/10/2019,3646901-2576129,"2,689.64",ANCHOR HANOVER GROUP.
Adult and Health Services,Head of Adults,Third Party Payments,471101,Purchase of Care,02/10/2019,3646901-2576131,"2,737.00",ANCHOR HANOVER GROUP.
Adult and Health Services,Head of Adults,Third Party Payments,471101,Purchase of Care,02/10/2019,3646901-2576132,"2,697.00",ANCHOR HANOVER GROUP.
Adult and Health Services,Head of Adults,Third Party Payments,470101,Purchase of Care,02/10/2019,3646901-2576133,"1,184.84",ANCHOR HANOVER GROUP.
Adult and Health Services,Head of Adults,Third Party Payments,471101,Purchase of Care,02/10/2019,3646901-2576134,"2,697.00",ANCHOR HANOVER GROUP.
Adult and Health Services,Head of Adults,Third Party Payments,470101,Purchase of Care,02/10/2019,3646901-2576135,"2,689.64",ANCHOR HANOVER GROUP.
Adult and Health Services,Head of Adults,Third Party Payments,470101,Purchase of Care,02/10/2019,3646901-2576136,"2,729.64",ANCHOR HANOVER GROUP.
Adult and Health Services,Head of Adults,Third Party Payments,471101,Purchase of Care,02/10/2019,3646901-2576137,"2,737.00",ANCHOR HANOVER GROUP.
Adult and Health Services,Head of Adults,Third Party Payments,471101,Purchase of Care,02/10/2019,3646901-2576138,"2,697.00",ANCHOR HANOVER GROUP.
Adult and Health Services,Head of Adults,Third Party Payments,470101,Purchase of Care,02/10/2019,3646901-2576139,"2,689.64",ANCHOR HANOVER GROUP.
Adult and Health Services,Head of Adults,Third Party Payments,470101,Purchase of Care,02/10/2019,3646901-2576140,"1,424.80",ANCHOR HANOVER GROUP.
Adult and Health Services,Head of Adults,Third Party Payments,471101,Purchase of Care,02/10/2019,3646901-2576141,"2,657.00",ANCHOR HANOVER GROUP.
Adult and Health Services,Head of Adults,Third Party Payments,470101,Purchase of Care,02/10/2019,3646901-2576142,"2,609.64",ANCHOR HANOVER GROUP.
Adult and Health Services,Head of Adults,Third Party Payments,470101,Purchase of Care,02/10/2019,3646901-2576143,"2,489.64",ANCHOR HANOVER GROUP.
Adult and Health Services,Head of Adults,Third Party Payments,470101,Purchase of Care,02/10/2019,3646901-2576144,"2,369.64",ANCHOR HANOVER GROUP.
Adult and Health Services,Head of Adults,Third Party Payments,471101,Purchase of Care,02/10/2019,3646901-2576145,"2,697.00",ANCHOR HANOVER GROUP.
Adult and Health Services,Head of Adults,Third Party Payments,471101,Purchase of Care,02/10/2019,3646901-2576146,"2,697.00",ANCHOR HANOVER GROUP.
Adult and Health Services,Head of Adults,Third Party Payments,470101,Purchase of Care,02/10/2019,3646901-2576147,"2,609.64",ANCHOR HANOVER GROUP.
Adult and Health Services,Head of Adults,Third Party Payments,470101,Purchase of Care,02/10/2019,3646901-2576148,"1,184.80",ANCHOR HANOVER GROUP.
Adult and Health Services,Head of Adults,Third Party Payments,471101,Purchase of Care,02/10/2019,3646901-2576149,"2,457.00",ANCHOR HANOVER GROUP.
Adult and Health Services,Head of Adults,Third Party Payments,470101,Purchase of Care,02/10/2019,3646901-2576150,"2,689.64",ANCHOR HANOVER GROUP.
Adult and Health Services,Head of Adults,Third Party Payments,471101,Purchase of Care,02/10/2019,3646901-2576151,"2,597.00",ANCHOR HANOVER GROUP.
Adult and Health Services,Head of Adults,Third Party Payments,471101,Purchase of Care,02/10/2019,3646901-2576152,"2,697.00",ANCHOR HANOVER GROUP.
Adult and Health Services,Head of Adults,Third Party Payments,470101,Purchase of Care,02/10/2019,3646901-2577315,"3,964.62",ANCHOR HANOVER GROUP.
Adult and Health Services,Head of Adults,Third Party Payments,470101,Purchase of Care,02/10/2019,3646901-2577378,"2,849.64",ANCHOR HANOVER GROUP.
Adult and Health Services,Head of Adults,Third Party Payments,470101,Purchase of Care,02/10/2019,3646902-2574269,"2,188.00",ANCHOR TRUST.
Adult and Health Services,Head of Adults,Third Party Payments,470101,Purchase of Care,02/10/2019,3646902-2574270,"2,188.00",ANCHOR TRUST.
Adult and Health Services,Head of Adults,Third Party Payments,470101,Purchase of Care,02/10/2019,3646902-2574271,"2,188.00",ANCHOR TRUST.
Adult and Health Services,Head of Adults,Third Party Payments,471101,Purchase of Care,02/10/2019,3646903-2574511,"2,019.76",ANDREW PASS.
Adult and Health Services,Head of Adults,Third Party Payments,474101,Purchase of Care,02/10/2019,3646905-2575827,"2,296.00",ARMSTRONG HOUSE.
Adult and Health Services,Head of Adults,Third Party Payments,470101,Purchase of Care,02/10/2019,3646906-2574472,"2,188.00",ASCOT CARE NORTH EAST LTD..
Adult and Health Services,Head of Adults,Third Party Payments,470101,Purchase of Care,02/10/2019,3646907-2573817,"2,369.64",ASCOT CARE NORTH EAST LTD..
Adult and Health Services,Head of Adults,Third Party Payments,470101,Purchase of Care,02/10/2019,3646907-2573818,"1,438.71",ASCOT CARE NORTH EAST LTD..
Adult and Health Services,Head of Adults,Third Party Payments,470101,Purchase of Care,02/10/2019,3646907-2573819,"2,369.64",ASCOT CARE NORTH EAST LTD..
Adult and Health Services,Head of Adults,Third Party Payments,470101,Purchase of Care,02/10/2019,3646907-2573820,"2,369.64",ASCOT CARE NORTH EAST LTD..
Adult and Health Services,Head of Adults,Third Party Payments,471101,Purchase of Care,02/10/2019,3646907-2573821,"1,228.52",ASCOT CARE NORTH EAST LTD..
Adult and Health Services,Head of Adults,Third Party Payments,471101,Purchase of Care,02/10/2019,3646907-2573822,"2,266.71",ASCOT CARE NORTH EAST LTD..
Adult and Health Services,Head of Adults,Third Party Payments,470101,Purchase of Care,02/10/2019,3646907-2573823,"1,800.24",ASCOT CARE NORTH EAST LTD..
Adult and Health Services,Head of Adults,Third Party Payments,470101,Purchase of Care,02/10/2019,3646907-2573824,"1,800.24",ASCOT CARE NORTH EAST LTD..
Adult and Health Services,Head of Adults,Third Party Payments,470101,Purchase of Care,02/10/2019,3646907-2573825,"1,884.28",ASCOT CARE NORTH EAST LTD..
Adult and Health Services,Head of Adults,Third Party Payments,470101,Purchase of Care,02/10/2019,3646907-2573826,"1,184.84",ASCOT CARE NORTH EAST LTD..
Adult and Health Services,Head of Adults,Third Party Payments,471101,Purchase of Care,02/10/2019,3646907-2573827,"2,457.00",ASCOT CARE NORTH EAST LTD..
Adult and Health Services,Head of Adults,Third Party Payments,471101,Purchase of Care,02/10/2019,3646907-2573828,"1,739.04",ASCOT CARE NORTH EAST LTD..
Adult and Health Services,Head of Adults,Third Party Payments,470101,Purchase of Care,02/10/2019,3646907-2573829,"1,472.00",ASCOT CARE NORTH EAST LTD..
Adult and Health Services,Head of Adults,Third Party Payments,470101,Purchase of Care,02/10/2019,3646907-2573830,"2,369.64",ASCOT CARE NORTH EAST LTD..
Adult and Health Services,Head of Adults,Third Party Payments,470101,Purchase of Care,02/10/2019,3646907-2573831,"2,369.64",ASCOT CARE NORTH EAST LTD..
Adult and Health Services,Head of Adults,Third Party Payments,470101,Purchase of Care,02/10/2019,3646907-2573832,"1,489.76",ASCOT CARE NORTH EAST LTD..
Adult and Health Services,Head of Adults,Third Party Payments,470101,Purchase of Care,02/10/2019,3646907-2573833,"2,369.64",ASCOT CARE NORTH EAST LTD..
Adult and Health Services,Head of Adults,Third Party Payments,470101,Purchase of Care,02/10/2019,3646907-2573834,"1,800.24",ASCOT CARE NORTH EAST LTD..
Adult and Health Services,Head of Adults,Third Party Payments,470101,Purchase of Care,02/10/2019,3646907-2573835,"1,780.88",ASCOT CARE NORTH EAST LTD..
Adult and Health Services,Head of Adults,Third Party Payments,470101,Purchase of Care,02/10/2019,3646907-2573836,"1,774.28",ASCOT CARE NORTH EAST LTD..
Adult and Health Services,Head of Adults,Third Party Payments,471101,Purchase of Care,02/10/2019,3646907-2573837,"1,360.28",ASCOT CARE NORTH EAST LTD..
Adult and Health Services,Head of Adults,Third Party Payments,470101,Purchase of Care,02/10/2019,3646907-2573838,"1,800.24",ASCOT CARE NORTH EAST LTD..
Adult and Health Services,Head of Adults,Third Party Payments,470101,Purchase of Care,02/10/2019,3646907-2573839,"1,800.24",ASCOT CARE NORTH EAST LTD..
Adult and Health Services,Head of Adults,Third Party Payments,470101,Purchase of Care,02/10/2019,3646907-2573840,"2,369.64",ASCOT CARE NORTH EAST LTD..
Adult and Health Services,Head of Adults,Third Party Payments,470101,Purchase of Care,02/10/2019,3646907-2573841,"1,494.04",ASCOT CARE NORTH EAST LTD..
Adult and Health Services,Head of Adults,Third Party Payments,471101,Purchase of Care,02/10/2019,3646908-2575189,"2,516.20",ASHBOURNE LODGE CARE HOME.
Adult and Health Services,Head of Adults,Third Party Payments,470101,Purchase of Care,02/10/2019,3646909-2577227,"1,140.00",ASPIRE CARE GROUP T/A GRASMERE LODGE.
Adult and Health Services,Head of Adults,Third Party Payments,470101,Purchase of Care,02/10/2019,3646910-2574455,"2,043.92",ASPIRE CARE GROUP.
Adult and Health Services,Head of Adults,Third Party Payments,470101,Purchase of Care,02/10/2019,3646910-2574456,"2,043.92",ASPIRE CARE GROUP.
Adult and Health Services,Head of Adults,Third Party Payments,470101,Purchase of Care,02/10/2019,3646911-2576686,"1,021.96",ASPIRE CARE GROUP.
Adult and Health Services,Head of Adults,Third Party Payments,470101,Purchase of Care,02/10/2019,3646911-2576687,"2,043.92",ASPIRE CARE GROUP.
Adult and Health Services,Head of Adults,Third Party Payments,470101,Purchase of Care,02/10/2019,3646911-2576688,"2,043.92",ASPIRE CARE GROUP.
Adult and Health Services,Head of Adults,Third Party Payments,470101,Purchase of Care,02/10/2019,3646911-2576689,"1,629.72",ASPIRE CARE GROUP.
Adult and Health Services,Head of Adults,Third Party Payments,470101,Purchase of Care,02/10/2019,3646911-2576690,"1,344.28",ASPIRE CARE GROUP.
Adult and Health Services,Head of Adults,Third Party Payments,470101,Purchase of Care,02/10/2019,3646911-2576691,"1,471.28",ASPIRE CARE GROUP.
Adult and Health Services,Head of Adults,Third Party Payments,470101,Purchase of Care,02/10/2019,3646912-2575819,"1,734.00",ASPIRE CARE GROUP.
Adult and Health Services,Head of Adults,Third Party Payments,470101,Purchase of Care,02/10/2019,3646912-2575820,687.52,ASPIRE CARE GROUP.
Adult and Health Services,Head of Adults,Third Party Payments,470101,Purchase of Care,02/10/2019,3646912-2575821,"1,820.72",ASPIRE CARE GROUP.
Adult and Health Services,Head of Adults,Third Party Payments,470101,Purchase of Care,02/10/2019,3646912-2575822,"2,695.00",ASPIRE CARE GROUP.
Adult and Health Services,Head of Adults,Third Party Payments,470101,Purchase of Care,02/10/2019,3646912-2575823,"3,641.40",ASPIRE CARE GROUP.
Adult and Health Services,Head of Adults,Third Party Payments,470101,Purchase of Care,02/10/2019,3646912-2575824,"1,820.72",ASPIRE CARE GROUP.
Adult and Health Services,Head of Adults,Third Party Payments,470101,Purchase of Care,02/10/2019,3646912-2575825,668.64,ASPIRE CARE GROUP.
Adult and Health Services,Head of Adults,Third Party Payments,470101,Purchase of Care,02/10/2019,3646912-2575826,"2,043.92",ASPIRE CARE GROUP.
Adult and Health Services,Head of Adults,Third Party Payments,474101,Purchase of Care,02/10/2019,3646913-2577187,"2,400.00",ASTORIA HEALTHCARE LTD.
Adult and Health Services,Head of Adults,Third Party Payments,474101,Purchase of Care,02/10/2019,3646914-2576627,"2,476.00",ATLAS CARE HOMES LTD.
Adult and Health Services,Head of Adults,Third Party Payments,474101,Purchase of Care,02/10/2019,3646914-2576628,"1,288.00",ATLAS CARE HOMES LTD.
Adult and Health Services,Head of Adults,Third Party Payments,470101,Purchase of Care,02/10/2019,3646915-2575294,"2,240.00",ATLAS CARE HOMES LTD.
Adult and Health Services,Head of Adults,Third Party Payments,470101,Purchase of Care,02/10/2019,3646918-2576106,"2,043.92",AUTISM CARE UK (4) LTD.
Adult and Health Services,Head of Adults,Third Party Payments,470101,Purchase of Care,02/10/2019,3646918-2576107,"11,688.08",AUTISM CARE UK (4) LTD.
Adult and Health Services,Head of Adults,Third Party Payments,470101,Purchase of Care,02/10/2019,3646918-2576108,"5,069.40",AUTISM CARE UK (4) LTD.
Adult and Health Services,Head of Adults,Third Party Payments,470101,Purchase of Care,02/10/2019,3646918-2576109,"2,043.92",AUTISM CARE UK (4) LTD.
Adult and Health Services,Head of Adults,Third Party Payments,470101,Purchase of Care,02/10/2019,3646918-2576110,"9,047.44",AUTISM CARE UK (4) LTD.
Adult and Health Services,Head of Adults,Third Party Payments,470101,Purchase of Care,02/10/2019,3646918-2576111,"4,416.28",AUTISM CARE UK (4) LTD.
Adult and Health Services,Head of Adults,Third Party Payments,470101,Purchase of Care,02/10/2019,3646918-2576112,"1,742.44",AUTISM CARE UK (4) LTD.
Adult and Health Services,Head of Adults,Third Party Payments,470101,Purchase of Care,02/10/2019,3646918-2576113,568.96,AUTISM CARE UK (4) LTD.
Adult and Health Services,Head of Adults,Third Party Payments,470101,Purchase of Care,02/10/2019,3646918-2576114,"3,153.04",AUTISM CARE UK (4) LTD.
Adult and Health Services,Head of Adults,Third Party Payments,478101,Purchase of Care,02/10/2019,3647583-1926241H,"6,850.68",AUTISM CARE UK (4) LTD.
Adult and Health Services,Head of Adults,Third Party Payments,478101,Purchase of Care,02/10/2019,3647583-1926603H,"4,122.52",AUTISM CARE UK (4) LTD.
Adult and Health Services,Head of Adults,Third Party Payments,478101,Purchase of Care,02/10/2019,3647583-1927393H,"3,179.40",AUTISM CARE UK (4) LTD.
Adult and Health Services,Head of Adults,Third Party Payments,478101,Purchase of Care,02/10/2019,3647583-1927592H,"6,474.52",AUTISM CARE UK (4) LTD.
Adult and Health Services,Head of Adults,Third Party Payments,478101,Purchase of Care,02/10/2019,3647583-1927646H,"4,122.52",AUTISM CARE UK (4) LTD.
Adult and Health Services,Head of Adults,Third Party Payments,478101,Purchase of Care,02/10/2019,3647583-1927872H,"4,122.52",AUTISM CARE UK (4) LTD.
Adult and Health Services,Head of Adults,Third Party Payments,478101,Purchase of Care,02/10/2019,3647583-1927886H,"4,122.52",AUTISM CARE UK (4) LTD.
Adult and Health Services,Head of Adults,Third Party Payments,478101,Purchase of Care,02/10/2019,3647583-1928064H,"3,005.32",AUTISM CARE UK (4) LTD.
Adult and Health Services,Head of Adults,Third Party Payments,478101,Purchase of Care,02/10/2019,3647583-1928584H,"7,003.72",AUTISM CARE UK (4) LTD.
Adult and Health Services,Head of Adults,Third Party Payments,478101,Purchase of Care,02/10/2019,3647583-1929419H,"5,276.96",AUTISM CARE UK (4) LTD.
Adult and Health Services,Head of Adults,Third Party Payments,478101,Purchase of Care,02/10/2019,3647583-1931265H,"5,660.68",AUTISM CARE UK (4) LTD.
Adult and Health Services,Head of Adults,Third Party Payments,478101,Purchase of Care,02/10/2019,3647583-1931592H,"4,790.80",AUTISM CARE UK (4) LTD.
Adult and Health Services,Head of Adults,Third Party Payments,473101,Purchase of Care,02/10/2019,3647584-1927516D,"1,332.40",AUTISM EAST MIDLANDS.
Adult and Health Services,Head of Adults,Third Party Payments,474101,Purchase of Care,02/10/2019,3646919-2576381,"2,296.00",BARCHESTER HEALTHCARE HOMES LTD.
Adult and Health Services,Head of Adults,Third Party Payments,470101,Purchase of Care,02/10/2019,3646920-2575435,"2,720.00",BARCHESTER HEALTHCARE HOMES LTD.
Adult and Health Services,Head of Adults,Third Party Payments,474101,Purchase of Care,02/10/2019,3646920-2575436,"2,700.00",BARCHESTER HEALTHCARE HOMES LTD.
Adult and Health Services,Head of Adults,Third Party Payments,470101,Purchase of Care,02/10/2019,3646920-2575437,"2,700.00",BARCHESTER HEALTHCARE HOMES LTD.
Adult and Health Services,Head of Adults,Third Party Payments,470101,Purchase of Care,02/10/2019,3646920-2575438,"2,284.80",BARCHESTER HEALTHCARE HOMES LTD.
Adult and Health Services,Head of Adults,Third Party Payments,470101,Purchase of Care,02/10/2019,3646920-2575439,"2,700.00",BARCHESTER HEALTHCARE HOMES LTD.
Adult and Health Services,Head of Adults,Third Party Payments,470101,Purchase of Care,02/10/2019,3646920-2575440,"2,800.00",BARCHESTER HEALTHCARE HOMES LTD.
Adult and Health Services,Head of Adults,Third Party Payments,470101,Purchase of Care,02/10/2019,3646920-2575441,"2,700.00",BARCHESTER HEALTHCARE HOMES LTD.
Adult and Health Services,Head of Adults,Third Party Payments,474101,Purchase of Care,02/10/2019,3646920-2575442,"2,700.00",BARCHESTER HEALTHCARE HOMES LTD.
Adult and Health Services,Head of Adults,Third Party Payments,474101,Purchase of Care,02/10/2019,3646920-2575443,964.28,BARCHESTER HEALTHCARE HOMES LTD.
Adult and Health Services,Head of Adults,Third Party Payments,474101,Purchase of Care,02/10/2019,3646920-2575444,"2,700.00",BARCHESTER HEALTHCARE HOMES LTD.
Adult and Health Services,Head of Adults,Third Party Payments,470101,Purchase of Care,02/10/2019,3646920-2575446,"2,700.00",BARCHESTER HEALTHCARE HOMES LTD.
Adult and Health Services,Head of Adults,Third Party Payments,470101,Purchase of Care,02/10/2019,3646920-2575447,"2,700.00",BARCHESTER HEALTHCARE HOMES LTD.
Adult and Health Services,Head of Adults,Third Party Payments,470101,Purchase of Care,02/10/2019,3646920-2575448,"2,700.00",BARCHESTER HEALTHCARE HOMES LTD.
Adult and Health Services,Head of Adults,Third Party Payments,470101,Purchase of Care,02/10/2019,3646920-2575449,"2,700.00",BARCHESTER HEALTHCARE HOMES LTD.
Adult and Health Services,Head of Adults,Third Party Payments,474101,Purchase of Care,02/10/2019,3646920-2575450,"1,980.00",BARCHESTER HEALTHCARE HOMES LTD.
Adult and Health Services,Head of Adults,Third Party Payments,474101,Purchase of Care,02/10/2019,3646920-2575451,"1,204.52",BARCHESTER HEALTHCARE HOMES LTD.
Adult and Health Services,Head of Adults,Third Party Payments,474101,Purchase of Care,02/10/2019,3646920-2575452,"6,964.00",BARCHESTER HEALTHCARE HOMES LTD.
Adult and Health Services,Head of Adults,Third Party Payments,471101,Purchase of Care,02/10/2019,3646921-2576870,"1,284.00",BARCHESTER HEALTHCARE HOMES LTD.
Adult and Health Services,Head of Adults,Third Party Payments,474101,Purchase of Care,02/10/2019,3646922-2574335,"2,340.24",BARCHESTER HEALTHCARE HOMES LTD.
Adult and Health Services,Head of Adults,Third Party Payments,474101,Purchase of Care,02/10/2019,3646922-2574337,"1,170.12",BARCHESTER HEALTHCARE HOMES LTD.
Adult and Health Services,Head of Adults,Third Party Payments,474101,Purchase of Care,02/10/2019,3646922-2574339,"2,340.24",BARCHESTER HEALTHCARE HOMES LTD.
Adult and Health Services,Head of Adults,Third Party Payments,474101,Purchase of Care,02/10/2019,3646922-2574341,"1,671.60",BARCHESTER HEALTHCARE HOMES LTD.
Adult and Health Services,Head of Adults,Third Party Payments,474101,Purchase of Care,02/10/2019,3646922-2574343,"2,340.24",BARCHESTER HEALTHCARE HOMES LTD.
Adult and Health Services,Head of Adults,Third Party Payments,474101,Purchase of Care,02/10/2019,3646922-2574345,"2,340.24",BARCHESTER HEALTHCARE HOMES LTD.
Adult and Health Services,Head of Adults,Third Party Payments,474101,Purchase of Care,02/10/2019,3646922-2574348,"2,340.24",BARCHESTER HEALTHCARE HOMES LTD.
Adult and Health Services,Head of Adults,Third Party Payments,474101,Purchase of Care,02/10/2019,3646922-2574350,"2,340.24",BARCHESTER HEALTHCARE HOMES LTD.
Adult and Health Services,Head of Adults,Third Party Payments,474101,Purchase of Care,02/10/2019,3646922-2574353,"2,340.24",BARCHESTER HEALTHCARE HOMES LTD.
Adult and Health Services,Head of Adults,Third Party Payments,474101,Purchase of Care,02/10/2019,3646922-2574356,"1,170.12",BARCHESTER HEALTHCARE HOMES LTD.
Adult and Health Services,Head of Adults,Third Party Payments,474101,Purchase of Care,02/10/2019,3646922-2574358,"1,170.12",BARCHESTER HEALTHCARE HOMES LTD.
Adult and Health Services,Head of Adults,Third Party Payments,474101,Purchase of Care,02/10/2019,3646922-2574360,"2,552.20",BARCHESTER HEALTHCARE HOMES LTD.
Adult and Health Services,Head of Adults,Third Party Payments,474101,Purchase of Care,02/10/2019,3646922-2574363,"2,340.24",BARCHESTER HEALTHCARE HOMES LTD.
Adult and Health Services,Head of Adults,Third Party Payments,474101,Purchase of Care,02/10/2019,3646922-2574366,"2,340.24",BARCHESTER HEALTHCARE HOMES LTD.
Adult and Health Services,Head of Adults,Third Party Payments,474101,Purchase of Care,02/10/2019,3646922-2574369,"2,340.24",BARCHESTER HEALTHCARE HOMES LTD.
Adult and Health Services,Head of Adults,Third Party Payments,474101,Purchase of Care,02/10/2019,3646922-2577664,"1,086.54",BARCHESTER HEALTHCARE HOMES LTD.
Adult and Health Services,Head of Adults,Third Party Payments,474101,Purchase of Care,02/10/2019,3646923-2576875,"2,580.00",BARCHESTER HEALTHCARE HOMES LTD.
Adult and Health Services,Head of Adults,Third Party Payments,470101,Purchase of Care,02/10/2019,3646924-2575179,"2,044.00",BARCHESTER HEALTHCARE HOMES LTD.
Adult and Health Services,Head of Adults,Third Party Payments,471101,Purchase of Care,02/10/2019,3646927-2576193,"1,626.36",BEAMISH RESIDENTIAL CARE HOME LTD.
Adult and Health Services,Head of Adults,Third Party Payments,470101,Purchase of Care,02/10/2019,3646927-2576194,"2,242.52",BEAMISH RESIDENTIAL CARE HOME LTD.
Adult and Health Services,Head of Adults,Third Party Payments,471101,Purchase of Care,02/10/2019,3646927-2576195,"1,761.88",BEAMISH RESIDENTIAL CARE HOME LTD.
Adult and Health Services,Head of Adults,Third Party Payments,470101,Purchase of Care,02/10/2019,3646927-2576196,"2,242.52",BEAMISH RESIDENTIAL CARE HOME LTD.
Adult and Health Services,Head of Adults,Third Party Payments,470101,Purchase of Care,02/10/2019,3646927-2576197,"2,242.52",BEAMISH RESIDENTIAL CARE HOME LTD.
Adult and Health Services,Head of Adults,Third Party Payments,470101,Purchase of Care,02/10/2019,3646927-2576198,"2,242.52",BEAMISH RESIDENTIAL CARE HOME LTD.
Adult and Health Services,Head of Adults,Third Party Payments,471101,Purchase of Care,02/10/2019,3646927-2576199,"1,761.88",BEAMISH RESIDENTIAL CARE HOME LTD.
Adult and Health Services,Head of Adults,Third Party Payments,470101,Purchase of Care,02/10/2019,3646927-2576200,"1,650.84",BEAMISH RESIDENTIAL CARE HOME LTD.
Adult and Health Services,Head of Adults,Third Party Payments,470101,Purchase of Care,02/10/2019,3646927-2576201,"1,121.24",BEAMISH RESIDENTIAL CARE HOME LTD.
Adult and Health Services,Head of Adults,Third Party Payments,470101,Purchase of Care,02/10/2019,3646927-2576202,"2,242.52",BEAMISH RESIDENTIAL CARE HOME LTD.
Adult and Health Services,Head of Adults,Third Party Payments,470101,Purchase of Care,02/10/2019,3646927-2576203,"2,242.52",BEAMISH RESIDENTIAL CARE HOME LTD.
Adult and Health Services,Head of Adults,Third Party Payments,470101,Purchase of Care,02/10/2019,3646927-2576204,"2,242.52",BEAMISH RESIDENTIAL CARE HOME LTD.
Adult and Health Services,Head of Adults,Third Party Payments,470101,Purchase of Care,02/10/2019,3646927-2576205,528.00,BEAMISH RESIDENTIAL CARE HOME LTD.
Adult and Health Services,Head of Adults,Third Party Payments,478101,Purchase of Care,02/10/2019,3647589-1926153H,"1,204.00",BEECHFIELD CARE & SUPPORT LTD.
Adult and Health Services,Head of Adults,Third Party Payments,478101,Purchase of Care,02/10/2019,3647589-1926171H,"1,204.00",BEECHFIELD CARE & SUPPORT LTD.
Adult and Health Services,Head of Adults,Third Party Payments,478101,Purchase of Care,02/10/2019,3647589-1926206H,"1,222.68",BEECHFIELD CARE & SUPPORT LTD.
Adult and Health Services,Head of Adults,Third Party Payments,478101,Purchase of Care,02/10/2019,3647589-1926232H,"1,204.00",BEECHFIELD CARE & SUPPORT LTD.
Adult and Health Services,Head of Adults,Third Party Payments,478101,Purchase of Care,02/10/2019,3647589-1926270H,"1,204.00",BEECHFIELD CARE & SUPPORT LTD.
Adult and Health Services,Head of Adults,Third Party Payments,478101,Purchase of Care,02/10/2019,3647589-1926289H,"1,204.00",BEECHFIELD CARE & SUPPORT LTD.
Adult and Health Services,Head of Adults,Third Party Payments,478101,Purchase of Care,02/10/2019,3647589-1926374H,"1,204.00",BEECHFIELD CARE & SUPPORT LTD.
Adult and Health Services,Head of Adults,Third Party Payments,478101,Purchase of Care,02/10/2019,3647589-1927438H,"1,372.00",BEECHFIELD CARE & SUPPORT LTD.
Adult and Health Services,Head of Adults,Third Party Payments,478101,Purchase of Care,02/10/2019,3647589-1928069H,"1,484.00",BEECHFIELD CARE & SUPPORT LTD.
Adult and Health Services,Head of Adults,Third Party Payments,478101,Purchase of Care,02/10/2019,3647589-1928879H,"1,204.00",BEECHFIELD CARE & SUPPORT LTD.
Adult and Health Services,Head of Adults,Third Party Payments,478101,Purchase of Care,02/10/2019,3647589-1928966H,"1,204.00",BEECHFIELD CARE & SUPPORT LTD.
Adult and Health Services,Head of Adults,Third Party Payments,478101,Purchase of Care,02/10/2019,3647589-1929675H,"1,204.00",BEECHFIELD CARE & SUPPORT LTD.
Adult and Health Services,Head of Adults,Third Party Payments,470101,Purchase of Care,02/10/2019,3646928-2577232,"1,021.96",BENTON CARE SERVICES LTD.
Adult and Health Services,Head of Adults,Third Party Payments,470101,Purchase of Care,02/10/2019,3646928-2577233,"3,182.60",BENTON CARE SERVICES LTD.
Adult and Health Services,Head of Adults,Third Party Payments,470101,Purchase of Care,02/10/2019,3646928-2577234,"3,182.60",BENTON CARE SERVICES LTD.
Adult and Health Services,Head of Adults,Third Party Payments,470101,Purchase of Care,02/10/2019,3646928-2577235,"2,043.92",BENTON CARE SERVICES LTD.
Adult and Health Services,Head of Adults,Third Party Payments,470101,Purchase of Care,02/10/2019,3646928-2577236,"3,182.60",BENTON CARE SERVICES LTD.
Adult and Health Services,Head of Adults,Third Party Payments,470101,Purchase of Care,02/10/2019,3646928-2577237,"3,182.60",BENTON CARE SERVICES LTD.
Adult and Health Services,Head of Adults,Third Party Payments,470101,Purchase of Care,02/10/2019,3646928-2577238,"3,182.60",BENTON CARE SERVICES LTD.
Adult and Health Services,Head of Adults,Third Party Payments,470101,Purchase of Care,02/10/2019,3646928-2577239,"3,182.60",BENTON CARE SERVICES LTD.
Adult and Health Services,Head of Adults,Third Party Payments,473101,Purchase of Care,02/10/2019,3647595-1926146H,576.00,BID SERVICES.
Adult and Health Services,Head of Adults,Third Party Payments,470101,Purchase of Care,02/10/2019,3646931-2575931,"2,144.00",BONDCARE WILLINGTON LTD.
Adult and Health Services,Head of Adults,Third Party Payments,474101,Purchase of Care,02/10/2019,3646932-2574529,"1,981.80",BONDCARE WILLINGTON LTD.
Adult and Health Services,Head of Adults,Third Party Payments,474999,Purchase of Care,02/10/2019,3646932-2574530,532.20,BONDCARE WILLINGTON LTD.
Adult and Health Services,Head of Adults,Third Party Payments,474101,Purchase of Care,02/10/2019,3646932-2574531,"1,233.12",BONDCARE WILLINGTON LTD.
Adult and Health Services,Head of Adults,Third Party Payments,470101,Purchase of Care,02/10/2019,3646932-2574533,692.57,BONDCARE WILLINGTON LTD.
Adult and Health Services,Head of Adults,Third Party Payments,474101,Purchase of Care,02/10/2019,3646932-2574535,"2,378.16",BONDCARE WILLINGTON LTD.
Adult and Health Services,Head of Adults,Third Party Payments,470101,Purchase of Care,02/10/2019,3646932-2574537,"3,273.80",BONDCARE WILLINGTON LTD.
Adult and Health Services,Head of Adults,Third Party Payments,474101,Purchase of Care,02/10/2019,3646932-2574538,"2,466.24",BONDCARE WILLINGTON LTD.
Adult and Health Services,Head of Adults,Third Party Payments,474101,Purchase of Care,02/10/2019,3646932-2574540,"1,233.12",BONDCARE WILLINGTON LTD.
Adult and Health Services,Head of Adults,Third Party Payments,474101,Purchase of Care,02/10/2019,3646932-2574541,"2,393.32",BONDCARE WILLINGTON LTD.
Adult and Health Services,Head of Adults,Third Party Payments,471101,Purchase of Care,02/10/2019,3646932-2574544,"2,457.00",BONDCARE WILLINGTON LTD.
Adult and Health Services,Head of Adults,Third Party Payments,470101,Purchase of Care,02/10/2019,3646932-2574545,872.91,BONDCARE WILLINGTON LTD.
Adult and Health Services,Head of Adults,Third Party Payments,470101,Purchase of Care,02/10/2019,3646932-2574546,"2,444.12",BONDCARE WILLINGTON LTD.
Adult and Health Services,Head of Adults,Third Party Payments,470101,Purchase of Care,02/10/2019,3646932-2574547,"2,444.12",BONDCARE WILLINGTON LTD.
Adult and Health Services,Head of Adults,Third Party Payments,470101,Purchase of Care,02/10/2019,3646932-2574548,"2,444.12",BONDCARE WILLINGTON LTD.
Adult and Health Services,Head of Adults,Third Party Payments,470101,Purchase of Care,02/10/2019,3646932-2574549,526.00,BONDCARE WILLINGTON LTD.
Adult and Health Services,Head of Adults,Third Party Payments,470101,Purchase of Care,02/10/2019,3646932-2574550,"2,444.12",BONDCARE WILLINGTON LTD.
Adult and Health Services,Head of Adults,Third Party Payments,470101,Purchase of Care,02/10/2019,3646932-2574554,"2,444.12",BONDCARE WILLINGTON LTD.
Adult and Health Services,Head of Adults,Third Party Payments,474101,Purchase of Care,02/10/2019,3646932-2574555,"1,233.12",BONDCARE WILLINGTON LTD.
Adult and Health Services,Head of Adults,Third Party Payments,474101,Purchase of Care,02/10/2019,3646932-2574556,"4,373.60",BONDCARE WILLINGTON LTD.
Adult and Health Services,Head of Adults,Third Party Payments,470101,Purchase of Care,02/10/2019,3646932-2574558,"2,444.12",BONDCARE WILLINGTON LTD.
Adult and Health Services,Head of Adults,Third Party Payments,470101,Purchase of Care,02/10/2019,3646932-2574559,"2,508.07",BONDCARE WILLINGTON LTD.
Adult and Health Services,Head of Adults,Third Party Payments,474101,Purchase of Care,02/10/2019,3646932-2574560,"1,233.12",BONDCARE WILLINGTON LTD.
Adult and Health Services,Head of Adults,Third Party Payments,474101,Purchase of Care,02/10/2019,3646932-2574562,"1,233.12",BONDCARE WILLINGTON LTD.
Adult and Health Services,Head of Adults,Third Party Payments,474101,Purchase of Care,02/10/2019,3646932-2574564,"2,466.24",BONDCARE WILLINGTON LTD.
Adult and Health Services,Head of Adults,Third Party Payments,474101,Purchase of Care,02/10/2019,3646932-2574566,"2,466.24",BONDCARE WILLINGTON LTD.
Adult and Health Services,Head of Adults,Third Party Payments,471101,Purchase of Care,02/10/2019,3646932-2574568,"2,457.00",BONDCARE WILLINGTON LTD.
Adult and Health Services,Head of Adults,Third Party Payments,470101,Purchase of Care,02/10/2019,3646932-2574569,"2,444.12",BONDCARE WILLINGTON LTD.
Adult and Health Services,Head of Adults,Third Party Payments,474101,Purchase of Care,02/10/2019,3646932-2574570,"1,233.12",BONDCARE WILLINGTON LTD.
Adult and Health Services,Head of Adults,Third Party Payments,474101,Purchase of Care,02/10/2019,3646932-2574571,920.52,BONDCARE WILLINGTON LTD.
Adult and Health Services,Head of Adults,Third Party Payments,474101,Purchase of Care,02/10/2019,3646932-2574573,"2,466.24",BONDCARE WILLINGTON LTD.
Adult and Health Services,Head of Adults,Third Party Payments,470101,Purchase of Care,02/10/2019,3646932-2574575,"2,444.12",BONDCARE WILLINGTON LTD.
Adult and Health Services,Head of Adults,Third Party Payments,474101,Purchase of Care,02/10/2019,3646932-2574576,"1,233.12",BONDCARE WILLINGTON LTD.
Adult and Health Services,Head of Adults,Third Party Payments,470101,Purchase of Care,02/10/2019,3646932-2574579,"2,444.12",BONDCARE WILLINGTON LTD.
Adult and Health Services,Head of Adults,Third Party Payments,474101,Purchase of Care,02/10/2019,3646932-2574580,"2,466.24",BONDCARE WILLINGTON LTD.
Adult and Health Services,Head of Adults,Third Party Payments,474101,Purchase of Care,02/10/2019,3646932-2574582,"2,466.24",BONDCARE WILLINGTON LTD.
Adult and Health Services,Head of Adults,Third Party Payments,470101,Purchase of Care,02/10/2019,3646932-2574585,"2,444.12",BONDCARE WILLINGTON LTD.
Adult and Health Services,Head of Adults,Third Party Payments,470101,Purchase of Care,02/10/2019,3646932-2574586,736.40,BONDCARE WILLINGTON LTD.
Adult and Health Services,Head of Adults,Third Party Payments,470101,Purchase of Care,02/10/2019,3646932-2574587,"2,444.12",BONDCARE WILLINGTON LTD.
Adult and Health Services,Head of Adults,Third Party Payments,470101,Purchase of Care,02/10/2019,3646932-2574588,"2,444.12",BONDCARE WILLINGTON LTD.
Adult and Health Services,Head of Adults,Third Party Payments,474101,Purchase of Care,02/10/2019,3646932-2574589,"2,466.24",BONDCARE WILLINGTON LTD.
Adult and Health Services,Head of Adults,Third Party Payments,470101,Purchase of Care,02/10/2019,3646932-2574591,"2,444.12",BONDCARE WILLINGTON LTD.
Adult and Health Services,Head of Adults,Third Party Payments,470101,Purchase of Care,02/10/2019,3646932-2574592,"2,444.12",BONDCARE WILLINGTON LTD.
Adult and Health Services,Head of Adults,Third Party Payments,470101,Purchase of Care,02/10/2019,3646932-2574593,"1,222.08",BONDCARE WILLINGTON LTD.
Adult and Health Services,Head of Adults,Third Party Payments,474101,Purchase of Care,02/10/2019,3646932-2574594,"1,233.12",BONDCARE WILLINGTON LTD.
Adult and Health Services,Head of Adults,Third Party Payments,470101,Purchase of Care,02/10/2019,3646932-2577291,"1,262.40",BONDCARE WILLINGTON LTD.
Adult and Health Services,Head of Adults,Third Party Payments,470101,Purchase of Care,02/10/2019,3646932-2577374,"1,222.06",BONDCARE WILLINGTON LTD.
Adult and Health Services,Head of Adults,Third Party Payments,470101,Purchase of Care,02/10/2019,3646932-2577384,"1,298.57",BONDCARE WILLINGTON LTD.
Adult and Health Services,Head of Adults,Third Party Payments,471101,Purchase of Care,02/10/2019,3646933-2574694,"2,457.00",BONDCARE WILLINGTON LTD.
Adult and Health Services,Head of Adults,Third Party Payments,471101,Purchase of Care,02/10/2019,3646933-2574695,"2,457.00",BONDCARE WILLINGTON LTD.
Adult and Health Services,Head of Adults,Third Party Payments,471101,Purchase of Care,02/10/2019,3646933-2574696,"2,457.00",BONDCARE WILLINGTON LTD.
Adult and Health Services,Head of Adults,Third Party Payments,471101,Purchase of Care,02/10/2019,3646933-2574697,"2,457.00",BONDCARE WILLINGTON LTD.
Adult and Health Services,Head of Adults,Third Party Payments,471101,Purchase of Care,02/10/2019,3646933-2574698,"2,457.00",BONDCARE WILLINGTON LTD.
Adult and Health Services,Head of Adults,Third Party Payments,471101,Purchase of Care,02/10/2019,3646933-2574699,"2,457.00",BONDCARE WILLINGTON LTD.
Adult and Health Services,Head of Adults,Third Party Payments,471101,Purchase of Care,02/10/2019,3646933-2574700,"2,457.00",BONDCARE WILLINGTON LTD.
Adult and Health Services,Head of Adults,Third Party Payments,471101,Purchase of Care,02/10/2019,3646933-2574702,"2,457.00",BONDCARE WILLINGTON LTD.
Adult and Health Services,Head of Adults,Third Party Payments,471101,Purchase of Care,02/10/2019,3646933-2574703,"2,457.00",BONDCARE WILLINGTON LTD.
Adult and Health Services,Head of Adults,Third Party Payments,471101,Purchase of Care,02/10/2019,3646933-2574704,"1,228.52",BONDCARE WILLINGTON LTD.
Adult and Health Services,Head of Adults,Third Party Payments,471101,Purchase of Care,02/10/2019,3646933-2574705,526.50,BONDCARE WILLINGTON LTD.
Adult and Health Services,Head of Adults,Third Party Payments,471101,Purchase of Care,02/10/2019,3646933-2574706,682.00,BONDCARE WILLINGTON LTD.
Adult and Health Services,Head of Adults,Third Party Payments,470101,Purchase of Care,02/10/2019,3646933-2574707,"2,444.12",BONDCARE WILLINGTON LTD.
Adult and Health Services,Head of Adults,Third Party Payments,471101,Purchase of Care,02/10/2019,3646933-2574708,"2,457.00",BONDCARE WILLINGTON LTD.
Adult and Health Services,Head of Adults,Third Party Payments,471101,Purchase of Care,02/10/2019,3646933-2574709,"2,457.00",BONDCARE WILLINGTON LTD.
Adult and Health Services,Head of Adults,Third Party Payments,471101,Purchase of Care,02/10/2019,3646933-2574710,"2,457.00",BONDCARE WILLINGTON LTD.
Adult and Health Services,Head of Adults,Third Party Payments,471101,Purchase of Care,02/10/2019,3646933-2574711,"2,457.00",BONDCARE WILLINGTON LTD.
Adult and Health Services,Head of Adults,Third Party Payments,470101,Purchase of Care,02/10/2019,3646933-2574712,"2,444.12",BONDCARE WILLINGTON LTD.
Adult and Health Services,Head of Adults,Third Party Payments,471101,Purchase of Care,02/10/2019,3646933-2574713,"1,228.52",BONDCARE WILLINGTON LTD.
Adult and Health Services,Head of Adults,Third Party Payments,470101,Purchase of Care,02/10/2019,3646933-2574714,"2,444.12",BONDCARE WILLINGTON LTD.
Adult and Health Services,Head of Adults,Third Party Payments,470101,Purchase of Care,02/10/2019,3646933-2574715,"2,444.12",BONDCARE WILLINGTON LTD.
Adult and Health Services,Head of Adults,Third Party Payments,471101,Purchase of Care,02/10/2019,3646933-2574716,"2,457.00",BONDCARE WILLINGTON LTD.
Adult and Health Services,Head of Adults,Third Party Payments,470101,Purchase of Care,02/10/2019,3646933-2574717,"2,444.12",BONDCARE WILLINGTON LTD.
Adult and Health Services,Head of Adults,Third Party Payments,471101,Purchase of Care,02/10/2019,3646933-2574718,"2,457.00",BONDCARE WILLINGTON LTD.
Adult and Health Services,Head of Adults,Third Party Payments,470101,Purchase of Care,02/10/2019,3646933-2574719,"2,444.12",BONDCARE WILLINGTON LTD.
Adult and Health Services,Head of Adults,Third Party Payments,471101,Purchase of Care,02/10/2019,3646933-2574720,"2,457.00",BONDCARE WILLINGTON LTD.
Adult and Health Services,Head of Adults,Third Party Payments,471101,Purchase of Care,02/10/2019,3646933-2574721,"2,457.00",BONDCARE WILLINGTON LTD.
Adult and Health Services,Head of Adults,Third Party Payments,471101,Purchase of Care,02/10/2019,3646933-2574722,"2,457.00",BONDCARE WILLINGTON LTD.
Adult and Health Services,Head of Adults,Third Party Payments,471101,Purchase of Care,02/10/2019,3646933-2577421,614.25,BONDCARE WILLINGTON LTD.
Adult and Health Services,Head of Adults,Third Party Payments,474101,Purchase of Care,02/10/2019,3646934-2572964,"1,511.68",BONDCARE WILLINGTON LTD.
Adult and Health Services,Head of Adults,Third Party Payments,474101,Purchase of Care,02/10/2019,3646934-2572967,"2,466.24",BONDCARE WILLINGTON LTD.
Adult and Health Services,Head of Adults,Third Party Payments,470101,Purchase of Care,02/10/2019,3646934-2572969,"1,184.84",BONDCARE WILLINGTON LTD.
Adult and Health Services,Head of Adults,Third Party Payments,470101,Purchase of Care,02/10/2019,3646934-2572971,"2,369.64",BONDCARE WILLINGTON LTD.
Adult and Health Services,Head of Adults,Third Party Payments,470101,Purchase of Care,02/10/2019,3646934-2572972,"2,369.64",BONDCARE WILLINGTON LTD.
Adult and Health Services,Head of Adults,Third Party Payments,470101,Purchase of Care,02/10/2019,3646934-2572974,"2,986.48",BONDCARE WILLINGTON LTD.
Adult and Health Services,Head of Adults,Third Party Payments,470101,Purchase of Care,02/10/2019,3646934-2572975,"2,369.64",BONDCARE WILLINGTON LTD.
Adult and Health Services,Head of Adults,Third Party Payments,470101,Purchase of Care,02/10/2019,3646934-2572976,"2,369.64",BONDCARE WILLINGTON LTD.
Adult and Health Services,Head of Adults,Third Party Payments,474101,Purchase of Care,02/10/2019,3646934-2572977,"3,023.32",BONDCARE WILLINGTON LTD.
Adult and Health Services,Head of Adults,Third Party Payments,470101,Purchase of Care,02/10/2019,3646934-2572979,"2,369.64",BONDCARE WILLINGTON LTD.
Adult and Health Services,Head of Adults,Third Party Payments,470101,Purchase of Care,02/10/2019,3646934-2572982,"2,444.12",BONDCARE WILLINGTON LTD.
Adult and Health Services,Head of Adults,Third Party Payments,470101,Purchase of Care,02/10/2019,3646934-2572983,"2,369.64",BONDCARE WILLINGTON LTD.
Adult and Health Services,Head of Adults,Third Party Payments,470101,Purchase of Care,02/10/2019,3646934-2572985,"2,369.64",BONDCARE WILLINGTON LTD.
Adult and Health Services,Head of Adults,Third Party Payments,470101,Purchase of Care,02/10/2019,3646934-2572986,"2,369.64",BONDCARE WILLINGTON LTD.
Adult and Health Services,Head of Adults,Third Party Payments,474101,Purchase of Care,02/10/2019,3646934-2572987,"2,466.24",BONDCARE WILLINGTON LTD.
Adult and Health Services,Head of Adults,Third Party Payments,474101,Purchase of Care,02/10/2019,3646934-2572989,"3,023.32",BONDCARE WILLINGTON LTD.
Adult and Health Services,Head of Adults,Third Party Payments,470101,Purchase of Care,02/10/2019,3646934-2572991,"2,986.48",BONDCARE WILLINGTON LTD.
Adult and Health Services,Head of Adults,Third Party Payments,470101,Purchase of Care,02/10/2019,3646934-2572992,"2,369.64",BONDCARE WILLINGTON LTD.
Adult and Health Services,Head of Adults,Third Party Payments,470101,Purchase of Care,02/10/2019,3646934-2572993,"2,657.20",BONDCARE WILLINGTON LTD.
Adult and Health Services,Head of Adults,Third Party Payments,470101,Purchase of Care,02/10/2019,3646934-2572995,"2,369.64",BONDCARE WILLINGTON LTD.
Adult and Health Services,Head of Adults,Third Party Payments,470101,Purchase of Care,02/10/2019,3646934-2572996,"2,444.12",BONDCARE WILLINGTON LTD.
Adult and Health Services,Head of Adults,Third Party Payments,474101,Purchase of Care,02/10/2019,3646934-2572997,"2,466.24",BONDCARE WILLINGTON LTD.
Adult and Health Services,Head of Adults,Third Party Payments,470101,Purchase of Care,02/10/2019,3646934-2572999,"2,369.64",BONDCARE WILLINGTON LTD.
Adult and Health Services,Head of Adults,Third Party Payments,474101,Purchase of Care,02/10/2019,3646934-2573000,"2,466.24",BONDCARE WILLINGTON LTD.
Adult and Health Services,Head of Adults,Third Party Payments,470101,Purchase of Care,02/10/2019,3646934-2573002,"2,444.12",BONDCARE WILLINGTON LTD.
Adult and Health Services,Head of Adults,Third Party Payments,474101,Purchase of Care,02/10/2019,3646934-2573003,"2,476.88",BONDCARE WILLINGTON LTD.
Adult and Health Services,Head of Adults,Third Party Payments,470101,Purchase of Care,02/10/2019,3646934-2573005,"2,444.12",BONDCARE WILLINGTON LTD.
Adult and Health Services,Head of Adults,Third Party Payments,474101,Purchase of Care,02/10/2019,3646934-2573006,"2,466.24",BONDCARE WILLINGTON LTD.
Adult and Health Services,Head of Adults,Third Party Payments,470101,Purchase of Care,02/10/2019,3646934-2573008,"2,369.64",BONDCARE WILLINGTON LTD.
Adult and Health Services,Head of Adults,Third Party Payments,470101,Purchase of Care,02/10/2019,3646934-2573009,"2,444.12",BONDCARE WILLINGTON LTD.
Adult and Health Services,Head of Adults,Third Party Payments,474101,Purchase of Care,02/10/2019,3646934-2573010,"2,466.24",BONDCARE WILLINGTON LTD.
Adult and Health Services,Head of Adults,Third Party Payments,470101,Purchase of Care,02/10/2019,3646934-2573012,"2,444.12",BONDCARE WILLINGTON LTD.
Adult and Health Services,Head of Adults,Third Party Payments,470101,Purchase of Care,02/10/2019,3646934-2573013,"2,444.12",BONDCARE WILLINGTON LTD.
Adult and Health Services,Head of Adults,Third Party Payments,470101,Purchase of Care,02/10/2019,3646934-2573014,"2,444.12",BONDCARE WILLINGTON LTD.
Adult and Health Services,Head of Adults,Third Party Payments,470101,Purchase of Care,02/10/2019,3646934-2577464,959.94,BONDCARE WILLINGTON LTD.
Adult and Health Services,Head of Adults,Third Party Payments,474101,Purchase of Care,02/10/2019,3646934-2577470,"5,926.82",BONDCARE WILLINGTON LTD.
Adult and Health Services,Head of Adults,Third Party Payments,470101,Purchase of Care,02/10/2019,3646934-2577566,"1,269.45",BONDCARE WILLINGTON LTD.
Adult and Health Services,Head of Adults,Third Party Payments,470101,Purchase of Care,02/10/2019,3646934-2577567,846.30,BONDCARE WILLINGTON LTD.
Adult and Health Services,Head of Adults,Third Party Payments,474101,Purchase of Care,02/10/2019,3646934-2577598,"1,585.44",BONDCARE WILLINGTON LTD.
Adult and Health Services,Head of Adults,Third Party Payments,478101,Purchase of Care,02/10/2019,3647598-1926190H,"2,940.00",BONDCARE WILLINGTON LTD.
Adult and Health Services,Head of Adults,Third Party Payments,478101,Purchase of Care,02/10/2019,3647598-1926367H,"5,623.32",BONDCARE WILLINGTON LTD.
Adult and Health Services,Head of Adults,Third Party Payments,478101,Purchase of Care,02/10/2019,3647598-1926567H,994.00,BONDCARE WILLINGTON LTD.
Adult and Health Services,Head of Adults,Third Party Payments,478101,Purchase of Care,02/10/2019,3647598-1927411H,"4,249.00",BONDCARE WILLINGTON LTD.
Adult and Health Services,Head of Adults,Third Party Payments,478101,Purchase of Care,02/10/2019,3647598-1927427H,"3,824.80",BONDCARE WILLINGTON LTD.
Adult and Health Services,Head of Adults,Third Party Payments,478101,Purchase of Care,02/10/2019,3647598-1927801H,"6,664.00",BONDCARE WILLINGTON LTD.
Adult and Health Services,Head of Adults,Third Party Payments,478101,Purchase of Care,02/10/2019,3647598-1928026H,"9,408.00",BONDCARE WILLINGTON LTD.
Adult and Health Services,Head of Adults,Third Party Payments,478101,Purchase of Care,02/10/2019,3647598-1928610H,"6,350.40",BONDCARE WILLINGTON LTD.
Adult and Health Services,Head of Adults,Third Party Payments,478101,Purchase of Care,02/10/2019,3647598-1929250H,"4,704.00",BONDCARE WILLINGTON LTD.
Adult and Health Services,Head of Adults,Third Party Payments,478101,Purchase of Care,02/10/2019,3647598-1929355H,"6,659.32",BONDCARE WILLINGTON LTD.
Adult and Health Services,Head of Adults,Third Party Payments,478101,Purchase of Care,02/10/2019,3647598-1931456H,"8,534.40",BONDCARE WILLINGTON LTD.
Adult and Health Services,Head of Adults,Third Party Payments,478101,Purchase of Care,02/10/2019,3647598-1932938H,"4,895.32",BONDCARE WILLINGTON LTD.
Adult and Health Services,Head of Adults,Third Party Payments,471101,Purchase of Care,02/10/2019,3646936-2573597,"2,457.00",BROOMHOUSE CARE LTD.
Adult and Health Services,Head of Adults,Third Party Payments,471101,Purchase of Care,02/10/2019,3646936-2573598,"2,457.00",BROOMHOUSE CARE LTD.
Adult and Health Services,Head of Adults,Third Party Payments,471101,Purchase of Care,02/10/2019,3646936-2573599,"2,457.00",BROOMHOUSE CARE LTD.
Adult and Health Services,Head of Adults,Third Party Payments,471101,Purchase of Care,02/10/2019,3646936-2573600,"2,457.00",BROOMHOUSE CARE LTD.
Adult and Health Services,Head of Adults,Third Party Payments,471101,Purchase of Care,02/10/2019,3646936-2573601,"2,457.00",BROOMHOUSE CARE LTD.
Adult and Health Services,Head of Adults,Third Party Payments,471101,Purchase of Care,02/10/2019,3646936-2573602,"2,457.00",BROOMHOUSE CARE LTD.
Adult and Health Services,Head of Adults,Third Party Payments,471101,Purchase of Care,02/10/2019,3646936-2573603,"2,457.00",BROOMHOUSE CARE LTD.
Adult and Health Services,Head of Adults,Third Party Payments,471101,Purchase of Care,02/10/2019,3646936-2573604,"1,228.52",BROOMHOUSE CARE LTD.
Adult and Health Services,Head of Adults,Third Party Payments,471101,Purchase of Care,02/10/2019,3646936-2573605,"2,457.00",BROOMHOUSE CARE LTD.
Adult and Health Services,Head of Adults,Third Party Payments,470101,Purchase of Care,02/10/2019,3646936-2573606,"2,369.64",BROOMHOUSE CARE LTD.
Adult and Health Services,Head of Adults,Third Party Payments,470101,Purchase of Care,02/10/2019,3646936-2573607,"2,369.64",BROOMHOUSE CARE LTD.
Adult and Health Services,Head of Adults,Third Party Payments,471101,Purchase of Care,02/10/2019,3646936-2573608,"2,457.00",BROOMHOUSE CARE LTD.
Adult and Health Services,Head of Adults,Third Party Payments,471101,Purchase of Care,02/10/2019,3646936-2573609,"2,457.00",BROOMHOUSE CARE LTD.
Adult and Health Services,Head of Adults,Third Party Payments,471101,Purchase of Care,02/10/2019,3646936-2573610,"2,457.00",BROOMHOUSE CARE LTD.
Adult and Health Services,Head of Adults,Third Party Payments,471101,Purchase of Care,02/10/2019,3646936-2573612,"2,457.00",BROOMHOUSE CARE LTD.
Adult and Health Services,Head of Adults,Third Party Payments,470101,Purchase of Care,02/10/2019,3646936-2573613,"2,369.64",BROOMHOUSE CARE LTD.
Adult and Health Services,Head of Adults,Third Party Payments,471101,Purchase of Care,02/10/2019,3646936-2573614,"2,457.00",BROOMHOUSE CARE LTD.
Adult and Health Services,Head of Adults,Third Party Payments,470101,Purchase of Care,02/10/2019,3646936-2573615,"2,369.64",BROOMHOUSE CARE LTD.
Adult and Health Services,Head of Adults,Third Party Payments,471101,Purchase of Care,02/10/2019,3646936-2573616,"2,457.00",BROOMHOUSE CARE LTD.
Adult and Health Services,Head of Adults,Third Party Payments,471101,Purchase of Care,02/10/2019,3646936-2573617,"2,457.00",BROOMHOUSE CARE LTD.
Adult and Health Services,Head of Adults,Third Party Payments,470101,Purchase of Care,02/10/2019,3646936-2573618,"2,369.64",BROOMHOUSE CARE LTD.
Adult and Health Services,Head of Adults,Third Party Payments,470101,Purchase of Care,02/10/2019,3646936-2577606,"1,692.60",BROOMHOUSE CARE LTD.
Adult and Health Services,Head of Adults,Third Party Payments,470101,Purchase of Care,02/10/2019,3646936-2577607,677.04,BROOMHOUSE CARE LTD.
Adult and Health Services,Head of Adults,Third Party Payments,470101,Purchase of Care,02/10/2019,3646937-2577188,"1,120.00",BURLINGTON CARE (YORKSHIRE) LTD.
Adult and Health Services,Head of Adults,Third Party Payments,470101,Purchase of Care,02/10/2019,3646938-2576486,942.60,BURLINGTON CARE (YORKSHIRE) LTD.
Adult and Health Services,Head of Adults,Third Party Payments,470101,Purchase of Care,02/10/2019,3646939-2575455,"2,204.00",BURLINGTON CARE LTD.
Adult and Health Services,Head of Adults,Third Party Payments,470101,Purchase of Care,02/10/2019,3646940-2576438,"2,227.12",CARE UK COMMUNITY PARTNERSHIPS LTD.
Adult and Health Services,Head of Adults,Third Party Payments,470101,Purchase of Care,02/10/2019,3646941-2575724,"4,062.04",CARE UK COMMUNITY PARTNERSHIPS LTD.
Adult and Health Services,Head of Adults,Third Party Payments,474101,Purchase of Care,02/10/2019,3646941-2575726,"1,233.12",CARE UK COMMUNITY PARTNERSHIPS LTD.
Adult and Health Services,Head of Adults,Third Party Payments,474101,Purchase of Care,02/10/2019,3646941-2575728,"1,056.96",CARE UK COMMUNITY PARTNERSHIPS LTD.
Adult and Health Services,Head of Adults,Third Party Payments,471101,Purchase of Care,02/10/2019,3646941-2575730,"2,457.00",CARE UK COMMUNITY PARTNERSHIPS LTD.
Adult and Health Services,Head of Adults,Third Party Payments,470101,Purchase of Care,02/10/2019,3646941-2575731,"2,369.64",CARE UK COMMUNITY PARTNERSHIPS LTD.
Adult and Health Services,Head of Adults,Third Party Payments,471101,Purchase of Care,02/10/2019,3646941-2575732,"1,228.50",CARE UK COMMUNITY PARTNERSHIPS LTD.
Adult and Health Services,Head of Adults,Third Party Payments,471101,Purchase of Care,02/10/2019,3646941-2575733,"1,228.52",CARE UK COMMUNITY PARTNERSHIPS LTD.
Adult and Health Services,Head of Adults,Third Party Payments,470101,Purchase of Care,02/10/2019,3646941-2575734,"2,369.64",CARE UK COMMUNITY PARTNERSHIPS LTD.
Adult and Health Services,Head of Adults,Third Party Payments,471101,Purchase of Care,02/10/2019,3646941-2575735,"2,457.00",CARE UK COMMUNITY PARTNERSHIPS LTD.
Adult and Health Services,Head of Adults,Third Party Payments,471101,Purchase of Care,02/10/2019,3646941-2575736,"1,842.75",CARE UK COMMUNITY PARTNERSHIPS LTD.
Adult and Health Services,Head of Adults,Third Party Payments,470101,Purchase of Care,02/10/2019,3646941-2575737,"2,369.64",CARE UK COMMUNITY PARTNERSHIPS LTD.
Adult and Health Services,Head of Adults,Third Party Payments,474101,Purchase of Care,02/10/2019,3646941-2575738,"1,233.12",CARE UK COMMUNITY PARTNERSHIPS LTD.
Adult and Health Services,Head of Adults,Third Party Payments,471101,Purchase of Care,02/10/2019,3646941-2575740,"2,457.00",CARE UK COMMUNITY PARTNERSHIPS LTD.
Adult and Health Services,Head of Adults,Third Party Payments,470101,Purchase of Care,02/10/2019,3646941-2575741,"2,369.64",CARE UK COMMUNITY PARTNERSHIPS LTD.
Adult and Health Services,Head of Adults,Third Party Payments,470101,Purchase of Care,02/10/2019,3646941-2575742,"2,369.64",CARE UK COMMUNITY PARTNERSHIPS LTD.
Adult and Health Services,Head of Adults,Third Party Payments,471101,Purchase of Care,02/10/2019,3646941-2575743,"2,457.00",CARE UK COMMUNITY PARTNERSHIPS LTD.
Adult and Health Services,Head of Adults,Third Party Payments,471101,Purchase of Care,02/10/2019,3646941-2575744,"2,457.00",CARE UK COMMUNITY PARTNERSHIPS LTD.
Adult and Health Services,Head of Adults,Third Party Payments,471101,Purchase of Care,02/10/2019,3646941-2575745,"3,156.16",CARE UK COMMUNITY PARTNERSHIPS LTD.
Adult and Health Services,Head of Adults,Third Party Payments,470101,Purchase of Care,02/10/2019,3646941-2575746,"2,369.64",CARE UK COMMUNITY PARTNERSHIPS LTD.
Adult and Health Services,Head of Adults,Third Party Payments,470101,Purchase of Care,02/10/2019,3646941-2575747,"2,369.64",CARE UK COMMUNITY PARTNERSHIPS LTD.
Adult and Health Services,Head of Adults,Third Party Payments,470101,Purchase of Care,02/10/2019,3646941-2575748,"2,369.64",CARE UK COMMUNITY PARTNERSHIPS LTD.
Adult and Health Services,Head of Adults,Third Party Payments,470101,Purchase of Care,02/10/2019,3646941-2575749,"2,369.64",CARE UK COMMUNITY PARTNERSHIPS LTD.
Adult and Health Services,Head of Adults,Third Party Payments,470101,Purchase of Care,02/10/2019,3646941-2575750,"2,369.64",CARE UK COMMUNITY PARTNERSHIPS LTD.
Adult and Health Services,Head of Adults,Third Party Payments,470101,Purchase of Care,02/10/2019,3646941-2575751,"2,369.64",CARE UK COMMUNITY PARTNERSHIPS LTD.
Adult and Health Services,Head of Adults,Third Party Payments,471101,Purchase of Care,02/10/2019,3646941-2575752,"2,457.00",CARE UK COMMUNITY PARTNERSHIPS LTD.
Adult and Health Services,Head of Adults,Third Party Payments,470101,Purchase of Care,02/10/2019,3646941-2575753,"2,369.64",CARE UK COMMUNITY PARTNERSHIPS LTD.
Adult and Health Services,Head of Adults,Third Party Payments,470101,Purchase of Care,02/10/2019,3646941-2575754,"2,369.64",CARE UK COMMUNITY PARTNERSHIPS LTD.
Adult and Health Services,Head of Adults,Third Party Payments,470101,Purchase of Care,02/10/2019,3646941-2575755,"2,369.64",CARE UK COMMUNITY PARTNERSHIPS LTD.
Adult and Health Services,Head of Adults,Third Party Payments,474101,Purchase of Care,02/10/2019,3646941-2575756,"2,466.24",CARE UK COMMUNITY PARTNERSHIPS LTD.
Adult and Health Services,Head of Adults,Third Party Payments,474101,Purchase of Care,02/10/2019,3646941-2575758,"2,466.24",CARE UK COMMUNITY PARTNERSHIPS LTD.
Adult and Health Services,Head of Adults,Third Party Payments,471101,Purchase of Care,02/10/2019,3646941-2575760,"2,457.00",CARE UK COMMUNITY PARTNERSHIPS LTD.
Adult and Health Services,Head of Adults,Third Party Payments,471101,Purchase of Care,02/10/2019,3646941-2575761,"2,457.00",CARE UK COMMUNITY PARTNERSHIPS LTD.
Adult and Health Services,Head of Adults,Third Party Payments,474101,Purchase of Care,02/10/2019,3646941-2575762,"2,466.24",CARE UK COMMUNITY PARTNERSHIPS LTD.
Adult and Health Services,Head of Adults,Third Party Payments,471101,Purchase of Care,02/10/2019,3646941-2575764,"2,457.00",CARE UK COMMUNITY PARTNERSHIPS LTD.
Adult and Health Services,Head of Adults,Third Party Payments,471101,Purchase of Care,02/10/2019,3646941-2575765,"2,457.00",CARE UK COMMUNITY PARTNERSHIPS LTD.
Adult and Health Services,Head of Adults,Third Party Payments,474101,Purchase of Care,02/10/2019,3646941-2575766,"2,466.24",CARE UK COMMUNITY PARTNERSHIPS LTD.
Adult and Health Services,Head of Adults,Third Party Payments,471101,Purchase of Care,02/10/2019,3646941-2575768,"2,457.00",CARE UK COMMUNITY PARTNERSHIPS LTD.
Adult and Health Services,Head of Adults,Third Party Payments,474101,Purchase of Care,02/10/2019,3646941-2575769,"2,466.24",CARE UK COMMUNITY PARTNERSHIPS LTD.
Adult and Health Services,Head of Adults,Third Party Payments,470101,Purchase of Care,02/10/2019,3646941-2575771,"2,369.64",CARE UK COMMUNITY PARTNERSHIPS LTD.
Adult and Health Services,Head of Adults,Third Party Payments,474101,Purchase of Care,02/10/2019,3646941-2575772,"1,233.12",CARE UK COMMUNITY PARTNERSHIPS LTD.
Adult and Health Services,Head of Adults,Third Party Payments,470101,Purchase of Care,02/10/2019,3646941-2575774,"2,369.64",CARE UK COMMUNITY PARTNERSHIPS LTD.
Adult and Health Services,Head of Adults,Third Party Payments,470101,Purchase of Care,02/10/2019,3646941-2575775,"2,369.64",CARE UK COMMUNITY PARTNERSHIPS LTD.
Adult and Health Services,Head of Adults,Third Party Payments,470101,Purchase of Care,02/10/2019,3646941-2575776,"2,369.64",CARE UK COMMUNITY PARTNERSHIPS LTD.
Adult and Health Services,Head of Adults,Third Party Payments,470101,Purchase of Care,02/10/2019,3646941-2575777,"2,369.64",CARE UK COMMUNITY PARTNERSHIPS LTD.
Adult and Health Services,Head of Adults,Third Party Payments,471101,Purchase of Care,02/10/2019,3646942-2575593,"2,914.29",CARE UK COMMUNITY PARTNERSHIPS LTD.
Adult and Health Services,Head of Adults,Third Party Payments,471101,Purchase of Care,02/10/2019,3646942-2575594,"2,400.00",CARE UK COMMUNITY PARTNERSHIPS LTD.
Adult and Health Services,Head of Adults,Third Party Payments,470101,Purchase of Care,02/10/2019,3646943-2575778,"1,990.85",CARE UK COMMUNITY PARTNERSHIPS LTD.
Adult and Health Services,Head of Adults,Third Party Payments,471101,Purchase of Care,02/10/2019,3646944-2576871,"2,504.00",CARE UK COMMUNITY PARTNERSHIPS LTD.
Adult and Health Services,Head of Adults,Third Party Payments,471101,Purchase of Care,02/10/2019,3646944-2576872,"2,504.00",CARE UK COMMUNITY PARTNERSHIPS LTD.
Adult and Health Services,Head of Adults,Third Party Payments,471101,Purchase of Care,02/10/2019,3646944-2577521,"2,056.85",CARE UK COMMUNITY PARTNERSHIPS LTD.
Adult and Health Services,Head of Adults,Third Party Payments,470101,Purchase of Care,02/10/2019,3646945-2575566,"2,369.64",CARE UK COMMUNITY PARTNERSHIPS LTD.
Adult and Health Services,Head of Adults,Third Party Payments,470101,Purchase of Care,02/10/2019,3646945-2575567,"1,777.23",CARE UK COMMUNITY PARTNERSHIPS LTD.
Adult and Health Services,Head of Adults,Third Party Payments,471101,Purchase of Care,02/10/2019,3646945-2575568,"2,457.00",CARE UK COMMUNITY PARTNERSHIPS LTD.
Adult and Health Services,Head of Adults,Third Party Payments,470101,Purchase of Care,02/10/2019,3646945-2575569,"2,369.64",CARE UK COMMUNITY PARTNERSHIPS LTD.
Adult and Health Services,Head of Adults,Third Party Payments,471101,Purchase of Care,02/10/2019,3646945-2575571,"2,457.00",CARE UK COMMUNITY PARTNERSHIPS LTD.
Adult and Health Services,Head of Adults,Third Party Payments,471101,Purchase of Care,02/10/2019,3646945-2575572,"2,457.00",CARE UK COMMUNITY PARTNERSHIPS LTD.
Adult and Health Services,Head of Adults,Third Party Payments,471101,Purchase of Care,02/10/2019,3646945-2575573,"2,457.00",CARE UK COMMUNITY PARTNERSHIPS LTD.
Adult and Health Services,Head of Adults,Third Party Payments,470101,Purchase of Care,02/10/2019,3646945-2575574,"2,369.64",CARE UK COMMUNITY PARTNERSHIPS LTD.
Adult and Health Services,Head of Adults,Third Party Payments,471101,Purchase of Care,02/10/2019,3646945-2575575,"2,457.00",CARE UK COMMUNITY PARTNERSHIPS LTD.
Adult and Health Services,Head of Adults,Third Party Payments,471101,Purchase of Care,02/10/2019,3646945-2575576,"2,457.00",CARE UK COMMUNITY PARTNERSHIPS LTD.
Adult and Health Services,Head of Adults,Third Party Payments,471101,Purchase of Care,02/10/2019,3646945-2575577,"2,457.00",CARE UK COMMUNITY PARTNERSHIPS LTD.
Adult and Health Services,Head of Adults,Third Party Payments,471101,Purchase of Care,02/10/2019,3646945-2575578,"2,457.00",CARE UK COMMUNITY PARTNERSHIPS LTD.
Adult and Health Services,Head of Adults,Third Party Payments,471101,Purchase of Care,02/10/2019,3646945-2575579,"2,457.00",CARE UK COMMUNITY PARTNERSHIPS LTD.
Adult and Health Services,Head of Adults,Third Party Payments,471101,Purchase of Care,02/10/2019,3646945-2575580,"1,228.52",CARE UK COMMUNITY PARTNERSHIPS LTD.
Adult and Health Services,Head of Adults,Third Party Payments,470101,Purchase of Care,02/10/2019,3646945-2575581,"1,523.34",CARE UK COMMUNITY PARTNERSHIPS LTD.
Adult and Health Services,Head of Adults,Third Party Payments,470101,Purchase of Care,02/10/2019,3646945-2575582,"2,369.64",CARE UK COMMUNITY PARTNERSHIPS LTD.
Adult and Health Services,Head of Adults,Third Party Payments,470101,Purchase of Care,02/10/2019,3646945-2575583,"1,184.80",CARE UK COMMUNITY PARTNERSHIPS LTD.
Adult and Health Services,Head of Adults,Third Party Payments,471101,Purchase of Care,02/10/2019,3646945-2575584,"2,457.00",CARE UK COMMUNITY PARTNERSHIPS LTD.
Adult and Health Services,Head of Adults,Third Party Payments,471101,Purchase of Care,02/10/2019,3646945-2575585,"2,457.00",CARE UK COMMUNITY PARTNERSHIPS LTD.
Adult and Health Services,Head of Adults,Third Party Payments,471101,Purchase of Care,02/10/2019,3646945-2575586,"2,457.00",CARE UK COMMUNITY PARTNERSHIPS LTD.
Adult and Health Services,Head of Adults,Third Party Payments,470101,Purchase of Care,02/10/2019,3646945-2575587,"2,369.64",CARE UK COMMUNITY PARTNERSHIPS LTD.
Adult and Health Services,Head of Adults,Third Party Payments,470101,Purchase of Care,02/10/2019,3646945-2575588,"2,369.64",CARE UK COMMUNITY PARTNERSHIPS LTD.
Adult and Health Services,Head of Adults,Third Party Payments,471101,Purchase of Care,02/10/2019,3646945-2575589,"2,457.00",CARE UK COMMUNITY PARTNERSHIPS LTD.
Adult and Health Services,Head of Adults,Third Party Payments,470101,Purchase of Care,02/10/2019,3646945-2575590,"2,369.64",CARE UK COMMUNITY PARTNERSHIPS LTD.
Adult and Health Services,Head of Adults,Third Party Payments,470101,Purchase of Care,02/10/2019,3646945-2575591,"2,369.64",CARE UK COMMUNITY PARTNERSHIPS LTD.
Adult and Health Services,Head of Adults,Third Party Payments,471101,Purchase of Care,02/10/2019,3646945-2577514,789.75,CARE UK COMMUNITY PARTNERSHIPS LTD.
Adult and Health Services,Head of Adults,Third Party Payments,471101,Purchase of Care,02/10/2019,3646945-2577593,"1,316.25",CARE UK COMMUNITY PARTNERSHIPS LTD.
Adult and Health Services,Head of Adults,Third Party Payments,470101,Purchase of Care,02/10/2019,3646946-2575595,"2,433.28",CARE UK COMMUNITY PARTNERSHIPS LTD.
Adult and Health Services,Head of Adults,Third Party Payments,471101,Purchase of Care,02/10/2019,3646946-2575596,"2,516.20",CARE UK COMMUNITY PARTNERSHIPS LTD.
Adult and Health Services,Head of Adults,Third Party Payments,471101,Purchase of Care,02/10/2019,3646946-2575597,"2,516.20",CARE UK COMMUNITY PARTNERSHIPS LTD.
Adult and Health Services,Head of Adults,Third Party Payments,470101,Purchase of Care,02/10/2019,3646947-2574272,"2,369.64",CARE UK COMMUNITY PARTNERSHIPS LTD.
Adult and Health Services,Head of Adults,Third Party Payments,470101,Purchase of Care,02/10/2019,3646947-2574273,846.30,CARE UK COMMUNITY PARTNERSHIPS LTD.
Adult and Health Services,Head of Adults,Third Party Payments,470101,Purchase of Care,02/10/2019,3646947-2574274,"2,369.64",CARE UK COMMUNITY PARTNERSHIPS LTD.
Adult and Health Services,Head of Adults,Third Party Payments,470101,Purchase of Care,02/10/2019,3646947-2574275,"2,369.64",CARE UK COMMUNITY PARTNERSHIPS LTD.
Adult and Health Services,Head of Adults,Third Party Payments,470101,Purchase of Care,02/10/2019,3646947-2574277,"2,369.64",CARE UK COMMUNITY PARTNERSHIPS LTD.
Adult and Health Services,Head of Adults,Third Party Payments,470101,Purchase of Care,02/10/2019,3646947-2574278,"2,369.64",CARE UK COMMUNITY PARTNERSHIPS LTD.
Adult and Health Services,Head of Adults,Third Party Payments,470101,Purchase of Care,02/10/2019,3646947-2574279,"2,369.64",CARE UK COMMUNITY PARTNERSHIPS LTD.
Adult and Health Services,Head of Adults,Third Party Payments,470101,Purchase of Care,02/10/2019,3646947-2574280,"2,369.64",CARE UK COMMUNITY PARTNERSHIPS LTD.
Adult and Health Services,Head of Adults,Third Party Payments,470101,Purchase of Care,02/10/2019,3646947-2574281,"1,523.34",CARE UK COMMUNITY PARTNERSHIPS LTD.
Adult and Health Services,Head of Adults,Third Party Payments,470101,Purchase of Care,02/10/2019,3646947-2574282,"2,369.64",CARE UK COMMUNITY PARTNERSHIPS LTD.
Adult and Health Services,Head of Adults,Third Party Payments,470101,Purchase of Care,02/10/2019,3646947-2574283,"2,369.64",CARE UK COMMUNITY PARTNERSHIPS LTD.
Adult and Health Services,Head of Adults,Third Party Payments,470101,Purchase of Care,02/10/2019,3646947-2574285,"2,369.64",CARE UK COMMUNITY PARTNERSHIPS LTD.
Adult and Health Services,Head of Adults,Third Party Payments,470101,Purchase of Care,02/10/2019,3646947-2574286,"2,369.64",CARE UK COMMUNITY PARTNERSHIPS LTD.
Adult and Health Services,Head of Adults,Third Party Payments,470101,Purchase of Care,02/10/2019,3646947-2574287,"2,369.64",CARE UK COMMUNITY PARTNERSHIPS LTD.
Adult and Health Services,Head of Adults,Third Party Payments,470101,Purchase of Care,02/10/2019,3646947-2574288,"2,369.64",CARE UK COMMUNITY PARTNERSHIPS LTD.
Adult and Health Services,Head of Adults,Third Party Payments,470101,Purchase of Care,02/10/2019,3646947-2574289,"2,369.64",CARE UK COMMUNITY PARTNERSHIPS LTD.
Adult and Health Services,Head of Adults,Third Party Payments,470101,Purchase of Care,02/10/2019,3646947-2574290,"2,369.64",CARE UK COMMUNITY PARTNERSHIPS LTD.
Adult and Health Services,Head of Adults,Third Party Payments,470101,Purchase of Care,02/10/2019,3646947-2574291,"2,489.64",CARE UK COMMUNITY PARTNERSHIPS LTD.
Adult and Health Services,Head of Adults,Third Party Payments,470101,Purchase of Care,02/10/2019,3646947-2577379,592.41,CARE UK COMMUNITY PARTNERSHIPS LTD.
Adult and Health Services,Head of Adults,Third Party Payments,470101,Purchase of Care,02/10/2019,3646947-2577380,507.78,CARE UK COMMUNITY PARTNERSHIPS LTD.
Adult and Health Services,Head of Adults,Third Party Payments,470101,Purchase of Care,02/10/2019,3646947-2577381,"1,269.45",CARE UK COMMUNITY PARTNERSHIPS LTD.
Adult and Health Services,Head of Adults,Third Party Payments,474101,Purchase of Care,02/10/2019,3646948-2572960,"2,188.00",CARE UK COMMUNITY PARTNERSHIPS LTD.
Adult and Health Services,Head of Adults,Third Party Payments,471101,Purchase of Care,02/10/2019,3646948-2572962,"2,268.00",CARE UK COMMUNITY PARTNERSHIPS LTD.
Adult and Health Services,Head of Adults,Third Party Payments,470101,Purchase of Care,02/10/2019,3646949-2575910,"2,719.52",CARELINE LIFESTYLES (UK) LTD.
Adult and Health Services,Head of Adults,Third Party Payments,470101,Purchase of Care,02/10/2019,3646949-2575911,"2,016.00",CARELINE LIFESTYLES (UK) LTD.
Adult and Health Services,Head of Adults,Third Party Payments,474101,Purchase of Care,02/10/2019,3646950-2576634,"2,808.00",CARELINE LIFESTYLES (UK) LTD.
Adult and Health Services,Head of Adults,Third Party Payments,474101,Purchase of Care,02/10/2019,3646951-2576867,"4,103.40",CARELINE LIFESTYLES (UK) LTD.
Adult and Health Services,Head of Adults,Third Party Payments,474101,Purchase of Care,02/10/2019,3646951-2576868,"2,415.00",CARELINE LIFESTYLES (UK) LTD.
Adult and Health Services,Head of Adults,Third Party Payments,470101,Purchase of Care,02/10/2019,3646951-2576869,740.88,CARELINE LIFESTYLES (UK) LTD.
Adult and Health Services,Head of Adults,Third Party Payments,470101,Purchase of Care,02/10/2019,3646952-2575592,"2,461.68",CARELINE LIFESTYLES (UK) LTD.
Adult and Health Services,Head of Adults,Third Party Payments,474101,Purchase of Care,02/10/2019,3646953-2577217,"3,088.00",CARELINE LIFESTYLES.
Adult and Health Services,Head of Adults,Third Party Payments,474101,Purchase of Care,02/10/2019,3646953-2577219,"3,242.00",CARELINE LIFESTYLES.
Adult and Health Services,Head of Adults,Third Party Payments,474101,Purchase of Care,02/10/2019,3646953-2577220,"4,278.12",CARELINE LIFESTYLES.
Adult and Health Services,Head of Adults,Third Party Payments,474101,Purchase of Care,02/10/2019,3646953-2577222,"3,242.00",CARELINE LIFESTYLES.
Adult and Health Services,Head of Adults,Third Party Payments,474101,Purchase of Care,02/10/2019,3646953-2577223,"3,088.00",CARELINE LIFESTYLES.
Adult and Health Services,Head of Adults,Third Party Payments,474101,Purchase of Care,02/10/2019,3646953-2577224,"1,481.76",CARELINE LIFESTYLES.
Adult and Health Services,Head of Adults,Third Party Payments,474101,Purchase of Care,02/10/2019,3646954-2573842,"2,091.60",CAREWELL (HEALTH CARE) LTD.
Adult and Health Services,Head of Adults,Third Party Payments,470101,Purchase of Care,02/10/2019,3646954-2573848,"1,995.28",CAREWELL (HEALTH CARE) LTD.
Adult and Health Services,Head of Adults,Third Party Payments,474101,Purchase of Care,02/10/2019,3646954-2573850,"2,091.60",CAREWELL (HEALTH CARE) LTD.
Adult and Health Services,Head of Adults,Third Party Payments,470101,Purchase of Care,02/10/2019,3646954-2573852,"1,995.28",CAREWELL (HEALTH CARE) LTD.
Adult and Health Services,Head of Adults,Third Party Payments,470101,Purchase of Care,02/10/2019,3646954-2573853,"1,710.24",CAREWELL (HEALTH CARE) LTD.
Adult and Health Services,Head of Adults,Third Party Payments,470101,Purchase of Care,02/10/2019,3646954-2573857,"1,995.28",CAREWELL (HEALTH CARE) LTD.
Adult and Health Services,Head of Adults,Third Party Payments,470101,Purchase of Care,02/10/2019,3646954-2573858,"1,995.28",CAREWELL (HEALTH CARE) LTD.
Adult and Health Services,Head of Adults,Third Party Payments,470101,Purchase of Care,02/10/2019,3646954-2573860,"1,995.28",CAREWELL (HEALTH CARE) LTD.
Adult and Health Services,Head of Adults,Third Party Payments,470101,Purchase of Care,02/10/2019,3646954-2573861,"1,995.28",CAREWELL (HEALTH CARE) LTD.
Adult and Health Services,Head of Adults,Third Party Payments,470101,Purchase of Care,02/10/2019,3646954-2573863,"1,995.28",CAREWELL (HEALTH CARE) LTD.
Adult and Health Services,Head of Adults,Third Party Payments,470101,Purchase of Care,02/10/2019,3646954-2573864,"1,995.28",CAREWELL (HEALTH CARE) LTD.
Adult and Health Services,Head of Adults,Third Party Payments,470101,Purchase of Care,02/10/2019,3646954-2573865,"1,995.28",CAREWELL (HEALTH CARE) LTD.
Adult and Health Services,Head of Adults,Third Party Payments,474101,Purchase of Care,02/10/2019,3646954-2573866,"2,091.60",CAREWELL (HEALTH CARE) LTD.
Adult and Health Services,Head of Adults,Third Party Payments,470101,Purchase of Care,02/10/2019,3646954-2573868,"1,995.28",CAREWELL (HEALTH CARE) LTD.
Adult and Health Services,Head of Adults,Third Party Payments,474101,Purchase of Care,02/10/2019,3646954-2573869,"2,091.60",CAREWELL (HEALTH CARE) LTD.
Adult and Health Services,Head of Adults,Third Party Payments,470101,Purchase of Care,02/10/2019,3646954-2573872,"1,995.28",CAREWELL (HEALTH CARE) LTD.
Adult and Health Services,Head of Adults,Third Party Payments,470101,Purchase of Care,02/10/2019,3646954-2573873,"1,995.28",CAREWELL (HEALTH CARE) LTD.
Adult and Health Services,Head of Adults,Third Party Payments,470102,Purchase of Care,02/10/2019,3646954-2577602,761.67,CAREWELL (HEALTH CARE) LTD.
Adult and Health Services,Head of Adults,Third Party Payments,470101,Purchase of Care,02/10/2019,3646954-2577603,926.38,CAREWELL (HEALTH CARE) LTD.
Adult and Health Services,Head of Adults,Third Party Payments,470101,Purchase of Care,02/10/2019,3646954-2577626,"2,280.32",CAREWELL (HEALTH CARE) LTD.
Adult and Health Services,Head of Adults,Third Party Payments,471101,Purchase of Care,02/10/2019,3646955-2577086,"2,108.68",CARING HOMES HEALTHCARE GROUP LTD.
Adult and Health Services,Head of Adults,Third Party Payments,472101,Purchase of Care,02/10/2019,3647621-1921251H,"1,729.28",CASTLE CARE TEESDALE LTD.
Adult and Health Services,Head of Adults,Third Party Payments,472101,Purchase of Care,02/10/2019,3647621-1928035H,"1,580.04",CASTLE CARE TEESDALE LTD.
Adult and Health Services,Head of Adults,Third Party Payments,472101,Purchase of Care,02/10/2019,3647621-1928052H,"1,946.00",CASTLE CARE TEESDALE LTD.
Adult and Health Services,Head of Adults,Third Party Payments,472101,Purchase of Care,02/10/2019,3647621-1928088H,"1,421.76",CASTLE CARE TEESDALE LTD.
Adult and Health Services,Head of Adults,Third Party Payments,472101,Purchase of Care,02/10/2019,3647621-1928382H,538.08,CASTLE CARE TEESDALE LTD.
Adult and Health Services,Head of Adults,Third Party Payments,472101,Purchase of Care,02/10/2019,3647621-1928787H,740.52,CASTLE CARE TEESDALE LTD.
Adult and Health Services,Head of Adults,Third Party Payments,472101,Purchase of Care,02/10/2019,3647621-1928887H,"1,673.52",CASTLE CARE TEESDALE LTD.
Adult and Health Services,Head of Adults,Third Party Payments,472101,Purchase of Care,02/10/2019,3647621-1929029H,752.60,CASTLE CARE TEESDALE LTD.
Adult and Health Services,Head of Adults,Third Party Payments,472101,Purchase of Care,02/10/2019,3647621-1929069H,596.40,CASTLE CARE TEESDALE LTD.
Adult and Health Services,Head of Adults,Third Party Payments,472101,Purchase of Care,02/10/2019,3647621-1929511H,"1,629.12",CASTLE CARE TEESDALE LTD.
Adult and Health Services,Head of Adults,Third Party Payments,472101,Purchase of Care,02/10/2019,3647621-1929616H,691.12,CASTLE CARE TEESDALE LTD.
Adult and Health Services,Head of Adults,Third Party Payments,472101,Purchase of Care,02/10/2019,3647621-1930949H,513.40,CASTLE CARE TEESDALE LTD.
Adult and Health Services,Head of Adults,Third Party Payments,472101,Purchase of Care,02/10/2019,3647621-1931034H,701.00,CASTLE CARE TEESDALE LTD.
Adult and Health Services,Head of Adults,Third Party Payments,472101,Purchase of Care,02/10/2019,3647621-1931079H,789.88,CASTLE CARE TEESDALE LTD.
Adult and Health Services,Head of Adults,Third Party Payments,472101,Purchase of Care,02/10/2019,3647621-1931099H,"2,113.28",CASTLE CARE TEESDALE LTD.
Adult and Health Services,Head of Adults,Third Party Payments,472101,Purchase of Care,02/10/2019,3647621-1931625H,"1,520.80",CASTLE CARE TEESDALE LTD.
Adult and Health Services,Head of Adults,Third Party Payments,472101,Purchase of Care,02/10/2019,3647621-1931783H,"2,587.12",CASTLE CARE TEESDALE LTD.
Adult and Health Services,Head of Adults,Third Party Payments,472101,Purchase of Care,02/10/2019,3647621-1931840H,622.04,CASTLE CARE TEESDALE LTD.
Adult and Health Services,Head of Adults,Third Party Payments,472101,Purchase of Care,02/10/2019,3647621-1931996H,635.85,CASTLE CARE TEESDALE LTD.
Adult and Health Services,Head of Adults,Third Party Payments,472101,Purchase of Care,02/10/2019,3647621-1932101H,712.40,CASTLE CARE TEESDALE LTD.
Adult and Health Services,Head of Adults,Third Party Payments,472101,Purchase of Care,02/10/2019,3647621-1932281H,582.72,CASTLE CARE TEESDALE LTD.
Adult and Health Services,Head of Adults,Third Party Payments,472101,Purchase of Care,02/10/2019,3647621-1932608H,607.21,CASTLE CARE TEESDALE LTD.
Adult and Health Services,Head of Adults,Third Party Payments,472101,Purchase of Care,02/10/2019,3647621-1932632H,582.68,CASTLE CARE TEESDALE LTD.
Adult and Health Services,Head of Adults,Third Party Payments,470101,Purchase of Care,02/10/2019,3646956-2574253,592.41,CASTLEBANK CARE HOME LTD.
Adult and Health Services,Head of Adults,Third Party Payments,470101,Purchase of Care,02/10/2019,3646956-2574254,"2,369.64",CASTLEBANK CARE HOME LTD.
Adult and Health Services,Head of Adults,Third Party Payments,471101,Purchase of Care,02/10/2019,3646956-2574255,"2,457.00",CASTLEBANK CARE HOME LTD.
Adult and Health Services,Head of Adults,Third Party Payments,470101,Purchase of Care,02/10/2019,3646956-2574256,"2,369.64",CASTLEBANK CARE HOME LTD.
Adult and Health Services,Head of Adults,Third Party Payments,470101,Purchase of Care,02/10/2019,3646956-2574258,"2,369.64",CASTLEBANK CARE HOME LTD.
Adult and Health Services,Head of Adults,Third Party Payments,471101,Purchase of Care,02/10/2019,3646956-2574259,"2,457.00",CASTLEBANK CARE HOME LTD.
Adult and Health Services,Head of Adults,Third Party Payments,470101,Purchase of Care,02/10/2019,3646956-2574260,"2,369.64",CASTLEBANK CARE HOME LTD.
Adult and Health Services,Head of Adults,Third Party Payments,471101,Purchase of Care,02/10/2019,3646956-2574261,"1,228.52",CASTLEBANK CARE HOME LTD.
Adult and Health Services,Head of Adults,Third Party Payments,470101,Purchase of Care,02/10/2019,3646956-2574262,"2,369.64",CASTLEBANK CARE HOME LTD.
Adult and Health Services,Head of Adults,Third Party Payments,470101,Purchase of Care,02/10/2019,3646956-2574263,"2,369.64",CASTLEBANK CARE HOME LTD.
Adult and Health Services,Head of Adults,Third Party Payments,471101,Purchase of Care,02/10/2019,3646956-2574264,"2,457.00",CASTLEBANK CARE HOME LTD.
Adult and Health Services,Head of Adults,Third Party Payments,470101,Purchase of Care,02/10/2019,3646956-2574265,"2,369.64",CASTLEBANK CARE HOME LTD.
Adult and Health Services,Head of Adults,Third Party Payments,470101,Purchase of Care,02/10/2019,3646956-2574266,"2,369.64",CASTLEBANK CARE HOME LTD.
Adult and Health Services,Head of Adults,Third Party Payments,471101,Purchase of Care,02/10/2019,3646956-2574267,"2,457.00",CASTLEBANK CARE HOME LTD.
Adult and Health Services,Head of Adults,Third Party Payments,473101,Purchase of Care,02/10/2019,3647624-1917590D,521.20,CHARITY REGISTERED AS ONE TO ONE.
Adult and Health Services,Head of Adults,Third Party Payments,470101,Purchase of Care,02/10/2019,3647624-1919736D,729.68,CHARITY REGISTERED AS ONE TO ONE.
Adult and Health Services,Head of Adults,Third Party Payments,470101,Purchase of Care,02/10/2019,3646962-2576487,"9,286.56",COLEG ELIDYR CAMPHILL COMMUNITIES.
Adult and Health Services,Head of Adults,Third Party Payments,472101,Purchase of Care,02/10/2019,3647646-1926311H,605.99,COMFORT CALL LTD.
Adult and Health Services,Head of Adults,Third Party Payments,472101,Purchase of Care,02/10/2019,3647646-1926313H,585.41,COMFORT CALL LTD.
Adult and Health Services,Head of Adults,Third Party Payments,472101,Purchase of Care,02/10/2019,3647646-1926360H,"1,764.87",COMFORT CALL LTD.
Adult and Health Services,Head of Adults,Third Party Payments,472101,Purchase of Care,02/10/2019,3647646-1926419H,570.20,COMFORT CALL LTD.
Adult and Health Services,Head of Adults,Third Party Payments,472101,Purchase of Care,02/10/2019,3647646-1926768H,"1,140.37",COMFORT CALL LTD.
Adult and Health Services,Head of Adults,Third Party Payments,472101,Purchase of Care,02/10/2019,3647646-1926788H,"1,460.02",COMFORT CALL LTD.
Adult and Health Services,Head of Adults,Third Party Payments,472101,Purchase of Care,02/10/2019,3647646-1927347H,622.04,COMFORT CALL LTD.
Adult and Health Services,Head of Adults,Third Party Payments,472101,Purchase of Care,02/10/2019,3647646-1927383H,977.46,COMFORT CALL LTD.
Adult and Health Services,Head of Adults,Third Party Payments,472101,Purchase of Care,02/10/2019,3647646-1927888H,503.56,COMFORT CALL LTD.
Adult and Health Services,Head of Adults,Third Party Payments,472101,Purchase of Care,02/10/2019,3647646-1927951H,597.35,COMFORT CALL LTD.
Adult and Health Services,Head of Adults,Third Party Payments,472101,Purchase of Care,02/10/2019,3647646-1928136H,941.09,COMFORT CALL LTD.
Adult and Health Services,Head of Adults,Third Party Payments,472101,Purchase of Care,02/10/2019,3647646-1928148H,829.36,COMFORT CALL LTD.
Adult and Health Services,Head of Adults,Third Party Payments,472101,Purchase of Care,02/10/2019,3647646-1928151H,671.39,COMFORT CALL LTD.
Adult and Health Services,Head of Adults,Third Party Payments,472101,Purchase of Care,02/10/2019,3647646-1928166H,"1,698.20",COMFORT CALL LTD.
Adult and Health Services,Head of Adults,Third Party Payments,472101,Purchase of Care,02/10/2019,3647646-1928213H,688.67,COMFORT CALL LTD.
Adult and Health Services,Head of Adults,Third Party Payments,472101,Purchase of Care,02/10/2019,3647646-1928258H,687.43,COMFORT CALL LTD.
Adult and Health Services,Head of Adults,Third Party Payments,472101,Purchase of Care,02/10/2019,3647646-1928274H,"1,599.48",COMFORT CALL LTD.
Adult and Health Services,Head of Adults,Third Party Payments,472101,Purchase of Care,02/10/2019,3647646-1928321H,"1,031.76",COMFORT CALL LTD.
Adult and Health Services,Head of Adults,Third Party Payments,472101,Purchase of Care,02/10/2019,3647646-1928326H,544.27,COMFORT CALL LTD.
Adult and Health Services,Head of Adults,Third Party Payments,472101,Purchase of Care,02/10/2019,3647646-1928328H,582.52,COMFORT CALL LTD.
Adult and Health Services,Head of Adults,Third Party Payments,472101,Purchase of Care,02/10/2019,3647646-1928405H,"1,265.03",COMFORT CALL LTD.
Adult and Health Services,Head of Adults,Third Party Payments,472101,Purchase of Care,02/10/2019,3647646-1928468H,609.68,COMFORT CALL LTD.
Adult and Health Services,Head of Adults,Third Party Payments,472101,Purchase of Care,02/10/2019,3647646-1928538H,"1,608.12",COMFORT CALL LTD.
Adult and Health Services,Head of Adults,Third Party Payments,472101,Purchase of Care,02/10/2019,3647646-1928544H,918.24,COMFORT CALL LTD.
Adult and Health Services,Head of Adults,Third Party Payments,472101,Purchase of Care,02/10/2019,3647646-1928566H,977.46,COMFORT CALL LTD.
Adult and Health Services,Head of Adults,Third Party Payments,472101,Purchase of Care,02/10/2019,3647646-1928592H,814.55,COMFORT CALL LTD.
Adult and Health Services,Head of Adults,Third Party Payments,472101,Purchase of Care,02/10/2019,3647646-1928665H,799.75,COMFORT CALL LTD.
Adult and Health Services,Head of Adults,Third Party Payments,472101,Purchase of Care,02/10/2019,3647646-1928740H,"1,658.72",COMFORT CALL LTD.
Adult and Health Services,Head of Adults,Third Party Payments,472101,Purchase of Care,02/10/2019,3647646-1928816H,656.56,COMFORT CALL LTD.
Adult and Health Services,Head of Adults,Third Party Payments,472101,Purchase of Care,02/10/2019,3647646-1928914H,896.61,COMFORT CALL LTD.
Adult and Health Services,Head of Adults,Third Party Payments,472101,Purchase of Care,02/10/2019,3647646-1928930H,740.51,COMFORT CALL LTD.
Adult and Health Services,Head of Adults,Third Party Payments,472101,Purchase of Care,02/10/2019,3647646-1929018H,545.51,COMFORT CALL LTD.
Adult and Health Services,Head of Adults,Third Party Payments,472101,Purchase of Care,02/10/2019,3647646-1929181H,"1,371.17",COMFORT CALL LTD.
Adult and Health Services,Head of Adults,Third Party Payments,472101,Purchase of Care,02/10/2019,3647646-1929202H,770.12,COMFORT CALL LTD.
Adult and Health Services,Head of Adults,Third Party Payments,472101,Purchase of Care,02/10/2019,3647646-1929217H,681.28,COMFORT CALL LTD.
Adult and Health Services,Head of Adults,Third Party Payments,472101,Purchase of Care,02/10/2019,3647646-1929252H,506.01,COMFORT CALL LTD.
Adult and Health Services,Head of Adults,Third Party Payments,472101,Purchase of Care,02/10/2019,3647646-1929260H,580.06,COMFORT CALL LTD.
Adult and Health Services,Head of Adults,Third Party Payments,472101,Purchase of Care,02/10/2019,3647646-1929320H,"1,466.19",COMFORT CALL LTD.
Adult and Health Services,Head of Adults,Third Party Payments,472101,Purchase of Care,02/10/2019,3647646-1929384H,"1,258.85",COMFORT CALL LTD.
Adult and Health Services,Head of Adults,Third Party Payments,472101,Purchase of Care,02/10/2019,3647646-1929595H,"1,332.90",COMFORT CALL LTD.
Adult and Health Services,Head of Adults,Third Party Payments,472101,Purchase of Care,02/10/2019,3647646-1929618H,829.36,COMFORT CALL LTD.
Adult and Health Services,Head of Adults,Third Party Payments,472101,Purchase of Care,02/10/2019,3647646-1929625H,525.75,COMFORT CALL LTD.
Adult and Health Services,Head of Adults,Third Party Payments,472101,Purchase of Care,02/10/2019,3647646-1929651H,673.87,COMFORT CALL LTD.
Adult and Health Services,Head of Adults,Third Party Payments,472101,Purchase of Care,02/10/2019,3647646-1929667H,"1,056.45",COMFORT CALL LTD.
Adult and Health Services,Head of Adults,Third Party Payments,472101,Purchase of Care,02/10/2019,3647646-1929731H,"1,656.26",COMFORT CALL LTD.
Adult and Health Services,Head of Adults,Third Party Payments,472101,Purchase of Care,02/10/2019,3647646-1929901H,888.66,COMFORT CALL LTD.
Adult and Health Services,Head of Adults,Third Party Payments,472101,Purchase of Care,02/10/2019,3647646-1929922H,"1,293.40",COMFORT CALL LTD.
Adult and Health Services,Head of Adults,Third Party Payments,472101,Purchase of Care,02/10/2019,3647646-1930074H,721.98,COMFORT CALL LTD.
Adult and Health Services,Head of Adults,Third Party Payments,472101,Purchase of Care,02/10/2019,3647646-1930080H,570.20,COMFORT CALL LTD.
Adult and Health Services,Head of Adults,Third Party Payments,472101,Purchase of Care,02/10/2019,3647646-1930100H,"1,787.08",COMFORT CALL LTD.
Adult and Health Services,Head of Adults,Third Party Payments,472101,Purchase of Care,02/10/2019,3647646-1930132H,686.20,COMFORT CALL LTD.
Adult and Health Services,Head of Adults,Third Party Payments,472101,Purchase of Care,02/10/2019,3647646-1930180H,683.72,COMFORT CALL LTD.
Adult and Health Services,Head of Adults,Third Party Payments,472101,Purchase of Care,02/10/2019,3647646-1930318H,775.06,COMFORT CALL LTD.
Adult and Health Services,Head of Adults,Third Party Payments,472101,Purchase of Care,02/10/2019,3647646-1930349H,503.54,COMFORT CALL LTD.
Adult and Health Services,Head of Adults,Third Party Payments,472101,Purchase of Care,02/10/2019,3647646-1930422H,873.80,COMFORT CALL LTD.
Adult and Health Services,Head of Adults,Third Party Payments,472101,Purchase of Care,02/10/2019,3647646-1930519H,688.67,COMFORT CALL LTD.
Adult and Health Services,Head of Adults,Third Party Payments,472101,Purchase of Care,02/10/2019,3647646-1930611H,"1,315.63",COMFORT CALL LTD.
Adult and Health Services,Head of Adults,Third Party Payments,472101,Purchase of Care,02/10/2019,3647646-1930640H,913.28,COMFORT CALL LTD.
Adult and Health Services,Head of Adults,Third Party Payments,472101,Purchase of Care,02/10/2019,3647646-1930723H,"1,036.72",COMFORT CALL LTD.
Adult and Health Services,Head of Adults,Third Party Payments,472101,Purchase of Care,02/10/2019,3647646-1930740H,549.21,COMFORT CALL LTD.
Adult and Health Services,Head of Adults,Third Party Payments,472101,Purchase of Care,02/10/2019,3647646-1930749H,750.36,COMFORT CALL LTD.
Adult and Health Services,Head of Adults,Third Party Payments,472101,Purchase of Care,02/10/2019,3647646-1930758H,618.32,COMFORT CALL LTD.
Adult and Health Services,Head of Adults,Third Party Payments,472101,Purchase of Care,02/10/2019,3647646-1930759H,562.80,COMFORT CALL LTD.
Adult and Health Services,Head of Adults,Third Party Payments,472101,Purchase of Care,02/10/2019,3647646-1930764H,681.26,COMFORT CALL LTD.
Adult and Health Services,Head of Adults,Third Party Payments,472101,Purchase of Care,02/10/2019,3647646-1930798H,581.29,COMFORT CALL LTD.
Adult and Health Services,Head of Adults,Third Party Payments,472101,Purchase of Care,02/10/2019,3647646-1930850H,575.12,COMFORT CALL LTD.
Adult and Health Services,Head of Adults,Third Party Payments,472101,Purchase of Care,02/10/2019,3647646-1930879H,"2,340.00",COMFORT CALL LTD.
Adult and Health Services,Head of Adults,Third Party Payments,472101,Purchase of Care,02/10/2019,3647646-1930909H,760.24,COMFORT CALL LTD.
Adult and Health Services,Head of Adults,Third Party Payments,472101,Purchase of Care,02/10/2019,3647646-1930942H,607.21,COMFORT CALL LTD.
Adult and Health Services,Head of Adults,Third Party Payments,472101,Purchase of Care,02/10/2019,3647646-1930948H,770.12,COMFORT CALL LTD.
Adult and Health Services,Head of Adults,Third Party Payments,472101,Purchase of Care,02/10/2019,3647646-1930956H,"1,779.67",COMFORT CALL LTD.
Adult and Health Services,Head of Adults,Third Party Payments,472101,Purchase of Care,02/10/2019,3647646-1931022H,"2,369.61",COMFORT CALL LTD.
Adult and Health Services,Head of Adults,Third Party Payments,472101,Purchase of Care,02/10/2019,3647646-1931089H,582.52,COMFORT CALL LTD.
Adult and Health Services,Head of Adults,Third Party Payments,472101,Purchase of Care,02/10/2019,3647646-1931206H,"1,176.35",COMFORT CALL LTD.
Adult and Health Services,Head of Adults,Third Party Payments,472101,Purchase of Care,02/10/2019,3647646-1931245H,918.24,COMFORT CALL LTD.
Adult and Health Services,Head of Adults,Third Party Payments,472101,Purchase of Care,02/10/2019,3647646-1931251H,"1,510.64",COMFORT CALL LTD.
Adult and Health Services,Head of Adults,Third Party Payments,472101,Purchase of Care,02/10/2019,3647646-1931258H,607.20,COMFORT CALL LTD.
Adult and Health Services,Head of Adults,Third Party Payments,472101,Purchase of Care,02/10/2019,3647646-1931259H,651.64,COMFORT CALL LTD.
Adult and Health Services,Head of Adults,Third Party Payments,472101,Purchase of Care,02/10/2019,3647646-1931393H,676.33,COMFORT CALL LTD.
Adult and Health Services,Head of Adults,Third Party Payments,472101,Purchase of Care,02/10/2019,3647646-1931561H,"2,189.42",COMFORT CALL LTD.
Adult and Health Services,Head of Adults,Third Party Payments,472101,Purchase of Care,02/10/2019,3647646-1931575H,829.92,COMFORT CALL LTD.
Adult and Health Services,Head of Adults,Third Party Payments,472101,Purchase of Care,02/10/2019,3647646-1931598H,552.92,COMFORT CALL LTD.
Adult and Health Services,Head of Adults,Third Party Payments,472101,Purchase of Care,02/10/2019,3647646-1931612H,629.43,COMFORT CALL LTD.
Adult and Health Services,Head of Adults,Third Party Payments,472101,Purchase of Care,02/10/2019,3647646-1931880H,"1,140.36",COMFORT CALL LTD.
Adult and Health Services,Head of Adults,Third Party Payments,472101,Purchase of Care,02/10/2019,3647646-1931973H,622.04,COMFORT CALL LTD.
Adult and Health Services,Head of Adults,Third Party Payments,472101,Purchase of Care,02/10/2019,3647646-1932026H,533.16,COMFORT CALL LTD.
Adult and Health Services,Head of Adults,Third Party Payments,472101,Purchase of Care,02/10/2019,3647646-1932048H,701.02,COMFORT CALL LTD.
Adult and Health Services,Head of Adults,Third Party Payments,472101,Purchase of Care,02/10/2019,3647646-1932103H,513.40,COMFORT CALL LTD.
Adult and Health Services,Head of Adults,Third Party Payments,472101,Purchase of Care,02/10/2019,3647646-1932117H,883.68,COMFORT CALL LTD.
Adult and Health Services,Head of Adults,Third Party Payments,472101,Purchase of Care,02/10/2019,3647646-1932148H,610.92,COMFORT CALL LTD.
Adult and Health Services,Head of Adults,Third Party Payments,472101,Purchase of Care,02/10/2019,3647646-1932203H,789.88,COMFORT CALL LTD.
Adult and Health Services,Head of Adults,Third Party Payments,472101,Purchase of Care,02/10/2019,3647646-1932317H,"1,648.84",COMFORT CALL LTD.
Adult and Health Services,Head of Adults,Third Party Payments,472101,Purchase of Care,02/10/2019,3647646-1932379H,557.84,COMFORT CALL LTD.
Adult and Health Services,Head of Adults,Third Party Payments,472101,Purchase of Care,02/10/2019,3647646-1932402H,572.65,COMFORT CALL LTD.
Adult and Health Services,Head of Adults,Third Party Payments,472101,Purchase of Care,02/10/2019,3647646-1932426H,622.04,COMFORT CALL LTD.
Adult and Health Services,Head of Adults,Third Party Payments,472101,Purchase of Care,02/10/2019,3647646-1932437H,659.06,COMFORT CALL LTD.
Adult and Health Services,Head of Adults,Third Party Payments,472101,Purchase of Care,02/10/2019,3647646-1932451H,"1,769.80",COMFORT CALL LTD.
Adult and Health Services,Head of Adults,Third Party Payments,478101,Purchase of Care,02/10/2019,3647647-1926741H,"5,923.56",COMMUNITY INTEGRATED CARE LTD.
Adult and Health Services,Head of Adults,Third Party Payments,478101,Purchase of Care,02/10/2019,3647647-1926770H,"4,931.44",COMMUNITY INTEGRATED CARE LTD.
Adult and Health Services,Head of Adults,Third Party Payments,478101,Purchase of Care,02/10/2019,3647647-1926820H,"4,820.36",COMMUNITY INTEGRATED CARE LTD.
Adult and Health Services,Head of Adults,Third Party Payments,478101,Purchase of Care,02/10/2019,3647647-1926894H,"3,793.40",COMMUNITY INTEGRATED CARE LTD.
Adult and Health Services,Head of Adults,Third Party Payments,478101,Purchase of Care,02/10/2019,3647647-1926966H,"4,808.88",COMMUNITY INTEGRATED CARE LTD.
Adult and Health Services,Head of Adults,Third Party Payments,478101,Purchase of Care,02/10/2019,3647647-1926968H,"5,631.76",COMMUNITY INTEGRATED CARE LTD.
Adult and Health Services,Head of Adults,Third Party Payments,478101,Purchase of Care,02/10/2019,3647647-1926969H,"5,339.96",COMMUNITY INTEGRATED CARE LTD.
Adult and Health Services,Head of Adults,Third Party Payments,478101,Purchase of Care,02/10/2019,3647647-1926970H,"3,793.40",COMMUNITY INTEGRATED CARE LTD.
Adult and Health Services,Head of Adults,Third Party Payments,478101,Purchase of Care,02/10/2019,3647647-1926972H,"3,793.40",COMMUNITY INTEGRATED CARE LTD.
Adult and Health Services,Head of Adults,Third Party Payments,478101,Purchase of Care,02/10/2019,3647647-1927037H,"6,775.12",COMMUNITY INTEGRATED CARE LTD.
Adult and Health Services,Head of Adults,Third Party Payments,478101,Purchase of Care,02/10/2019,3647647-1927044H,"5,339.96",COMMUNITY INTEGRATED CARE LTD.
Adult and Health Services,Head of Adults,Third Party Payments,478101,Purchase of Care,02/10/2019,3647647-1927057H,"4,820.36",COMMUNITY INTEGRATED CARE LTD.
Adult and Health Services,Head of Adults,Third Party Payments,478101,Purchase of Care,02/10/2019,3647647-1927060H,"4,925.60",COMMUNITY INTEGRATED CARE LTD.
Adult and Health Services,Head of Adults,Third Party Payments,478101,Purchase of Care,02/10/2019,3647647-1927061H,"4,867.24",COMMUNITY INTEGRATED CARE LTD.
Adult and Health Services,Head of Adults,Third Party Payments,478101,Purchase of Care,02/10/2019,3647647-1927105H,915.28,COMMUNITY INTEGRATED CARE LTD.
Adult and Health Services,Head of Adults,Third Party Payments,478101,Purchase of Care,02/10/2019,3647647-1927157H,"8,433.04",COMMUNITY INTEGRATED CARE LTD.
Adult and Health Services,Head of Adults,Third Party Payments,478101,Purchase of Care,02/10/2019,3647647-1927170H,"4,867.24",COMMUNITY INTEGRATED CARE LTD.
Adult and Health Services,Head of Adults,Third Party Payments,478101,Purchase of Care,02/10/2019,3647647-1927246H,"3,793.40",COMMUNITY INTEGRATED CARE LTD.
Adult and Health Services,Head of Adults,Third Party Payments,478101,Purchase of Care,02/10/2019,3647647-1927259H,"4,820.36",COMMUNITY INTEGRATED CARE LTD.
Adult and Health Services,Head of Adults,Third Party Payments,478101,Purchase of Care,02/10/2019,3647647-1927289H,"4,931.44",COMMUNITY INTEGRATED CARE LTD.
Adult and Health Services,Head of Adults,Third Party Payments,478101,Purchase of Care,02/10/2019,3647647-1927363H,"1,265.44",COMMUNITY INTEGRATED CARE LTD.
Adult and Health Services,Head of Adults,Third Party Payments,478101,Purchase of Care,02/10/2019,3647647-1927381H,856.92,COMMUNITY INTEGRATED CARE LTD.
Adult and Health Services,Head of Adults,Third Party Payments,478101,Purchase of Care,02/10/2019,3647647-1927499H,"4,406.20",COMMUNITY INTEGRATED CARE LTD.
Adult and Health Services,Head of Adults,Third Party Payments,478101,Purchase of Care,02/10/2019,3647647-1927597H,"4,820.36",COMMUNITY INTEGRATED CARE LTD.
Adult and Health Services,Head of Adults,Third Party Payments,478101,Purchase of Care,02/10/2019,3647647-1927600H,"4,931.44",COMMUNITY INTEGRATED CARE LTD.
Adult and Health Services,Head of Adults,Third Party Payments,478101,Purchase of Care,02/10/2019,3647647-1927782H,"1,207.08",COMMUNITY INTEGRATED CARE LTD.
Adult and Health Services,Head of Adults,Third Party Payments,478101,Purchase of Care,02/10/2019,3647647-1927883H,"4,931.44",COMMUNITY INTEGRATED CARE LTD.
Adult and Health Services,Head of Adults,Third Party Payments,478101,Purchase of Care,02/10/2019,3647647-1928076H,"3,446.88",COMMUNITY INTEGRATED CARE LTD.
Adult and Health Services,Head of Adults,Third Party Payments,478101,Purchase of Care,02/10/2019,3647647-1928197H,"1,017.40",COMMUNITY INTEGRATED CARE LTD.
Adult and Health Services,Head of Adults,Third Party Payments,478101,Purchase of Care,02/10/2019,3647647-1928271H,"8,604.40",COMMUNITY INTEGRATED CARE LTD.
Adult and Health Services,Head of Adults,Third Party Payments,478101,Purchase of Care,02/10/2019,3647647-1928512H,740.20,COMMUNITY INTEGRATED CARE LTD.
Adult and Health Services,Head of Adults,Third Party Payments,478101,Purchase of Care,02/10/2019,3647647-1928835H,"7,649.04",COMMUNITY INTEGRATED CARE LTD.
Adult and Health Services,Head of Adults,Third Party Payments,478101,Purchase of Care,02/10/2019,3647647-1928848H,603.96,COMMUNITY INTEGRATED CARE LTD.
Adult and Health Services,Head of Adults,Third Party Payments,478101,Purchase of Care,02/10/2019,3647647-1928916H,"4,668.80",COMMUNITY INTEGRATED CARE LTD.
Adult and Health Services,Head of Adults,Third Party Payments,478101,Purchase of Care,02/10/2019,3647647-1929207H,652.68,COMMUNITY INTEGRATED CARE LTD.
Adult and Health Services,Head of Adults,Third Party Payments,478101,Purchase of Care,02/10/2019,3647647-1929333H,"1,032.00",COMMUNITY INTEGRATED CARE LTD.
Adult and Health Services,Head of Adults,Third Party Payments,478101,Purchase of Care,02/10/2019,3647647-1929387H,"8,990.40",COMMUNITY INTEGRATED CARE LTD.
Adult and Health Services,Head of Adults,Third Party Payments,478101,Purchase of Care,02/10/2019,3647647-1929633H,"5,252.44",COMMUNITY INTEGRATED CARE LTD.
Adult and Health Services,Head of Adults,Third Party Payments,478101,Purchase of Care,02/10/2019,3647647-1929773H,"1,221.68",COMMUNITY INTEGRATED CARE LTD.
Adult and Health Services,Head of Adults,Third Party Payments,478101,Purchase of Care,02/10/2019,3647647-1929805H,"5,135.68",COMMUNITY INTEGRATED CARE LTD.
Adult and Health Services,Head of Adults,Third Party Payments,478101,Purchase of Care,02/10/2019,3647647-1929868H,944.48,COMMUNITY INTEGRATED CARE LTD.
Adult and Health Services,Head of Adults,Third Party Payments,478101,Purchase of Care,02/10/2019,3647647-1930027H,638.08,COMMUNITY INTEGRATED CARE LTD.
Adult and Health Services,Head of Adults,Third Party Payments,478101,Purchase of Care,02/10/2019,3647647-1930070H,"2,346.40",COMMUNITY INTEGRATED CARE LTD.
Adult and Health Services,Head of Adults,Third Party Payments,478101,Purchase of Care,02/10/2019,3647647-1930811H,"1,177.92",COMMUNITY INTEGRATED CARE LTD.
Adult and Health Services,Head of Adults,Third Party Payments,478101,Purchase of Care,02/10/2019,3647647-1931115H,565.12,COMMUNITY INTEGRATED CARE LTD.
Adult and Health Services,Head of Adults,Third Party Payments,478101,Purchase of Care,02/10/2019,3647647-1931134H,740.20,COMMUNITY INTEGRATED CARE LTD.
Adult and Health Services,Head of Adults,Third Party Payments,478101,Purchase of Care,02/10/2019,3647647-1931503H,623.48,COMMUNITY INTEGRATED CARE LTD.
Adult and Health Services,Head of Adults,Third Party Payments,478101,Purchase of Care,02/10/2019,3647647-1931603H,"1,411.36",COMMUNITY INTEGRATED CARE LTD.
Adult and Health Services,Head of Adults,Third Party Payments,478101,Purchase of Care,02/10/2019,3647647-1931700H,740.20,COMMUNITY INTEGRATED CARE LTD.
Adult and Health Services,Head of Adults,Third Party Payments,478101,Purchase of Care,02/10/2019,3647647-1931856H,973.64,COMMUNITY INTEGRATED CARE LTD.
Adult and Health Services,Head of Adults,Third Party Payments,470101,Purchase of Care,02/10/2019,3646965-2576529,"7,773.80",CONSENSUS SUPPORT SERVICES LTD.
Adult and Health Services,Head of Adults,Third Party Payments,471101,Purchase of Care,02/10/2019,3646966-2576488,"2,457.00",COUNTRYWIDE CARE HOMES (2) LTD.
Adult and Health Services,Head of Adults,Third Party Payments,471101,Purchase of Care,02/10/2019,3646966-2576489,"2,457.00",COUNTRYWIDE CARE HOMES (2) LTD.
Adult and Health Services,Head of Adults,Third Party Payments,470101,Purchase of Care,02/10/2019,3646966-2576490,"2,489.64",COUNTRYWIDE CARE HOMES (2) LTD.
Adult and Health Services,Head of Adults,Third Party Payments,471101,Purchase of Care,02/10/2019,3646966-2576491,"2,577.00",COUNTRYWIDE CARE HOMES (2) LTD.
Adult and Health Services,Head of Adults,Third Party Payments,470101,Purchase of Care,02/10/2019,3646966-2576492,"2,489.64",COUNTRYWIDE CARE HOMES (2) LTD.
Adult and Health Services,Head of Adults,Third Party Payments,470101,Purchase of Care,02/10/2019,3646966-2576493,"2,369.64",COUNTRYWIDE CARE HOMES (2) LTD.
Adult and Health Services,Head of Adults,Third Party Payments,470101,Purchase of Care,02/10/2019,3646966-2576494,"2,489.64",COUNTRYWIDE CARE HOMES (2) LTD.
Adult and Health Services,Head of Adults,Third Party Payments,470101,Purchase of Care,02/10/2019,3646966-2576495,"2,489.64",COUNTRYWIDE CARE HOMES (2) LTD.
Adult and Health Services,Head of Adults,Third Party Payments,470101,Purchase of Care,02/10/2019,3646966-2576496,"2,489.64",COUNTRYWIDE CARE HOMES (2) LTD.
Adult and Health Services,Head of Adults,Third Party Payments,471101,Purchase of Care,02/10/2019,3646966-2576497,"2,577.00",COUNTRYWIDE CARE HOMES (2) LTD.
Adult and Health Services,Head of Adults,Third Party Payments,470101,Purchase of Care,02/10/2019,3646966-2576498,"2,489.64",COUNTRYWIDE CARE HOMES (2) LTD.
Adult and Health Services,Head of Adults,Third Party Payments,471101,Purchase of Care,02/10/2019,3646966-2576499,"2,577.00",COUNTRYWIDE CARE HOMES (2) LTD.
Adult and Health Services,Head of Adults,Third Party Payments,470101,Purchase of Care,02/10/2019,3646966-2576500,"2,489.64",COUNTRYWIDE CARE HOMES (2) LTD.
Adult and Health Services,Head of Adults,Third Party Payments,471101,Purchase of Care,02/10/2019,3646966-2576501,"2,577.00",COUNTRYWIDE CARE HOMES (2) LTD.
Adult and Health Services,Head of Adults,Third Party Payments,470101,Purchase of Care,02/10/2019,3646966-2576502,"2,489.64",COUNTRYWIDE CARE HOMES (2) LTD.
Adult and Health Services,Head of Adults,Third Party Payments,470101,Purchase of Care,02/10/2019,3646966-2576503,"2,489.64",COUNTRYWIDE CARE HOMES (2) LTD.
Adult and Health Services,Head of Adults,Third Party Payments,470101,Purchase of Care,02/10/2019,3646966-2576504,"2,489.64",COUNTRYWIDE CARE HOMES (2) LTD.
Adult and Health Services,Head of Adults,Third Party Payments,470101,Purchase of Care,02/10/2019,3646966-2576505,"2,489.64",COUNTRYWIDE CARE HOMES (2) LTD.
Adult and Health Services,Head of Adults,Third Party Payments,471101,Purchase of Care,02/10/2019,3646966-2576506,"2,457.00",COUNTRYWIDE CARE HOMES (2) LTD.
Adult and Health Services,Head of Adults,Third Party Payments,470101,Purchase of Care,02/10/2019,3646966-2576507,"2,489.64",COUNTRYWIDE CARE HOMES (2) LTD.
Adult and Health Services,Head of Adults,Third Party Payments,470101,Purchase of Care,02/10/2019,3646966-2576508,"2,489.64",COUNTRYWIDE CARE HOMES (2) LTD.
Adult and Health Services,Head of Adults,Third Party Payments,471101,Purchase of Care,02/10/2019,3646966-2576509,"2,577.00",COUNTRYWIDE CARE HOMES (2) LTD.
Adult and Health Services,Head of Adults,Third Party Payments,470101,Purchase of Care,02/10/2019,3646966-2576510,"2,489.64",COUNTRYWIDE CARE HOMES (2) LTD.
Adult and Health Services,Head of Adults,Third Party Payments,470101,Purchase of Care,02/10/2019,3646966-2576511,"2,489.64",COUNTRYWIDE CARE HOMES (2) LTD.
Adult and Health Services,Head of Adults,Third Party Payments,471101,Purchase of Care,02/10/2019,3646966-2576512,"2,577.00",COUNTRYWIDE CARE HOMES (2) LTD.
Adult and Health Services,Head of Adults,Third Party Payments,470101,Purchase of Care,02/10/2019,3646966-2576513,"2,669.64",COUNTRYWIDE CARE HOMES (2) LTD.
Adult and Health Services,Head of Adults,Third Party Payments,471101,Purchase of Care,02/10/2019,3646966-2576514,"2,577.00",COUNTRYWIDE CARE HOMES (2) LTD.
Adult and Health Services,Head of Adults,Third Party Payments,471101,Purchase of Care,02/10/2019,3646966-2576515,"1,228.52",COUNTRYWIDE CARE HOMES (2) LTD.
Adult and Health Services,Head of Adults,Third Party Payments,471101,Purchase of Care,02/10/2019,3646966-2576516,"2,457.00",COUNTRYWIDE CARE HOMES (2) LTD.
Adult and Health Services,Head of Adults,Third Party Payments,470101,Purchase of Care,02/10/2019,3646966-2576517,"1,184.84",COUNTRYWIDE CARE HOMES (2) LTD.
Adult and Health Services,Head of Adults,Third Party Payments,470101,Purchase of Care,02/10/2019,3646966-2576518,"2,369.64",COUNTRYWIDE CARE HOMES (2) LTD.
Adult and Health Services,Head of Adults,Third Party Payments,470101,Purchase of Care,02/10/2019,3646966-2576519,"2,469.64",COUNTRYWIDE CARE HOMES (2) LTD.
Adult and Health Services,Head of Adults,Third Party Payments,471101,Purchase of Care,02/10/2019,3646966-2576520,"2,457.00",COUNTRYWIDE CARE HOMES (2) LTD.
Adult and Health Services,Head of Adults,Third Party Payments,471101,Purchase of Care,02/10/2019,3646966-2576521,"2,457.00",COUNTRYWIDE CARE HOMES (2) LTD.
Adult and Health Services,Head of Adults,Third Party Payments,471101,Purchase of Care,02/10/2019,3646966-2576522,"2,457.00",COUNTRYWIDE CARE HOMES (2) LTD.
Adult and Health Services,Head of Adults,Third Party Payments,471101,Purchase of Care,02/10/2019,3646966-2576523,"2,457.00",COUNTRYWIDE CARE HOMES (2) LTD.
Adult and Health Services,Head of Adults,Third Party Payments,470101,Purchase of Care,02/10/2019,3646966-2576524,"2,369.64",COUNTRYWIDE CARE HOMES (2) LTD.
Adult and Health Services,Head of Adults,Third Party Payments,470101,Purchase of Care,02/10/2019,3646966-2576525,"2,369.64",COUNTRYWIDE CARE HOMES (2) LTD.
Adult and Health Services,Head of Adults,Third Party Payments,470101,Purchase of Care,02/10/2019,3646966-2576526,"2,429.64",COUNTRYWIDE CARE HOMES (2) LTD.
Adult and Health Services,Head of Adults,Third Party Payments,471101,Purchase of Care,02/10/2019,3646966-2576527,"2,457.00",COUNTRYWIDE CARE HOMES (2) LTD.
Adult and Health Services,Head of Adults,Third Party Payments,470101,Purchase of Care,02/10/2019,3646966-2576528,"2,429.64",COUNTRYWIDE CARE HOMES (2) LTD.
Adult and Health Services,Head of Adults,Third Party Payments,470101,Purchase of Care,02/10/2019,3646967-2573647,"2,444.12",COUNTRYWIDE CARE HOMES (2) LTD.
Adult and Health Services,Head of Adults,Third Party Payments,474101,Purchase of Care,02/10/2019,3646967-2573648,"2,678.57",COUNTRYWIDE CARE HOMES (2) LTD.
Adult and Health Services,Head of Adults,Third Party Payments,470101,Purchase of Care,02/10/2019,3646967-2573650,"2,369.64",COUNTRYWIDE CARE HOMES (2) LTD.
Adult and Health Services,Head of Adults,Third Party Payments,470101,Purchase of Care,02/10/2019,3646967-2573652,"2,369.64",COUNTRYWIDE CARE HOMES (2) LTD.
Adult and Health Services,Head of Adults,Third Party Payments,470101,Purchase of Care,02/10/2019,3646967-2573653,"2,444.12",COUNTRYWIDE CARE HOMES (2) LTD.
Adult and Health Services,Head of Adults,Third Party Payments,474101,Purchase of Care,02/10/2019,3646967-2573654,"2,476.88",COUNTRYWIDE CARE HOMES (2) LTD.
Adult and Health Services,Head of Adults,Third Party Payments,474101,Purchase of Care,02/10/2019,3646967-2573657,"1,233.12",COUNTRYWIDE CARE HOMES (2) LTD.
Adult and Health Services,Head of Adults,Third Party Payments,474101,Purchase of Care,02/10/2019,3646967-2573659,"2,466.24",COUNTRYWIDE CARE HOMES (2) LTD.
Adult and Health Services,Head of Adults,Third Party Payments,470101,Purchase of Care,02/10/2019,3646967-2573661,"2,444.12",COUNTRYWIDE CARE HOMES (2) LTD.
Adult and Health Services,Head of Adults,Third Party Payments,474101,Purchase of Care,02/10/2019,3646967-2573662,"2,466.24",COUNTRYWIDE CARE HOMES (2) LTD.
Adult and Health Services,Head of Adults,Third Party Payments,470101,Purchase of Care,02/10/2019,3646967-2573664,"2,444.12",COUNTRYWIDE CARE HOMES (2) LTD.
Adult and Health Services,Head of Adults,Third Party Payments,471101,Purchase of Care,02/10/2019,3646967-2577522,"2,193.75",COUNTRYWIDE CARE HOMES (2) LTD.
Adult and Health Services,Head of Adults,Third Party Payments,470101,Purchase of Care,02/10/2019,3646967-2577615,523.74,COUNTRYWIDE CARE HOMES (2) LTD.
Adult and Health Services,Head of Adults,Third Party Payments,470101,Purchase of Care,02/10/2019,3646967-2577616,611.03,COUNTRYWIDE CARE HOMES (2) LTD.
Adult and Health Services,Head of Adults,Third Party Payments,471101,Purchase of Care,02/10/2019,3646968-2574106,"1,228.48",COUNTRYWIDE CARE HOMES (2) LTD.
Adult and Health Services,Head of Adults,Third Party Payments,474101,Purchase of Care,02/10/2019,3646968-2574107,"1,761.60",COUNTRYWIDE CARE HOMES (2) LTD.
Adult and Health Services,Head of Adults,Third Party Payments,474101,Purchase of Care,02/10/2019,3646968-2574109,"1,233.12",COUNTRYWIDE CARE HOMES (2) LTD.
Adult and Health Services,Head of Adults,Third Party Payments,471101,Purchase of Care,02/10/2019,3646968-2574111,"2,577.00",COUNTRYWIDE CARE HOMES (2) LTD.
Adult and Health Services,Head of Adults,Third Party Payments,471101,Purchase of Care,02/10/2019,3646968-2574112,702.00,COUNTRYWIDE CARE HOMES (2) LTD.
Adult and Health Services,Head of Adults,Third Party Payments,474101,Purchase of Care,02/10/2019,3646968-2574113,"2,466.24",COUNTRYWIDE CARE HOMES (2) LTD.
Adult and Health Services,Head of Adults,Third Party Payments,474101,Purchase of Care,02/10/2019,3646968-2574115,"2,466.24",COUNTRYWIDE CARE HOMES (2) LTD.
Adult and Health Services,Head of Adults,Third Party Payments,470101,Purchase of Care,02/10/2019,3646968-2574117,"2,369.64",COUNTRYWIDE CARE HOMES (2) LTD.
Adult and Health Services,Head of Adults,Third Party Payments,474101,Purchase of Care,02/10/2019,3646968-2574118,"2,466.24",COUNTRYWIDE CARE HOMES (2) LTD.
Adult and Health Services,Head of Adults,Third Party Payments,471101,Purchase of Care,02/10/2019,3646968-2574120,"2,457.00",COUNTRYWIDE CARE HOMES (2) LTD.
Adult and Health Services,Head of Adults,Third Party Payments,474101,Purchase of Care,02/10/2019,3646968-2574121,"1,233.12",COUNTRYWIDE CARE HOMES (2) LTD.
Adult and Health Services,Head of Adults,Third Party Payments,474101,Purchase of Care,02/10/2019,3646968-2574123,"1,233.12",COUNTRYWIDE CARE HOMES (2) LTD.
Adult and Health Services,Head of Adults,Third Party Payments,474101,Purchase of Care,02/10/2019,3646968-2574125,"1,233.12",COUNTRYWIDE CARE HOMES (2) LTD.
Adult and Health Services,Head of Adults,Third Party Payments,474101,Purchase of Care,02/10/2019,3646968-2574128,"2,678.20",COUNTRYWIDE CARE HOMES (2) LTD.
Adult and Health Services,Head of Adults,Third Party Payments,470101,Purchase of Care,02/10/2019,3646968-2574130,"2,369.64",COUNTRYWIDE CARE HOMES (2) LTD.
Adult and Health Services,Head of Adults,Third Party Payments,474101,Purchase of Care,02/10/2019,3646968-2574131,"2,466.24",COUNTRYWIDE CARE HOMES (2) LTD.
Adult and Health Services,Head of Adults,Third Party Payments,474101,Purchase of Care,02/10/2019,3646968-2574134,"1,233.12",COUNTRYWIDE CARE HOMES (2) LTD.
Adult and Health Services,Head of Adults,Third Party Payments,471101,Purchase of Care,02/10/2019,3646968-2574136,"2,457.00",COUNTRYWIDE CARE HOMES (2) LTD.
Adult and Health Services,Head of Adults,Third Party Payments,474101,Purchase of Care,02/10/2019,3646968-2574138,"1,233.12",COUNTRYWIDE CARE HOMES (2) LTD.
Adult and Health Services,Head of Adults,Third Party Payments,470101,Purchase of Care,02/10/2019,3646968-2574140,"1,184.80",COUNTRYWIDE CARE HOMES (2) LTD.
Adult and Health Services,Head of Adults,Third Party Payments,470101,Purchase of Care,02/10/2019,3646968-2574143,"2,369.64",COUNTRYWIDE CARE HOMES (2) LTD.
Adult and Health Services,Head of Adults,Third Party Payments,474101,Purchase of Care,02/10/2019,3646968-2577467,"2,466.24",COUNTRYWIDE CARE HOMES (2) LTD.
Adult and Health Services,Head of Adults,Third Party Payments,474101,Purchase of Care,02/10/2019,3646969-2575181,"2,304.80",COUNTRYWIDE CARE HOMES (2) LTD.
Adult and Health Services,Head of Adults,Third Party Payments,471101,Purchase of Care,02/10/2019,3646970-2575408,702.00,COUNTRYWIDE CARE HOMES (2) LTD.
Adult and Health Services,Head of Adults,Third Party Payments,470101,Purchase of Care,02/10/2019,3646970-2575409,"2,369.64",COUNTRYWIDE CARE HOMES (2) LTD.
Adult and Health Services,Head of Adults,Third Party Payments,470101,Purchase of Care,02/10/2019,3646970-2575410,"1,100.19",COUNTRYWIDE CARE HOMES (2) LTD.
Adult and Health Services,Head of Adults,Third Party Payments,471101,Purchase of Care,02/10/2019,3646970-2575411,"2,457.00",COUNTRYWIDE CARE HOMES (2) LTD.
Adult and Health Services,Head of Adults,Third Party Payments,470101,Purchase of Care,02/10/2019,3646970-2575412,"2,369.64",COUNTRYWIDE CARE HOMES (2) LTD.
Adult and Health Services,Head of Adults,Third Party Payments,471101,Purchase of Care,02/10/2019,3646970-2575413,"2,457.00",COUNTRYWIDE CARE HOMES (2) LTD.
Adult and Health Services,Head of Adults,Third Party Payments,470101,Purchase of Care,02/10/2019,3646970-2575414,"2,369.64",COUNTRYWIDE CARE HOMES (2) LTD.
Adult and Health Services,Head of Adults,Third Party Payments,471101,Purchase of Care,02/10/2019,3646970-2575415,"2,457.00",COUNTRYWIDE CARE HOMES (2) LTD.
Adult and Health Services,Head of Adults,Third Party Payments,471101,Purchase of Care,02/10/2019,3646970-2575416,"2,457.00",COUNTRYWIDE CARE HOMES (2) LTD.
Adult and Health Services,Head of Adults,Third Party Payments,471101,Purchase of Care,02/10/2019,3646970-2575417,"2,457.00",COUNTRYWIDE CARE HOMES (2) LTD.
Adult and Health Services,Head of Adults,Third Party Payments,471101,Purchase of Care,02/10/2019,3646970-2575418,"1,755.00",COUNTRYWIDE CARE HOMES (2) LTD.
Adult and Health Services,Head of Adults,Third Party Payments,471101,Purchase of Care,02/10/2019,3646970-2575419,"2,577.00",COUNTRYWIDE CARE HOMES (2) LTD.
Adult and Health Services,Head of Adults,Third Party Payments,470101,Purchase of Care,02/10/2019,3646970-2575420,592.41,COUNTRYWIDE CARE HOMES (2) LTD.
Adult and Health Services,Head of Adults,Third Party Payments,470101,Purchase of Care,02/10/2019,3646970-2575421,"2,369.64",COUNTRYWIDE CARE HOMES (2) LTD.
Adult and Health Services,Head of Adults,Third Party Payments,471101,Purchase of Care,02/10/2019,3646970-2575422,"2,457.00",COUNTRYWIDE CARE HOMES (2) LTD.
Adult and Health Services,Head of Adults,Third Party Payments,470101,Purchase of Care,02/10/2019,3646970-2575423,"2,369.64",COUNTRYWIDE CARE HOMES (2) LTD.
Adult and Health Services,Head of Adults,Third Party Payments,470101,Purchase of Care,02/10/2019,3646970-2575424,"2,369.64",COUNTRYWIDE CARE HOMES (2) LTD.
Adult and Health Services,Head of Adults,Third Party Payments,471101,Purchase of Care,02/10/2019,3646970-2575425,"2,457.00",COUNTRYWIDE CARE HOMES (2) LTD.
Adult and Health Services,Head of Adults,Third Party Payments,470101,Purchase of Care,02/10/2019,3646970-2575426,"2,369.64",COUNTRYWIDE CARE HOMES (2) LTD.
Adult and Health Services,Head of Adults,Third Party Payments,470101,Purchase of Care,02/10/2019,3646970-2575427,930.93,COUNTRYWIDE CARE HOMES (2) LTD.
Adult and Health Services,Head of Adults,Third Party Payments,471101,Purchase of Care,02/10/2019,3646970-2575428,"2,457.00",COUNTRYWIDE CARE HOMES (2) LTD.
Adult and Health Services,Head of Adults,Third Party Payments,470101,Purchase of Care,02/10/2019,3646970-2575429,"2,369.64",COUNTRYWIDE CARE HOMES (2) LTD.
Adult and Health Services,Head of Adults,Third Party Payments,471101,Purchase of Care,02/10/2019,3646970-2575430,"2,557.00",COUNTRYWIDE CARE HOMES (2) LTD.
Adult and Health Services,Head of Adults,Third Party Payments,470101,Purchase of Care,02/10/2019,3646970-2575431,"2,369.64",COUNTRYWIDE CARE HOMES (2) LTD.
Adult and Health Services,Head of Adults,Third Party Payments,470101,Purchase of Care,02/10/2019,3646970-2575432,"2,369.64",COUNTRYWIDE CARE HOMES (2) LTD.
Adult and Health Services,Head of Adults,Third Party Payments,470101,Purchase of Care,02/10/2019,3646970-2575433,"2,369.64",COUNTRYWIDE CARE HOMES (2) LTD.
Adult and Health Services,Head of Adults,Third Party Payments,470101,Purchase of Care,02/10/2019,3646971-2574659,"2,369.64",CRAIGARRAN LTD.
Adult and Health Services,Head of Adults,Third Party Payments,474101,Purchase of Care,02/10/2019,3646971-2574660,"2,466.24",CRAIGARRAN LTD.
Adult and Health Services,Head of Adults,Third Party Payments,470101,Purchase of Care,02/10/2019,3646971-2574662,"2,369.64",CRAIGARRAN LTD.
Adult and Health Services,Head of Adults,Third Party Payments,474101,Purchase of Care,02/10/2019,3646971-2574663,"2,466.24",CRAIGARRAN LTD.
Adult and Health Services,Head of Adults,Third Party Payments,470101,Purchase of Care,02/10/2019,3646971-2574665,"2,369.64",CRAIGARRAN LTD.
Adult and Health Services,Head of Adults,Third Party Payments,470101,Purchase of Care,02/10/2019,3646971-2574666,"1,777.23",CRAIGARRAN LTD.
Adult and Health Services,Head of Adults,Third Party Payments,470101,Purchase of Care,02/10/2019,3646971-2574667,"2,369.64",CRAIGARRAN LTD.
Adult and Health Services,Head of Adults,Third Party Payments,470101,Purchase of Care,02/10/2019,3646971-2574668,"2,369.64",CRAIGARRAN LTD.
Adult and Health Services,Head of Adults,Third Party Payments,470101,Purchase of Care,02/10/2019,3646971-2574669,"2,369.64",CRAIGARRAN LTD.
Adult and Health Services,Head of Adults,Third Party Payments,474101,Purchase of Care,02/10/2019,3646971-2574670,"2,466.24",CRAIGARRAN LTD.
Adult and Health Services,Head of Adults,Third Party Payments,471101,Purchase of Care,02/10/2019,3646971-2574672,"2,457.00",CRAIGARRAN LTD.
Adult and Health Services,Head of Adults,Third Party Payments,471101,Purchase of Care,02/10/2019,3646971-2574673,"2,457.00",CRAIGARRAN LTD.
Adult and Health Services,Head of Adults,Third Party Payments,474101,Purchase of Care,02/10/2019,3646971-2574674,"1,233.12",CRAIGARRAN LTD.
Adult and Health Services,Head of Adults,Third Party Payments,474101,Purchase of Care,02/10/2019,3646971-2574676,"1,233.12",CRAIGARRAN LTD.
Adult and Health Services,Head of Adults,Third Party Payments,474101,Purchase of Care,02/10/2019,3646971-2574678,"2,466.24",CRAIGARRAN LTD.
Adult and Health Services,Head of Adults,Third Party Payments,471101,Purchase of Care,02/10/2019,3646971-2574680,"1,228.52",CRAIGARRAN LTD.
Adult and Health Services,Head of Adults,Third Party Payments,474101,Purchase of Care,02/10/2019,3646971-2574681,"1,233.12",CRAIGARRAN LTD.
Adult and Health Services,Head of Adults,Third Party Payments,474101,Purchase of Care,02/10/2019,3646971-2574683,"2,466.24",CRAIGARRAN LTD.
Adult and Health Services,Head of Adults,Third Party Payments,474101,Purchase of Care,02/10/2019,3646971-2574685,"2,466.24",CRAIGARRAN LTD.
Adult and Health Services,Head of Adults,Third Party Payments,471101,Purchase of Care,02/10/2019,3646971-2574687,"2,457.00",CRAIGARRAN LTD.
Adult and Health Services,Head of Adults,Third Party Payments,470101,Purchase of Care,02/10/2019,3646971-2574688,"2,369.64",CRAIGARRAN LTD.
Adult and Health Services,Head of Adults,Third Party Payments,470101,Purchase of Care,02/10/2019,3646971-2574689,"2,369.64",CRAIGARRAN LTD.
Adult and Health Services,Head of Adults,Third Party Payments,471101,Purchase of Care,02/10/2019,3646971-2574690,"2,457.00",CRAIGARRAN LTD.
Adult and Health Services,Head of Adults,Third Party Payments,474101,Purchase of Care,02/10/2019,3646971-2574691,"2,466.24",CRAIGARRAN LTD.
Adult and Health Services,Head of Adults,Third Party Payments,470101,Purchase of Care,02/10/2019,3646971-2574693,"2,369.64",CRAIGARRAN LTD.
Adult and Health Services,Head of Adults,Third Party Payments,470101,Purchase of Care,02/10/2019,3647653-1930620H,755.52,CREATIVE SUPPORT LTD.
Adult and Health Services,Head of Adults,Third Party Payments,478101,Purchase of Care,02/10/2019,3647654-1926131H,"3,509.20",CREATIVE SUPPORT LTD.
Adult and Health Services,Head of Adults,Third Party Payments,478101,Purchase of Care,02/10/2019,3647654-1926156H,"6,384.48",CREATIVE SUPPORT LTD.
Adult and Health Services,Head of Adults,Third Party Payments,478101,Purchase of Care,02/10/2019,3647654-1926357H,"3,983.84",CREATIVE SUPPORT LTD.
Adult and Health Services,Head of Adults,Third Party Payments,478101,Purchase of Care,02/10/2019,3647654-1926402H,933.32,CREATIVE SUPPORT LTD.
Adult and Health Services,Head of Adults,Third Party Payments,478101,Purchase of Care,02/10/2019,3647654-1926487H,933.32,CREATIVE SUPPORT LTD.
Adult and Health Services,Head of Adults,Third Party Payments,478101,Purchase of Care,02/10/2019,3647654-1926854H,"6,324.08",CREATIVE SUPPORT LTD.
Adult and Health Services,Head of Adults,Third Party Payments,478101,Purchase of Care,02/10/2019,3647654-1927652H,"4,186.00",CREATIVE SUPPORT LTD.
Adult and Health Services,Head of Adults,Third Party Payments,478101,Purchase of Care,02/10/2019,3647654-1927980H,"2,009.00",CREATIVE SUPPORT LTD.
Adult and Health Services,Head of Adults,Third Party Payments,478101,Purchase of Care,02/10/2019,3647654-1928557H,"10,142.72",CREATIVE SUPPORT LTD.
Adult and Health Services,Head of Adults,Third Party Payments,478101,Purchase of Care,02/10/2019,3647654-1928772H,"4,025.48",CREATIVE SUPPORT LTD.
Adult and Health Services,Head of Adults,Third Party Payments,478101,Purchase of Care,02/10/2019,3647654-1928991H,"2,227.40",CREATIVE SUPPORT LTD.
Adult and Health Services,Head of Adults,Third Party Payments,478101,Purchase of Care,02/10/2019,3647654-1929098H,"4,074.00",CREATIVE SUPPORT LTD.
Adult and Health Services,Head of Adults,Third Party Payments,478101,Purchase of Care,02/10/2019,3647654-1929165H,"5,253.36",CREATIVE SUPPORT LTD.
Adult and Health Services,Head of Adults,Third Party Payments,478101,Purchase of Care,02/10/2019,3647654-1929492H,"2,625.00",CREATIVE SUPPORT LTD.
Adult and Health Services,Head of Adults,Third Party Payments,472101,Purchase of Care,02/10/2019,3647655-1926511H,720.76,CRESCENT HOMECARE LTD.
Adult and Health Services,Head of Adults,Third Party Payments,472101,Purchase of Care,02/10/2019,3647655-1926787H,829.36,CRESCENT HOMECARE LTD.
Adult and Health Services,Head of Adults,Third Party Payments,472101,Purchase of Care,02/10/2019,3647655-1926895H,"1,342.78",CRESCENT HOMECARE LTD.
Adult and Health Services,Head of Adults,Third Party Payments,472101,Purchase of Care,02/10/2019,3647655-1927011H,651.64,CRESCENT HOMECARE LTD.
Adult and Health Services,Head of Adults,Third Party Payments,472101,Purchase of Care,02/10/2019,3647655-1927021H,888.60,CRESCENT HOMECARE LTD.
Adult and Health Services,Head of Adults,Third Party Payments,472101,Purchase of Care,02/10/2019,3647655-1927333H,755.32,CRESCENT HOMECARE LTD.
Adult and Health Services,Head of Adults,Third Party Payments,472101,Purchase of Care,02/10/2019,3647655-1927389H,933.04,CRESCENT HOMECARE LTD.
Adult and Health Services,Head of Adults,Third Party Payments,472101,Purchase of Care,02/10/2019,3647655-1927601H,"1,471.12",CRESCENT HOMECARE LTD.
Adult and Health Services,Head of Adults,Third Party Payments,472101,Purchase of Care,02/10/2019,3647655-1927738H,799.74,CRESCENT HOMECARE LTD.
Adult and Health Services,Head of Adults,Third Party Payments,472101,Purchase of Care,02/10/2019,3647655-1927795H,658.32,CRESCENT HOMECARE LTD.
Adult and Health Services,Head of Adults,Third Party Payments,472101,Purchase of Care,02/10/2019,3647655-1928358H,878.72,CRESCENT HOMECARE LTD.
Adult and Health Services,Head of Adults,Third Party Payments,472101,Purchase of Care,02/10/2019,3647655-1928624H,"1,234.16",CRESCENT HOMECARE LTD.
Adult and Health Services,Head of Adults,Third Party Payments,472101,Purchase of Care,02/10/2019,3647655-1928815H,"2,488.08",CRESCENT HOMECARE LTD.
Adult and Health Services,Head of Adults,Third Party Payments,472101,Purchase of Care,02/10/2019,3647655-1928908H,947.85,CRESCENT HOMECARE LTD.
Adult and Health Services,Head of Adults,Third Party Payments,472101,Purchase of Care,02/10/2019,3647655-1929529H,507.24,CRESCENT HOMECARE LTD.
Adult and Health Services,Head of Adults,Third Party Payments,472101,Purchase of Care,02/10/2019,3647655-1929582H,"3,684.00",CRESCENT HOMECARE LTD.
Adult and Health Services,Head of Adults,Third Party Payments,472101,Purchase of Care,02/10/2019,3647655-1929751H,955.24,CRESCENT HOMECARE LTD.
Adult and Health Services,Head of Adults,Third Party Payments,472101,Purchase of Care,02/10/2019,3647655-1930104H,533.16,CRESCENT HOMECARE LTD.
Adult and Health Services,Head of Adults,Third Party Payments,472101,Purchase of Care,02/10/2019,3647655-1930121H,873.80,CRESCENT HOMECARE LTD.
Adult and Health Services,Head of Adults,Third Party Payments,472101,Purchase of Care,02/10/2019,3647655-1930147H,792.34,CRESCENT HOMECARE LTD.
Adult and Health Services,Head of Adults,Third Party Payments,472101,Purchase of Care,02/10/2019,3647655-1930196H,"1,589.60",CRESCENT HOMECARE LTD.
Adult and Health Services,Head of Adults,Third Party Payments,472101,Purchase of Care,02/10/2019,3647655-1930317H,556.62,CRESCENT HOMECARE LTD.
Adult and Health Services,Head of Adults,Third Party Payments,472101,Purchase of Care,02/10/2019,3647655-1930331H,"1,503.21",CRESCENT HOMECARE LTD.
Adult and Health Services,Head of Adults,Third Party Payments,472101,Purchase of Care,02/10/2019,3647655-1930350H,821.96,CRESCENT HOMECARE LTD.
Adult and Health Services,Head of Adults,Third Party Payments,472101,Purchase of Care,02/10/2019,3647655-1930383H,829.36,CRESCENT HOMECARE LTD.
Adult and Health Services,Head of Adults,Third Party Payments,472101,Purchase of Care,02/10/2019,3647655-1930617H,572.64,CRESCENT HOMECARE LTD.
Adult and Health Services,Head of Adults,Third Party Payments,472101,Purchase of Care,02/10/2019,3647655-1930623H,"1,362.52",CRESCENT HOMECARE LTD.
Adult and Health Services,Head of Adults,Third Party Payments,472101,Purchase of Care,02/10/2019,3647655-1930665H,888.60,CRESCENT HOMECARE LTD.
Adult and Health Services,Head of Adults,Third Party Payments,472101,Purchase of Care,02/10/2019,3647655-1930703H,555.39,CRESCENT HOMECARE LTD.
Adult and Health Services,Head of Adults,Third Party Payments,472101,Purchase of Care,02/10/2019,3647655-1930746H,625.74,CRESCENT HOMECARE LTD.
Adult and Health Services,Head of Adults,Third Party Payments,472101,Purchase of Care,02/10/2019,3647655-1930862H,888.60,CRESCENT HOMECARE LTD.
Adult and Health Services,Head of Adults,Third Party Payments,472101,Purchase of Care,02/10/2019,3647655-1930872H,636.84,CRESCENT HOMECARE LTD.
Adult and Health Services,Head of Adults,Third Party Payments,472101,Purchase of Care,02/10/2019,3647655-1931077H,510.96,CRESCENT HOMECARE LTD.
Adult and Health Services,Head of Adults,Third Party Payments,472101,Purchase of Care,02/10/2019,3647655-1931116H,691.12,CRESCENT HOMECARE LTD.
Adult and Health Services,Head of Adults,Third Party Payments,472101,Purchase of Care,02/10/2019,3647655-1931320H,651.64,CRESCENT HOMECARE LTD.
Adult and Health Services,Head of Adults,Third Party Payments,472101,Purchase of Care,02/10/2019,3647655-1931395H,691.12,CRESCENT HOMECARE LTD.
Adult and Health Services,Head of Adults,Third Party Payments,472101,Purchase of Care,02/10/2019,3647655-1931621H,829.36,CRESCENT HOMECARE LTD.
Adult and Health Services,Head of Adults,Third Party Payments,472101,Purchase of Care,02/10/2019,3647655-1931718H,636.84,CRESCENT HOMECARE LTD.
Adult and Health Services,Head of Adults,Third Party Payments,472101,Purchase of Care,02/10/2019,3647655-1931848H,575.13,CRESCENT HOMECARE LTD.
Adult and Health Services,Head of Adults,Third Party Payments,472101,Purchase of Care,02/10/2019,3647655-1931972H,710.88,CRESCENT HOMECARE LTD.
Adult and Health Services,Head of Adults,Third Party Payments,472101,Purchase of Care,02/10/2019,3647655-1931997H,587.48,CRESCENT HOMECARE LTD.
Adult and Health Services,Head of Adults,Third Party Payments,472101,Purchase of Care,02/10/2019,3647655-1932052H,"1,777.21",CRESCENT HOMECARE LTD.
Adult and Health Services,Head of Adults,Third Party Payments,472101,Purchase of Care,02/10/2019,3647655-1932118H,740.52,CRESCENT HOMECARE LTD.
Adult and Health Services,Head of Adults,Third Party Payments,472101,Purchase of Care,02/10/2019,3647655-1932152H,"1,273.68",CRESCENT HOMECARE LTD.
Adult and Health Services,Head of Adults,Third Party Payments,472101,Purchase of Care,02/10/2019,3647655-1932342H,636.84,CRESCENT HOMECARE LTD.
Adult and Health Services,Head of Adults,Third Party Payments,472101,Purchase of Care,02/10/2019,3647655-1932541H,518.36,CRESCENT HOMECARE LTD.
Adult and Health Services,Head of Adults,Third Party Payments,472101,Purchase of Care,02/10/2019,3647655-1932542H,720.76,CRESCENT HOMECARE LTD.
Adult and Health Services,Head of Adults,Third Party Payments,472101,Purchase of Care,02/10/2019,3647655-1932723H,"1,850.43",CRESCENT HOMECARE LTD.
Adult and Health Services,Head of Adults,Third Party Payments,470101,Purchase of Care,02/10/2019,3646972-2576206,"2,369.64",CROFT HOUSE (CARE) LTD.
Adult and Health Services,Head of Adults,Third Party Payments,474101,Purchase of Care,02/10/2019,3646972-2576207,"1,233.12",CROFT HOUSE (CARE) LTD.
Adult and Health Services,Head of Adults,Third Party Payments,471101,Purchase of Care,02/10/2019,3646972-2576210,"2,457.00",CROFT HOUSE (CARE) LTD.
Adult and Health Services,Head of Adults,Third Party Payments,474101,Purchase of Care,02/10/2019,3646972-2576211,"2,466.24",CROFT HOUSE (CARE) LTD.
Adult and Health Services,Head of Adults,Third Party Payments,474101,Purchase of Care,02/10/2019,3646972-2576213,"1,233.12",CROFT HOUSE (CARE) LTD.
Adult and Health Services,Head of Adults,Third Party Payments,474101,Purchase of Care,02/10/2019,3646972-2576215,"2,466.24",CROFT HOUSE (CARE) LTD.
Adult and Health Services,Head of Adults,Third Party Payments,470101,Purchase of Care,02/10/2019,3646972-2576217,"2,369.64",CROFT HOUSE (CARE) LTD.
Adult and Health Services,Head of Adults,Third Party Payments,470101,Purchase of Care,02/10/2019,3646972-2576219,"2,369.64",CROFT HOUSE (CARE) LTD.
Adult and Health Services,Head of Adults,Third Party Payments,470101,Purchase of Care,02/10/2019,3646972-2576220,"2,369.64",CROFT HOUSE (CARE) LTD.
Adult and Health Services,Head of Adults,Third Party Payments,471101,Purchase of Care,02/10/2019,3646972-2576221,"2,457.00",CROFT HOUSE (CARE) LTD.
Adult and Health Services,Head of Adults,Third Party Payments,471101,Purchase of Care,02/10/2019,3646972-2576222,"2,457.00",CROFT HOUSE (CARE) LTD.
Adult and Health Services,Head of Adults,Third Party Payments,474101,Purchase of Care,02/10/2019,3646972-2576224,"2,466.24",CROFT HOUSE (CARE) LTD.
Adult and Health Services,Head of Adults,Third Party Payments,470101,Purchase of Care,02/10/2019,3646972-2576226,"2,369.64",CROFT HOUSE (CARE) LTD.
Adult and Health Services,Head of Adults,Third Party Payments,471101,Purchase of Care,02/10/2019,3646972-2576227,"2,457.00",CROFT HOUSE (CARE) LTD.
Adult and Health Services,Head of Adults,Third Party Payments,470101,Purchase of Care,02/10/2019,3646972-2576228,"2,369.64",CROFT HOUSE (CARE) LTD.
Adult and Health Services,Head of Adults,Third Party Payments,474101,Purchase of Care,02/10/2019,3646972-2576229,"1,233.12",CROFT HOUSE (CARE) LTD.
Adult and Health Services,Head of Adults,Third Party Payments,474101,Purchase of Care,02/10/2019,3646972-2576231,"1,233.12",CROFT HOUSE (CARE) LTD.
Adult and Health Services,Head of Adults,Third Party Payments,474101,Purchase of Care,02/10/2019,3646972-2576233,"2,466.24",CROFT HOUSE (CARE) LTD.
Adult and Health Services,Head of Adults,Third Party Payments,471101,Purchase of Care,02/10/2019,3646972-2577478,"1,316.25",CROFT HOUSE (CARE) LTD.
Adult and Health Services,Head of Adults,Third Party Payments,470101,Purchase of Care,02/10/2019,3646972-2577493,"1,438.71",CROFT HOUSE (CARE) LTD.
Adult and Health Services,Head of Adults,Third Party Payments,470101,Purchase of Care,02/10/2019,3646973-2572527,"2,348.36",CROWN CARE IV LTD.
Adult and Health Services,Head of Adults,Third Party Payments,474101,Purchase of Care,02/10/2019,3646973-2572528,"2,348.36",CROWN CARE IV LTD.
Adult and Health Services,Head of Adults,Third Party Payments,470101,Purchase of Care,02/10/2019,3646973-2577245,"2,348.36",CROWN CARE IV LTD.
Adult and Health Services,Head of Adults,Third Party Payments,474101,Purchase of Care,02/10/2019,3646973-2577246,"2,348.36",CROWN CARE IV LTD.
Adult and Health Services,Head of Adults,Third Party Payments,474101,Purchase of Care,02/10/2019,3646974-2575599,"2,466.24",CROWN CARE VI LTD.
Adult and Health Services,Head of Adults,Third Party Payments,470101,Purchase of Care,02/10/2019,3646974-2575601,"2,369.64",CROWN CARE VI LTD.
Adult and Health Services,Head of Adults,Third Party Payments,474101,Purchase of Care,02/10/2019,3646974-2575602,"2,113.92",CROWN CARE VI LTD.
Adult and Health Services,Head of Adults,Third Party Payments,474101,Purchase of Care,02/10/2019,3646974-2575604,"2,466.24",CROWN CARE VI LTD.
Adult and Health Services,Head of Adults,Third Party Payments,471101,Purchase of Care,02/10/2019,3646974-2575606,"2,457.00",CROWN CARE VI LTD.
Adult and Health Services,Head of Adults,Third Party Payments,474101,Purchase of Care,02/10/2019,3646974-2575607,"2,466.24",CROWN CARE VI LTD.
Adult and Health Services,Head of Adults,Third Party Payments,470101,Purchase of Care,02/10/2019,3646974-2575610,"1,100.19",CROWN CARE VI LTD.
Adult and Health Services,Head of Adults,Third Party Payments,470101,Purchase of Care,02/10/2019,3646974-2575611,"2,369.64",CROWN CARE VI LTD.
Adult and Health Services,Head of Adults,Third Party Payments,470101,Purchase of Care,02/10/2019,3646974-2575612,"2,369.64",CROWN CARE VI LTD.
Adult and Health Services,Head of Adults,Third Party Payments,470101,Purchase of Care,02/10/2019,3646974-2575613,"2,369.64",CROWN CARE VI LTD.
Adult and Health Services,Head of Adults,Third Party Payments,474101,Purchase of Care,02/10/2019,3646974-2575614,"1,761.60",CROWN CARE VI LTD.
Adult and Health Services,Head of Adults,Third Party Payments,470101,Purchase of Care,02/10/2019,3646974-2575616,"2,369.64",CROWN CARE VI LTD.
Adult and Health Services,Head of Adults,Third Party Payments,471101,Purchase of Care,02/10/2019,3646974-2575617,"2,457.00",CROWN CARE VI LTD.
Adult and Health Services,Head of Adults,Third Party Payments,470101,Purchase of Care,02/10/2019,3646974-2575618,"2,369.64",CROWN CARE VI LTD.
Adult and Health Services,Head of Adults,Third Party Payments,471101,Purchase of Care,02/10/2019,3646974-2575619,"2,457.00",CROWN CARE VI LTD.
Adult and Health Services,Head of Adults,Third Party Payments,474101,Purchase of Care,02/10/2019,3646974-2575620,"2,466.24",CROWN CARE VI LTD.
Adult and Health Services,Head of Adults,Third Party Payments,471101,Purchase of Care,02/10/2019,3646974-2575622,"2,457.00",CROWN CARE VI LTD.
Adult and Health Services,Head of Adults,Third Party Payments,471101,Purchase of Care,02/10/2019,3646974-2575623,"2,457.00",CROWN CARE VI LTD.
Adult and Health Services,Head of Adults,Third Party Payments,471101,Purchase of Care,02/10/2019,3646974-2575625,"1,842.75",CROWN CARE VI LTD.
Adult and Health Services,Head of Adults,Third Party Payments,471101,Purchase of Care,02/10/2019,3646974-2575626,"2,457.00",CROWN CARE VI LTD.
Adult and Health Services,Head of Adults,Third Party Payments,471101,Purchase of Care,02/10/2019,3646974-2575627,"2,457.00",CROWN CARE VI LTD.
Adult and Health Services,Head of Adults,Third Party Payments,471101,Purchase of Care,02/10/2019,3646974-2575628,"1,228.48",CROWN CARE VI LTD.
Adult and Health Services,Head of Adults,Third Party Payments,471101,Purchase of Care,02/10/2019,3646974-2575629,"2,457.00",CROWN CARE VI LTD.
Adult and Health Services,Head of Adults,Third Party Payments,471101,Purchase of Care,02/10/2019,3646974-2575630,"2,457.00",CROWN CARE VI LTD.
Adult and Health Services,Head of Adults,Third Party Payments,471101,Purchase of Care,02/10/2019,3646974-2575631,"2,457.00",CROWN CARE VI LTD.
Adult and Health Services,Head of Adults,Third Party Payments,471101,Purchase of Care,02/10/2019,3646974-2575632,"2,457.00",CROWN CARE VI LTD.
Adult and Health Services,Head of Adults,Third Party Payments,474101,Purchase of Care,02/10/2019,3646974-2575633,"1,233.12",CROWN CARE VI LTD.
Adult and Health Services,Head of Adults,Third Party Payments,470101,Purchase of Care,02/10/2019,3646974-2575635,702.00,CROWN CARE VI LTD.
Adult and Health Services,Head of Adults,Third Party Payments,474101,Purchase of Care,02/10/2019,3646974-2575636,"1,502.04",CROWN CARE VI LTD.
Adult and Health Services,Head of Adults,Third Party Payments,474101,Purchase of Care,02/10/2019,3646974-2575638,"2,466.24",CROWN CARE VI LTD.
Adult and Health Services,Head of Adults,Third Party Payments,474101,Purchase of Care,02/10/2019,3646974-2575640,"2,466.24",CROWN CARE VI LTD.
Adult and Health Services,Head of Adults,Third Party Payments,470101,Purchase of Care,02/10/2019,3646974-2575642,"2,369.64",CROWN CARE VI LTD.
Adult and Health Services,Head of Adults,Third Party Payments,471101,Purchase of Care,02/10/2019,3646974-2575643,"2,457.00",CROWN CARE VI LTD.
Adult and Health Services,Head of Adults,Third Party Payments,474101,Purchase of Care,02/10/2019,3646974-2575644,"2,466.24",CROWN CARE VI LTD.
Adult and Health Services,Head of Adults,Third Party Payments,474101,Purchase of Care,02/10/2019,3646974-2575646,"2,466.24",CROWN CARE VI LTD.
Adult and Health Services,Head of Adults,Third Party Payments,471101,Purchase of Care,02/10/2019,3646974-2575648,"2,457.00",CROWN CARE VI LTD.
Adult and Health Services,Head of Adults,Third Party Payments,474101,Purchase of Care,02/10/2019,3646974-2575649,"2,466.24",CROWN CARE VI LTD.
Adult and Health Services,Head of Adults,Third Party Payments,471101,Purchase of Care,02/10/2019,3646974-2575651,"2,457.00",CROWN CARE VI LTD.
Adult and Health Services,Head of Adults,Third Party Payments,470101,Purchase of Care,02/10/2019,3646974-2575652,"2,369.64",CROWN CARE VI LTD.
Adult and Health Services,Head of Adults,Third Party Payments,474101,Purchase of Care,02/10/2019,3646974-2575653,"2,466.24",CROWN CARE VI LTD.
Adult and Health Services,Head of Adults,Third Party Payments,474101,Purchase of Care,02/10/2019,3646974-2575655,"1,233.12",CROWN CARE VI LTD.
Adult and Health Services,Head of Adults,Third Party Payments,474101,Purchase of Care,02/10/2019,3646974-2575657,"2,466.24",CROWN CARE VI LTD.
Adult and Health Services,Head of Adults,Third Party Payments,471101,Purchase of Care,02/10/2019,3646974-2575659,"2,457.00",CROWN CARE VI LTD.
Adult and Health Services,Head of Adults,Third Party Payments,474101,Purchase of Care,02/10/2019,3646974-2575660,"1,233.12",CROWN CARE VI LTD.
Adult and Health Services,Head of Adults,Third Party Payments,471101,Purchase of Care,02/10/2019,3646974-2575662,789.75,CROWN CARE VI LTD.
Adult and Health Services,Head of Adults,Third Party Payments,474101,Purchase of Care,02/10/2019,3646974-2575663,"2,466.24",CROWN CARE VI LTD.
Adult and Health Services,Head of Adults,Third Party Payments,471101,Purchase of Care,02/10/2019,3646974-2575665,"1,228.48",CROWN CARE VI LTD.
Adult and Health Services,Head of Adults,Third Party Payments,470101,Purchase of Care,02/10/2019,3646974-2575666,"2,369.64",CROWN CARE VI LTD.
Adult and Health Services,Head of Adults,Third Party Payments,470101,Purchase of Care,02/10/2019,3646974-2575667,"2,369.64",CROWN CARE VI LTD.
Adult and Health Services,Head of Adults,Third Party Payments,474101,Purchase of Care,02/10/2019,3646974-2575668,"2,466.24",CROWN CARE VI LTD.
Adult and Health Services,Head of Adults,Third Party Payments,471101,Purchase of Care,02/10/2019,3646974-2575670,"2,457.00",CROWN CARE VI LTD.
Adult and Health Services,Head of Adults,Third Party Payments,470101,Purchase of Care,02/10/2019,3646974-2575672,"1,184.80",CROWN CARE VI LTD.
Adult and Health Services,Head of Adults,Third Party Payments,474101,Purchase of Care,02/10/2019,3646974-2575673,"1,233.12",CROWN CARE VI LTD.
Adult and Health Services,Head of Adults,Third Party Payments,474101,Purchase of Care,02/10/2019,3646974-2575675,"2,466.24",CROWN CARE VI LTD.
Adult and Health Services,Head of Adults,Third Party Payments,470101,Purchase of Care,02/10/2019,3646974-2575677,"2,369.64",CROWN CARE VI LTD.
Adult and Health Services,Head of Adults,Third Party Payments,474101,Purchase of Care,02/10/2019,3646974-2575678,"2,466.24",CROWN CARE VI LTD.
Adult and Health Services,Head of Adults,Third Party Payments,470101,Purchase of Care,02/10/2019,3646974-2575680,"2,369.64",CROWN CARE VI LTD.
Adult and Health Services,Head of Adults,Third Party Payments,474101,Purchase of Care,02/10/2019,3646974-2575681,"2,466.24",CROWN CARE VI LTD.
Adult and Health Services,Head of Adults,Third Party Payments,471101,Purchase of Care,02/10/2019,3646974-2575683,"2,457.00",CROWN CARE VI LTD.
Adult and Health Services,Head of Adults,Third Party Payments,470101,Purchase of Care,02/10/2019,3646974-2575684,"2,369.64",CROWN CARE VI LTD.
Adult and Health Services,Head of Adults,Third Party Payments,470101,Purchase of Care,02/10/2019,3646974-2575685,"2,369.64",CROWN CARE VI LTD.
Adult and Health Services,Head of Adults,Third Party Payments,474101,Purchase of Care,02/10/2019,3646974-2575686,"2,466.24",CROWN CARE VI LTD.
Adult and Health Services,Head of Adults,Third Party Payments,474101,Purchase of Care,02/10/2019,3646974-2575689,"2,466.24",CROWN CARE VI LTD.
Adult and Health Services,Head of Adults,Third Party Payments,470101,Purchase of Care,02/10/2019,3646974-2577539,"1,354.08",CROWN CARE VI LTD.
Adult and Health Services,Head of Adults,Third Party Payments,470101,Purchase of Care,02/10/2019,3646975-2575002,"4,169.76",CYGNET OE LTD.
Adult and Health Services,Head of Adults,Third Party Payments,470101,Purchase of Care,02/10/2019,3646975-2575003,"5,376.00",CYGNET OE LTD.
Adult and Health Services,Head of Adults,Third Party Payments,470101,Purchase of Care,02/10/2019,3646975-2575004,"12,138.00",CYGNET OE LTD.
Adult and Health Services,Head of Adults,Third Party Payments,470101,Purchase of Care,02/10/2019,3646975-2575005,"4,896.00",CYGNET OE LTD.
Adult and Health Services,Head of Adults,Third Party Payments,470101,Purchase of Care,02/10/2019,3646975-2577408,953.88,CYGNET OE LTD.
Adult and Health Services,Head of Adults,Third Party Payments,470101,Purchase of Care,02/10/2019,3646975-2577409,"2,595.60",CYGNET OE LTD.
Adult and Health Services,Head of Adults,Third Party Payments,474101,Purchase of Care,02/10/2019,3646976-2575401,"4,681.80",CYGNET OE LTD.
Adult and Health Services,Head of Adults,Third Party Payments,470101,Purchase of Care,02/10/2019,3646976-2575402,"1,903.44",CYGNET OE LTD.
Adult and Health Services,Head of Adults,Third Party Payments,474101,Purchase of Care,02/10/2019,3646977-2574837,"4,284.00",CYGNET OE LTD.
Adult and Health Services,Head of Adults,Third Party Payments,470101,Purchase of Care,02/10/2019,3646977-2574838,"7,295.12",CYGNET OE LTD.
Adult and Health Services,Head of Adults,Third Party Payments,470101,Purchase of Care,02/10/2019,3646978-2574372,988.00,D3 CARE LTD.
Adult and Health Services,Head of Adults,Third Party Payments,470101,Purchase of Care,02/10/2019,3646978-2574373,"1,976.08",D3 CARE LTD.
Adult and Health Services,Head of Adults,Third Party Payments,474101,Purchase of Care,02/10/2019,3646978-2574374,"2,034.76",D3 CARE LTD.
Adult and Health Services,Head of Adults,Third Party Payments,474101,Purchase of Care,02/10/2019,3646978-2574376,"1,037.76",D3 CARE LTD.
Adult and Health Services,Head of Adults,Third Party Payments,474101,Purchase of Care,02/10/2019,3646978-2574378,"1,037.76",D3 CARE LTD.
Adult and Health Services,Head of Adults,Third Party Payments,470101,Purchase of Care,02/10/2019,3646978-2574380,"1,976.08",D3 CARE LTD.
Adult and Health Services,Head of Adults,Third Party Payments,470101,Purchase of Care,02/10/2019,3646978-2574381,"1,976.08",D3 CARE LTD.
Adult and Health Services,Head of Adults,Third Party Payments,474101,Purchase of Care,02/10/2019,3646978-2574382,"2,075.44",D3 CARE LTD.
Adult and Health Services,Head of Adults,Third Party Payments,474101,Purchase of Care,02/10/2019,3646978-2574384,"2,075.44",D3 CARE LTD.
Adult and Health Services,Head of Adults,Third Party Payments,474101,Purchase of Care,02/10/2019,3646978-2574386,"1,198.56",D3 CARE LTD.
Adult and Health Services,Head of Adults,Third Party Payments,474101,Purchase of Care,02/10/2019,3646978-2574388,"1,500.40",D3 CARE LTD.
Adult and Health Services,Head of Adults,Third Party Payments,474101,Purchase of Care,02/10/2019,3646978-2574390,"2,075.44",D3 CARE LTD.
Adult and Health Services,Head of Adults,Third Party Payments,474101,Purchase of Care,02/10/2019,3646978-2574392,630.04,D3 CARE LTD.
Adult and Health Services,Head of Adults,Third Party Payments,470101,Purchase of Care,02/10/2019,3646979-2574163,"1,976.08",D3 CARE LTD.
Adult and Health Services,Head of Adults,Third Party Payments,474101,Purchase of Care,02/10/2019,3646979-2574164,"1,297.15",D3 CARE LTD.
Adult and Health Services,Head of Adults,Third Party Payments,474101,Purchase of Care,02/10/2019,3646979-2574166,"1,037.72",D3 CARE LTD.
Adult and Health Services,Head of Adults,Third Party Payments,474101,Purchase of Care,02/10/2019,3646979-2574167,"1,037.76",D3 CARE LTD.
Adult and Health Services,Head of Adults,Third Party Payments,474101,Purchase of Care,02/10/2019,3646979-2574169,988.04,D3 CARE LTD.
